Workbook

Sheet AER only (hidden)
B1: Data in these columns used for data validation and database purposes.
B2: Date last modified: | C2: 2017-01-16 | D2: added (Albury and Victora) for AGN
C3: 2016-10-17 | D3: updated TransGrid's correct legal name, corrected TasNetworks (T) to June financial year
C4: 2017-02-01 | D4: inserted Power and Water, added NRs (dms_FeederCat_1 and dms_FeederCat_2)
C5: 2017-03-03 | D5: inserted AEMO as a business | AB5: FOR ELECTRICITY BUSINESSES ONLY
C6: 2018-03-28 | D6: major changes to accommodate STPIS
C7: Template Version | D7: 5 | AB7: Feeder Types | AF7: TasNetworks (D) | AG7: MAIFI flag | AH7: Feeder Names
AB9: CBD | AC9: Urban | AD9: Short rural | AE9: long rural | AF9: EXTRA
B10: dms_TradingName_List | C10: dms_TradingNameFull_List | D10: dms_ABN_List | E10: dms_JurisdictionList | F10: dms_Sector_List | G10: dms_Segment_List | H10: dms_FormControl_List | I10: dms_RPT_List | J10: dms_RPTMonth_List | K10: dms_CRCPlength_List | L10: dms_FRCPlength_List | M10: dms_663_List | N10: dms_DeterminationRef_List | O10: dms_Addr1_List | P10: dms_Addr2_List | Q10: dms_Suburb_List | R10: dms_State_List | S10: dms_PostCode_List | T10: dms_PAddr1_List | U10: dms_PAddr2_List | V10: dms_PSuburb_List | W10: dms_PState_List | X10: dms_PPostCode_List | Y10: dms_ContactName1_List | Z10: dms_ContactPh1_List | AA10: dms_ContactEmail_List | AB10: dms_CBD_flag | AC10: dms_Urban_flag | AD10: dms_ShortRural_flag | AE10: dms_LongRural_flag | AF10: dms_FeederType_5_flag | AG10: dms_MAIFI_flag_List | AH10: dms_FeederName_1 | AI10: dms_FeederName_2 | AJ10: dms_FeederName_3 | AK10: dms_FeederName_4 | AL10: dms_FeederName_5 | AM10: dms_Public_Lighting_List | AN10: Column1
B11: ActewAGL Distribution | C11: ActewAGL Distribution | D11: 76670568688 | E11: ACT | F11: Electricity | G11: Distribution | H11: Revenue cap | I11: Financial | J11: June | K11: 5 | L11: 5 | M11: 5 | N11: 2014-19 Distribution Determination | O11: 40 Bunda Street | Q11: CANBERRA | R11: ACT | S11: 2600 | T11: GPO BOX 366 | V11: CANBERRA | W11: ACT | X11: 2601 | Y11: Robert Walker | Z11: 02 6248 3847 | AA11: robert.walker@actewagle.com.au | AB11: NO | AC11: YES | AD11: YES | AE11: NO | AF11: NO | AH11: CBD | AI11: Urban | AJ11: Short rural | AK11: Long rural | AM11: NO | AN11: ActewAGL Distribution
B12: ActewAGL Distribution (Tx Assets) | C12: ActewAGL Distribution (Tx Assets) | D12: 76670568688 | E12: ACT | F12: Electricity | G12: Distribution | H12: Revenue cap | I12: Financial | J12: June | K12: 5 | L12: 5 | M12: 5 | N12: distribution determination | O12: 40 Bunda Street | Q12: CANBERRA | R12: ACT | S12: 2600 | T12: GPO BOX 366 | V12: CANBERRA | W12: ACT | X12: 2601 | Y12: Robert Walker | Z12: 02 6248 3847 | AA12: robert.walker@actewagle.com.au | AB12: NO | AC12: YES | AD12: YES | AE12: NO | AF12: NO | AH12: CBD | AI12: Urban | AJ12: Short rural | AK12: Long rural | AM12: NO | AN12: ActewAGL Distribution (Tx Assets)
B13: ActewAGL Gas | C13: ActewAGL Gas | D13: 76670568688 | E13: ACT | F13: Gas | G13: Distribution | H13: Weighted average price cap | I13: Financial | J13: June | K13: 5 | L13: 5 | M13: x | O13: 40 Bunda Street | Q13: CANBERRA | R13: ACT | S13: 2600 | T13: GPO BOX 366 | V13: CANBERRA | W13: ACT | X13: 2601 | Y13: Philip Deamer | Z13: 02 6248 3438 | AA13: GasAAReview@actewagl.com.au | AB13: NO | AC13: NO | AD13: NO | AE13: NO | AF13: NO | AH13: CBD | AI13: Urban | AJ13: Short rural | AK13: Long rural | AM13: NO | AN13: ActewAGL Gas
B14: AEMO | C14: Australian Energy Market Operator Ltd | D14: 94072010327 | E14: Vic | F14: Electricity | G14: Transmission | H14: - | I14: Financial | J14: March | K14: 5 | L14: 5 | M14: x | N14: - | O14: Level 22 | P14: 530 Collins Street | Q14: MELBOURNE | R14: VIC | S14: 3000 | T14: GPO Box 2008 | V14: MELBOURNE | W14: VIC | X14: 3001 | AB14: NO | AC14: NO | AD14: NO | AE14: NO | AF14: NO | AH14: CBD | AI14: Urban | AJ14: Short rural | AK14: Long rural | AM14: NO | AN14: AEMO
B15: AGN (Albury and Victoria) | C15: Australian Gas Networks Limited (reporting data for Albury and Victoria) | D15: 19078551685 | E15: Vic | F15: Gas | G15: Distribution | H15: Weighted average price cap | I15: Calendar | J15: December | K15: 5 | L15: 5 | M15: x | O15: Level 6 | P15: 400 King William Street | Q15: ADELAIDE | R15: SA | S15: 5000 | T15: PO Box 6468 | U15: Halifax Street | V15: ADELAIDE | W15: SA | X15: 5000 | Y15: Craig de Laine | Z15: 08 8418 1129 | AA15: craig.delaine@agn.com.au | AB15: NO | AC15: NO | AD15: NO | AE15: NO | AF15: NO | AH15: CBD | AI15: Urban | AJ15: Short rural | AK15: Long rural | AM15: NO | AN15: AGN (Albury)
B16: AGN (Albury) | C16: Australian Gas Networks Limited (reporting data for Albury) | D16: 19078551685 | E16: Vic | F16: Gas | G16: Distribution | H16: Weighted average price cap | I16: Calendar | J16: December | K16: 5 | L16: 5 | M16: x | O16: Level 6 | P16: 400 King William Street | Q16: ADELAIDE | R16: SA | S16: 5000 | T16: PO Box 6468 | U16: Halifax Street | V16: ADELAIDE | W16: SA | X16: 5000 | Y16: Craig de Laine | Z16: 08 8418 1129 | AA16: craig.delaine@agn.com.au | AB16: NO | AC16: NO | AD16: NO | AE16: NO | AF16: NO | AH16: CBD | AI16: Urban | AJ16: Short rural | AK16: Long rural | AM16: NO
B17: AGN (SA) | C17: Australian Gas Networks Limited (reporting data for SA) | D17: 19078551685 | E17: SA | F17: Gas | G17: Distribution | H17: Weighted average price cap | I17: Financial | J17: June | K17: 5 | L17: 5 | M17: 5 | N17: distribution determination | O17: Level 6 | P17: 400 King William Street | Q17: ADELAIDE | R17: SA | S17: 5000 | T17: PO Box 6468 | U17: Halifax Street | V17: ADELAIDE | W17: SA | X17: 5000 | Y17: Craig de Laine | Z17: 08 8418 1129 | AA17: craig.delaine@agn.com.au | AB17: NO | AC17: NO | AD17: NO | AE17: NO | AF17: NO | AH17: CBD | AI17: Urban | AJ17: Short rural | AK17: Long rural | AM17: NO | AN17: AGN (SA)
B18: AGN (Victoria) | C18: Australian Gas Networks Limited (reporting data for Victoria) | D18: 19078551685 | E18: Vic | F18: Gas | G18: Distribution | H18: Weighted average price cap | I18: Calendar | J18: December | K18: 5 | L18: 5 | M18: x | O18: Level 6 | P18: 400 King William Street | Q18: ADELAIDE | R18: SA | S18: 5000 | T18: PO Box 6468 | U18: Halifax Street | V18: ADELAIDE | W18: SA | X18: 5000 | Y18: Craig de Laine | Z18: 08 8418 1129 | AA18: craig.delaine@agn.com.au | AB18: NO | AC18: NO | AD18: NO | AE18: NO | AF18: NO | AH18: CBD | AI18: Urban | AJ18: Short rural | AK18: Long rural | AM18: NO | AN18: AGN (Victoria)
B19: Amadeus | C19: APT Pipelines (NT) Pty Ltd | D19: 39009737393 | E19: NT | F19: Gas | G19: Transmission | H19: Weighted average price cap | I19: Financial | J19: June | K19: 5 | L19: 5 | M19: x | N19: n/a | O19: Level 19, HSBC Building | P19: 580 George Street | Q19: SYDNEY | R19: NSW | S19: 2000 | T19: Level 19, HSBC Building | U19: 580 George Street | V19: SYDNEY | W19: NSW | X19: 2000 | Y19: Alexandra Curran | Z19: 02 9275 0020 | AA19: alexandra.curran@apa.com.au | AB19: NO | AC19: NO | AD19: NO | AE19: NO | AF19: NO | AH19: CBD | AI19: Urban | AJ19: Short rural | AK19: Long rural | AM19: NO | AN19: Amadeus
B20: APA GasNet | C20: APA GasNet Australia (Operations) Pty Ltd | D20: 065083009 | E20: Vic | F20: Gas | G20: Transmission | H20: Weighted average price cap | I20: Calendar | J20: December | K20: 5 | L20: 5 | M20: x | O20: Level 19, HSBC Building | P20: 580 George Street | Q20: SYDNEY | R20: NSW | S20: 2000 | T20: PO Box R41 | V20: ROYAL EXCHANGE | W20: NSW | X20: 1225 | Y20: Alexandra Curran | Z20: 02 9275 0020 | AA20: alexandra.curran@apa.com.au | AB20: NO | AC20: NO | AD20: NO | AE20: NO | AF20: NO | AH20: CBD | AI20: Urban | AJ20: Short rural | AK20: Long rural | AM20: NO | AN20: APA GasNet
B21: Ausgrid | C21: Ausgrid | D21: 78508211731 | E21: NSW | F21: Electricity | G21: Distribution | H21: Revenue cap | I21: Financial | J21: June | K21: 5 | L21: 5 | M21: 5 | N21: 2014-19 Distribution Determination | O21: 570 George St | Q21: SYDNEY | R21: NSW | S21: 2000 | T21: GPO Box 4009 | V21: SYDNEY | W21: NSW | X21: 2001 | Y21: John Thomson | Z21: 02 9269 2312 | AA21: john.thomson@ausgrid.com.au | AB21: YES | AC21: YES | AD21: YES | AE21: YES | AF21: NO | AH21: CBD | AI21: Urban | AJ21: Short rural | AK21: Long rural | AM21: YES | AN21: Ausgrid
B22: Ausgrid (Tx Assets) | C22: Ausgrid (Tx Assets) | D22: 67505337385 | E22: NSW | F22: Electricity | G22: Distribution | H22: Revenue cap | I22: Financial | J22: June | K22: 5 | L22: 5 | M22: 5 | N22: distribution determination | O22: 570 George St | Q22: SYDNEY | R22: NSW | S22: 2000 | T22: GPO Box 4009 | V22: SYDNEY | W22: NSW | X22: 2001 | Y22: John Thomson | Z22: 02 9269 2312 | AA22: john.thomson@ausgrid.com.au | AB22: YES | AC22: YES | AD22: YES | AE22: YES | AF22: NO | AH22: CBD | AI22: Urban | AJ22: Short rural | AK22: Long rural | AM22: NO | AN22: Ausgrid (Tx Assets)
B23: AusNet (D) | C23: AusNet Electricity Services Pty Ltd | D23: 91064651118 | E23: Vic | F23: Electricity | G23: Distribution | H23: Revenue cap | I23: Calendar | J23: December | K23: 5 | L23: 5 | M23: 2 | N23: 2016-20 Distribution Determination | O23: Level 32 | P23: 2 Southbank Boulevard | Q23: SOUTHBANK | R23: Vic | S23: 3006 | T23: Locked Bag 14051 | V23: MELBOURNE CITY MAIL CENTRE | W23: VIC | X23: 8001 | Y23: please provide contact details | AB23: NO | AC23: YES | AD23: YES | AE23: YES | AF23: NO | AH23: CBD | AI23: Urban | AJ23: Short rural | AK23: Long rural | AM23: YES | AN23: AusNet (D)
B24: AusNet (Gas) | C24: AusNet Gas Services | D24: 086015036 | E24: Vic | F24: Gas | G24: Distribution | H24: Weighted average price cap | I24: Calendar | J24: December | K24: 5 | L24: 5 | M24: X | O24: Level 19, HSBC Building | P24: 580 George Street | Q24: SYDNEY | R24: NSW | S24: 2000 | T24: PO Box R41 | V24: ROYAL EXCHANGE | W24: NSW | X24: 1225 | Y24: Alexandra Curran | Z24: 02 9275 0020 | AA24: alexandra.curran@apa.com.au | AB24: NO | AC24: NO | AD24: NO | AE24: NO | AF24: NO | AH24: CBD | AI24: Urban | AJ24: Short rural | AK24: Long rural | AM24: NO | AN24: AusNet (Gas)
B25: AusNet (T) | C25: Ausnet Services (Transmission) Ltd | D25: 48116124362 | E25: Vic | F25: Electricity | G25: Transmission | H25: Revenue cap | I25: Financial | J25: March | K25: 5 | L25: 5 | M25: 2 | N25: transmission determination | O25: Level 32 | P25: 2 Southbank Boulevard | Q25: SOUTHBANK | R25: Vic | S25: 3006 | T25: Locked Bag 14051 | V25: MELBOURNE CITY MAIL CENTRE | W25: Vic | X25: 8001 | Y25: Clare Thompson | Z25: 03 9695 6670 | AA25: clare.e.thompson@ausnetservices.com.au | AB25: NO | AC25: NO | AD25: NO | AE25: NO | AF25: NO | AH25: CBD | AI25: Urban | AJ25: Short rural | AK25: Long rural | AM25: NO | AN25: AusNet (T)
B26: Australian Distribution Co. | C26: Australian Distribution Co. | D26: 11222333444 | E26: - | F26: Electricity | G26: Distribution | H26: Revenue cap | I26: Financial | J26: June | K26: 5 | L26: 5 | M26: 2 | N26: distribution determination | O26: 123 Straight Street | Q26: SYDNEY | R26: NSW | S26: 2000 | T26: PO Box 123 | V26: SYDNEY | W26: NSW | X26: 2000 | Y26: Bob Smith | Z26: 02 1234 5678 | AA26: bob@auselec.net.au | AB26: YES | AC26: YES | AD26: YES | AE26: YES | AF26: NO | AH26: CBD | AI26: Urban | AJ26: Short rural | AK26: Long rural | AM26: YES | AN26: Australian Distribution Co.
B27: Australian Distribution Co. (Vic) | C27: Australian Distribution Co. (Victoria) | D27: 11222333444 | E27: Vic | F27: Electricity | G27: Distribution | H27: Revenue cap | I27: Calendar | J27: December | K27: 5 | L27: 5 | M27: 2 | N27: distribution determination | O27: 123 Straight Street | Q27: MELBOURNE | R27: Vic | S27: 3000 | T27: PO Box 123 | V27: MELBOURNE | W27: VIC | X27: 3000 | Y27: Bob Smith | Z27: 02 1234 5678 | AA27: bob@auselec.net.au | AB27: NO | AC27: NO | AD27: NO | AE27: NO | AF27: NO | AH27: CBD | AI27: Urban | AJ27: Short rural | AK27: Long rural | AM27: YES | AN27: Australian Distribution Co. (Vic)
B28: Australian Distribution Co. (Gas) | C28: Australian Gas Distribution Co. | D28: 11222333444 | E28: NSW | F28: Gas | G28: Distribution | H28: Weighted average price cap | I28: Financial | J28: June | K28: 5 | L28: 5 | O28: 123 Straight Street | Q28: SYDNEY | R28: NSW | S28: 2000 | T28: PO Box 123 | V28: SYDNEY | W28: NSW | X28: 2000 | Y28: Bob Smith | Z28: 02 1234 5678 | AA28: bob@auselec.net.au | AB28: NO | AC28: NO | AD28: NO | AE28: NO | AF28: NO | AH28: CBD | AI28: Urban | AJ28: Short rural | AK28: Long rural | AM28: NO | AN28: Australian Distribution Co. (Vic)
B29: Australian Transmission Co. | C29: Australian Transmission Co. | D29: 11222333444 | E29: - | F29: Electricity | G29: Transmission | H29: Revenue cap | I29: Financial | J29: June | K29: 5 | L29: 5 | M29: 5 | N29: transmission determination | O29: 123 Straight Street | Q29: SYDNEY | R29: NSW | S29: 2000 | T29: PO Box 123 | V29: SYDNEY | W29: NSW | X29: 2000 | Y29: Bob Smith | Z29: 02 1234 5678 | AA29: bob@auselec.net.au | AB29: NO | AC29: NO | AD29: NO | AE29: NO | AF29: NO | AH29: CBD | AI29: Urban | AJ29: Short rural | AK29: Long rural | AM29: NO | AN29: Australian Transmission Co.
B30: Central Ranges Pipeline (D) | C30: Central Ranges Pipeline Pty Ltd | D30: 108218355 | E30: NSW | F30: Gas | G30: Distribution | H30: Weighted average price cap | I30: Financial | J30: June | K30: 15 | L30: 5 | M30: 5 | N30: distribution determination | O30: Level 19 | P30: 580 George Street | Q30: SYDNEY | R30: NSW | S30: 2000 | T30: PO Box R41 | V30: ROYAL EXCHANGE | W30: NSW | X30: 1225 | Y30: Scott Young | Z30: 02 9275 0031 | AA30: scott.young@apa.com.au | AB30: NO | AC30: NO | AD30: NO | AE30: NO | AF30: NO | AH30: CBD | AI30: Urban | AJ30: Short rural | AK30: Long rural | AM30: NO
B31: Central Ranges Pipeline (T) | C31: Central Ranges Pipeline Pty Ltd | D31: 108218355 | E31: NSW | F31: Gas | G31: Distribution | H31: Weighted average price cap | I31: Financial | J31: June | K31: 14 | L31: 5 | M31: 5 | N31: transmission determination | O31: Level 19 | P31: 580 George Street | Q31: SYDNEY | R31: NSW | S31: 2000 | T31: PO Box R41 | V31: ROYAL EXCHANGE | W31: NSW | X31: 1225 | Y31: Scott Young | Z31: 02 9275 0031 | AA31: scott.young@apa.com.au | AB31: NO | AC31: NO | AD31: NO | AE31: NO | AF31: NO | AH31: CBD | AI31: Urban | AJ31: Short rural | AK31: Long rural | AM31: NO
B32: CitiPower | C32: CitiPower | D32: 76064651056 | E32: Vic | F32: Electricity | G32: Distribution | H32: Revenue cap | I32: Calendar | J32: December | K32: 5 | L32: 5 | M32: 2 | N32: 2016-20 Distribution Determination | O32: 40 Market Street | Q32: MELBOURNE | R32: Vic | S32: 3000 | T32: Locked Bag 14090 | V32: MELBOURNE | W32: VIC | X32: 8001 | Y32: Hannah Williams | Z32: 03 9683 4088 | AA32: hwilliams@powercor.com.au | AB32: YES | AC32: YES | AD32: NO | AE32: NO | AF32: NO | AH32: CBD | AI32: Urban | AJ32: Short rural | AK32: Long rural | AM32: YES | AN32: CitiPower
B33: Directlink | C33: Directlink | D33: 16779340889 | E33: Qld | F33: Electricity | G33: Transmission | H33: Revenue cap | I33: Financial | J33: June | K33: 9 | L33: 5 | M33: 5 | N33: transmission determination | O33: Level 19, HSBC Building | P33: 580 George Street | Q33: SYDNEY | R33: NSW | S33: 2000 | T33: PO Box R41 | V33: ROYAL EXCHANGE | W33: NSW | X33: 1225 | Y33: Scott Young | Z33: 02 9275 0031 | AA33: scott.young@apa.com.au | AB33: NO | AC33: NO | AD33: NO | AE33: NO | AF33: NO | AH33: CBD | AI33: Urban | AJ33: Short rural | AK33: Long rural | AM33: NO | AN33: Directlink
B34: ElectraNet | C34: ElectraNet | D34: 41094482416 | E34: SA | F34: Electricity | G34: Transmission | H34: Revenue cap | I34: Financial | J34: June | K34: 5 | L34: 5 | M34: 5 | N34: transmission determination | O34: 52-55 East Terrace | P34: Rymill Park | Q34: ADELAIDE | R34: SA | S34: 5000 | T34: PO Box 7096 | U34: Hutt Street Post Office | V34: ADELAIDE | W34: SA | X34: 5000 | Y34: Bill Jackson | Z34: 08 8404 7969 | AA34: jackson.bill@electranet.com.au | AB34: NO | AC34: NO | AD34: NO | AE34: NO | AF34: NO | AH34: CBD | AI34: Urban | AJ34: Short rural | AK34: Long rural | AM34: NO | AN34: ElectraNet
B35: Endeavour Energy | C35: Endeavour Energy | D35: 11247365823 | E35: NSW | F35: Electricity | G35: Distribution | H35: Revenue cap | I35: Financial | J35: June | K35: 5 | L35: 5 | M35: 5 | N35: 2014-19 Distribution Determination | O35: 51 Huntingwood Drive | Q35: HUNTINGWOOD | R35: NSW | S35: 2148 | T35: PO Box 811 | V35: SEVEN HILLS | W35: NSW | X35: 1730 | Y35: Jon Hocking | Z35: 02 9853 4386 / 0407 348 156 | AA35: Jon.Hocking@Endeavourenergy.com.au | AB35: NO | AC35: YES | AD35: YES | AE35: YES | AF35: NO | AH35: CBD | AI35: Urban | AJ35: Short rural | AK35: Long rural | AM35: YES | AN35: Endeavour Energy
B36: Energex | C36: Energex | D36: 40078849055 | E36: Qld | F36: Electricity | G36: Distribution | H36: Revenue cap | I36: Financial | J36: June | K36: 5 | L36: 5 | M36: 5 | N36: 2015-20 Distribution Determination | O36: 26 Reddacliff Street | Q36: NEWSTEAD | R36: Qld | S36: 4006 | T36: 26 Reddacliff Street | V36: NEWSTEAD | W36: QLD | X36: 4006 | Y36: Jenny Doyle, Group Manager Regulatory Affairs | Z36: (07) 3851 6416 | AA36: jenny.doyle@ergon.com.au | AB36: YES | AC36: YES | AD36: YES | AE36: NO | AF36: NO | AH36: CBD | AI36: Urban | AJ36: Short rural | AK36: Long rural | AM36: YES | AN36: Energex
B37: Ergon Energy | C37: Ergon Energy | D37: 50087646062 | E37: Qld | F37: Electricity | G37: Distribution | H37: Revenue cap | I37: Financial | J37: June | K37: 5 | L37: 5 | M37: 5 | N37: 2015-20 Distribution Determination | O37: 22 Walker Street | Q37: TOWNSVILLE | R37: Qld | S37: 4810 | T37: Po Box 264 | V37: FORTITUDE VALLEY | W37: QLD | X37: 4006 | Y37: Jenny Doyle, Group Manager Regulatory Affairs | Z37: (07) 3851 6416 | AA37: jenny.doyle@ergon.com.au | AB37: NO | AC37: YES | AD37: YES | AE37: YES | AF37: NO | AH37: CBD | AI37: Urban | AJ37: Short rural | AK37: Long rural | AM37: YES | AN37: Ergon Energy
B38: Essential Energy | C38: Essential Energy | D38: 37428185226 | E38: NSW | F38: Electricity | G38: Distribution | H38: Revenue cap | I38: Financial | J38: June | K38: 5 | L38: 5 | M38: 5 | N38: 2014-19 Distribution Determination | O38: 8 Buller Street | Q38: PORT MACQUARIE | R38: NSW | S38: 2444 | T38: PO Box 5730 | V38: PORT MACQUARIE | W38: NSW | X38: 2444 | Y38: Catherine Waddell | Z38: 02 6338 3553 | AA38: catherine.waddell@essentialenergy.com.au | AB38: NO | AC38: NO | AD38: YES | AE38: YES | AF38: NO | AH38: CBD | AI38: Urban | AJ38: Short rural | AK38: Long rural | AM38: YES | AN38: Essential Energy
B39: Jemena Electricity | C39: Jemena Electricity | D39: 82064651083 | E39: Vic | F39: Electricity | G39: Distribution | H39: Revenue cap | I39: Calendar | J39: December | K39: 5 | L39: 5 | M39: 2 | N39: 2016-20 Distribution Determination | O39: Level 16 | P39: 567 Collins Street | Q39: MELBOURNE | R39: VIC | S39: 3000 | T39: PO Box 16182 | V39: MELBOURNE | W39: VIC | X39: 8001 | Y39: Matthew Serpell | Z39: 03 9173 8231 | AA39: matthew.serpell@jemena.com.au | AB39: NO | AC39: YES | AD39: YES | AE39: NO | AF39: NO | AH39: CBD | AI39: Urban | AJ39: Short rural | AK39: Long rural | AM39: YES | AN39: Jemena Electricity
B40: JGN | C40: Jemena Gas Networks (NSW) Ltd | D40: 003 004 322 | E40: NSW | F40: Gas | G40: Distribution | H40: Weighted average price cap | I40: Financial | J40: June | K40: 5 | L40: 5 | Y40: please provide contact details | AB40: NO | AC40: NO | AD40: NO | AE40: NO | AF40: NO | AH40: CBD | AI40: Urban | AJ40: Short rural | AK40: Long rural | AM40: NO | AN40: JGN
B41: Multinet Gas | C41: Multinet Gas (DB No.1) Pty Ltd (ACN 086 026 986), Multinet Gas (DB No.2) Pty Ltd (ACN 086 230 122) | D41: 086026986 | E41: Vic | F41: Gas | G41: Distribution | H41: Weighted average price cap | I41: Calendar | J41: December | K41: 5 | L41: 5 | M41: x | O41: 43-45 Centreway | Q41: MT WAVERLEY | R41: Vic | S41: 3149 | Y41: Andrew Schille | Z41: 03 8846 9860 | AA41: andrew.schille@ue.com.au | AB41: NO | AC41: NO | AD41: NO | AE41: NO | AF41: NO | AH41: CBD | AI41: Urban | AJ41: Short rural | AK41: Long rural | AM41: NO | AN41: Multinet Gas
B42: Murraylink | C42: Murraylink | D42: 79181207909 | E42: SA | F42: Electricity | G42: Transmission | H42: Revenue cap | I42: Financial | J42: June | K42: 5 | L42: 5 | M42: 5 | N42: transmission determination | O42: Level 19 | P42: 580 George Street | Q42: SYDNEY | R42: NSW | S42: 2000 | T42: PO Box R41 | V42: ROYAL EXCHANGE | W42: NSW | X42: 1225 | Y42: Scott Young | Z42: 02 9275 0031 | AA42: scott.young@apa.com.au | AB42: NO | AC42: NO | AD42: NO | AE42: NO | AF42: NO | AH42: CBD | AI42: Urban | AJ42: Short rural | AK42: Long rural | AM42: NO | AN42: Murraylink
B43: Power and Water | C43: Power and Water Corporation | D43: 15947352360 | E43: NT | F43: Electricity | G43: Distribution | H43: Revenue cap | I43: Financial | J43: June | K43: 5 | L43: 5 | M43: x | N43: distribution determination | O43: GPO Box 1921 | Q43: DARWIN | R43: NT | S43: 801 | T43: GPO Box 1921 | V43: DARWIN | W43: NT | X43: 801 | Y43: Lucy Moon | Z43: 08 8924 5822 | AA43: Lucy.Moon@powerwater.com.au | AB43: YES | AC43: YES | AD43: YES | AE43: YES | AF43: NO | AH43: CBD | AI43: Urban | AJ43: Short rural | AK43: Long rural | AM43: NO | AN43: Power and Water
B44: Powercor Australia | C44: Powercor Australia | D44: 89064651109 | E44: Vic | F44: Electricity | G44: Distribution | H44: Revenue cap | I44: Calendar | J44: December | K44: 5 | L44: 5 | M44: 2 | N44: 2016-20 Distribution Determination | O44: 40 Market Street | Q44: MELBOURNE | R44: Vic | S44: 3000 | T44: Locked bag 14090 | V44: MELBOURNE | W44: VIC | X44: 8001 | Y44: Hannah Williams | Z44: 03 9683 4088 | AA44: hwilliams@powercor.com.au | AB44: NO | AC44: NO | AD44: YES | AE44: YES | AF44: NO | AH44: CBD | AI44: Urban | AJ44: Short rural | AK44: Long rural | AM44: YES | AN44: Powercor Australia
B45: Powerlink | C45: Queensland Electricity Transmission Corporation Limited trading as Powerlink Queensland | D45: 82078849233 | E45: Qld | F45: Electricity | G45: Transmission | H45: Revenue cap | I45: Financial | J45: June | K45: 5 | L45: 5 | M45: 5 | N45: transmission determination | O45: 33 Harold St | Q45: VIRGINIA | R45: Qld | S45: 4014 | T45: PO Box 1193 | V45: VIRGINIA | W45: QLD | X45: 4014 | Y45: Jennifer Harris | Z45: 07 3860 2667 | AA45: jharris@powerlink.com.au | AB45: NO | AC45: NO | AD45: NO | AE45: NO | AF45: NO | AH45: CBD | AI45: Urban | AJ45: Short rural | AK45: Long rural | AM45: NO | AN45: Powerlink
B46: Roma to Brisbane Pipeline | C46: APT Petroleum Pipelines Limited t/a Roma to Brisbane Pipeline | D46: 009 737 393 | E46: Qld | F46: Gas | G46: Transmission | H46: Weighted average price cap | I46: Financial | J46: June | K46: 5 | L46: 5 | M46: x | N46: n/a | O46: 580 George Street | Q46: SYDNEY | R46: NSW | S46: 2000 | T46: PO Box R41 | V46: ROYAL EXCHANGE | W46: NSW | X46: 1225 | Y46: Mark Allen | Z46: 02 9275 0010 | AA46: mark.allen@apa.com.au | AB46: NO | AC46: NO | AD46: NO | AE46: NO | AF46: NO | AH46: CBD | AI46: Urban | AJ46: Short rural | AK46: Long rural | AM46: NO | AN46: Roma to Brisbane Pipeline
B47: SA Power Networks | C47: SA Power Networks | D47: 13332330749 | E47: SA | F47: Electricity | G47: Distribution | H47: Revenue cap | I47: Financial | J47: June | K47: 5 | L47: 5 | M47: 5 | N47: 2015-20 Distribution Determination | O47: 1 Anzac Highway | Q47: KESWICK | R47: SA | S47: 5035 | T47: GPO Box 77 | V47: ADELAIDE | W47: SA | X47: 5000 | Y47: Richard Sibly | Z47: 08 8404 5613 | AA47: richard.sibly@sapowernetworks.com.au | AB47: NO | AC47: NO | AD47: YES | AE47: YES | AF47: NO | AH47: CBD | AI47: Urban | AJ47: Short rural | AK47: Long rural | AM47: NO | AN47: SA Power Networks
B48: TasNetworks (D) | C48: TasNetworks (D) | D48: 24167357299 | E48: Tas | F48: Electricity | G48: Distribution | H48: Revenue cap | I48: Financial | J48: June | K48: 5 | L48: 5 | M48: 5 | N48: distribution determination | O48: 1-7 Maria Street | Q48: LENAH VALLEY | R48: Tas | S48: 7008 | T48: PO Box 606 | V48: MOONAH | W48: Tas | X48: 7009 | Y48: John Sayers | Z48: 03 6271 6469 | AA48: john.sayers@tasnetworks.com.au | AB48: YES | AC48: YES | AD48: YES | AE48: YES | AF48: YES | AH48: Critical Infrastructure | AI48: High density commercial | AJ48: Urban | AK48: High density rural | AL48: Low density rural | AM48: YES | AN48: TasNetworks (D)
B49: TasNetworks (T) | C49: TasNetworks (T) | D49: 24167357299 | E49: Tas | F49: Electricity | G49: Transmission | H49: Revenue cap | I49: Financial | J49: June | K49: 5 | L49: 5 | M49: 5 | N49: transmission determination | O49: 1-7 Maria Street | Q49: LENAH VALLEY | R49: Tas | S49: 7008 | T49: PO Box 606 | V49: MOONAH | W49: Tas | X49: 7009 | Y49: John Sayers | Z49: 03 6271 6469 | AA49: john.sayers@tasnetworks.com.au | AB49: NO | AC49: NO | AD49: NO | AE49: NO | AF49: NO | AH49: CBD | AI49: Urban | AJ49: Short rural | AK49: Long rural | AM49: NO | AN49: TasNetworks (T)
B50: TransGrid | C50: NSW Electricity Networks Operations Pty Ltd trading as TransGrid | D50: 70 250 995 390 | E50: NSW | F50: Electricity | G50: Transmission | H50: Revenue cap | I50: Financial | J50: June | K50: 4 | L50: 5 | M50: 5 | N50: transmission determination | O50: 180 Thomas Street | Q50: SYDNEY | R50: NSW | S50: 2000 | T50: PO Box A1000 | V50: SYDNEY SOUTH | W50: NSW | X50: 1235 | Y50: Garrie Chubb | Z50: 0408 210 221 | AA50: garrie.chubb@transgrid.com.au | AB50: NO | AC50: NO | AD50: NO | AE50: NO | AF50: NO | AH50: CBD | AI50: Urban | AJ50: Short rural | AK50: Long rural | AM50: NO | AN50: TransGrid
B51: United Energy | C51: United Energy | D51: 70064651029 | E51: Vic | F51: Electricity | G51: Distribution | H51: Revenue cap | I51: Calendar | J51: December | K51: 5 | L51: 5 | M51: 2 | N51: 2016-20 Distribution Determination | O51: Level 3 | P51: 6 Nexus Court | Q51: MULGRAVE | R51: Vic | S51: 3149 | T51: PO Box 449 | V51: MOUNT WAVERLEY | W51: VIC | X51: 3170 | Y51: Mathew Abraham | Z51: 03 8846 9758 | AA51: mathew.abraham@ue.com.au | AB51: NO | AC51: NO | AD51: YES | AE51: NO | AF51: NO | AH51: CBD | AI51: Urban | AJ51: Short rural | AK51: Long rural | AM51: YES | AN51: United Energy
Z54: For EB & Reset RINs only | AE54: For AARs only
B55: The Reg Year Ending (dms_RYE) must be set to the last year of the regulatory period. For forecast data is is usually (FRCP_y5) for actual it is a single year (CRY). For historical actual data the RYE will need to be set manually in the business details sheet by setting the dms_Multiyear_flag to 1 and putting the correct value in 'dms_Specified_FinalYear. See cells C67:C68 | N55: Drop down selector box for CA & Reset RINs. | O55: For CA & Reset RINs only | Z55: for DNSP only | AE55: For DNSPs only
B56: dms_Model_List | C56: dms_Worksheet_List | E56: dms_RYE_Formula_Result | N56: dms_0203_ProjectType | O56: dms_020303_01_UOM | P56: dms_020501_01_UOM | Q56: dms_020501_02_UOM | R56: dms_020501_03_UOM | S56: dms_020501_04_UOM | T56: dms_020603_01_UOM | U56: dms_020701_01_UOM | V56: dms_020701_02_UOM | W56: dms_020701_01_Rows | X56: dms_040102_01_UOM | Y56: dms_040102_04_UOM | Z56: dms_030601_01_UOM | AA56: dms_030601_02_UOM | AB56: dms_030701_01_UOM | AC56: dms_030702_01_UOM | AD56: dms_030703_01_UOM | AE56: dms_030605_UOM | AF56: dms_03060703_UOM
B57: ARR | C57: ANNUAL REPORTING STATEMENT | E57: =LEFT(dms_SingleYear_FinalYear_Result,2)&RIGHT(dms_SingleYear_FinalYear_Result,2) -> 2018 | F57: =LEFT(dms_SingleYear_FinalYear_Result,2)&RIGHT(dms_SingleYear_FinalYear_Result,2) | H57: Formula errors are OK | N57: New line on new route - single circuit | O57: Circuit line length in km | P57: 0's | Q57: 0's | R57: 0's | S57: 0's | T57: 0's | U57: km | V57: km | W57: Route line length within zone | X57: 0's | Y57: days | Z57: minutes/customer | AA57: minutes/customer | AB57: Customer / km | AC57: % | AD57: km | AE57: number | AF57: number
B58: CA | C58: CATEGORY ANALYSIS | E58: =LEFT(dms_SingleYear_FinalYear_Result,2)&RIGHT(dms_SingleYear_FinalYear_Result,2) -> 2018 | F58: =LEFT(dms_SingleYear_FinalYear_Result,2)&RIGHT(dms_SingleYear_FinalYear_Result,2) | H58: Formula errors are OK | N58: New line on new route - dual circuit | O58: Circuit line length in km | P58: 0's | Q58: 0's | R58: 0's | S58: 0's | T58: 0's | U58: 0's | V58: 0's | W58: Number of maintenance spans | X58: 0's | Y58: 0's | Z58: minutes/customer | AA58: minutes/customer | AB58: MWh/customer | AC58: Number of spans | AE58: number | AF58: number
B59: CESS | C59: CAPITLAL EXPENDITURE SHARING SCHEMING | E59: 2016 | F59: =LEFT(dms_SingleYear_FinalYear_Result,2)&RIGHT(dms_SingleYear_FinalYear_Result,2) | N59: New line on new route - other | O59: Circuit line length in km | P59: MVA added | Q59: MVA added | R59: MVA added | S59: MVA added | T59: 0's | U59: km | V59: km | W59: Total length of maintenance spans | X59: 0's | Y59: $0s | Z59: interruptions/customer | AA59: interruptions/customer | AB59: kVA / customer | AC59: Number of spans | AE59: number | AF59: number
B60: CPI | C60: CPI | N60: Line rebuild over existing route - single circuit | O60: Circuit line length in km | P60: 0's | Q60: 0's | R60: 0's | S60: 0's | T60: 0's | U60: km | V60: km | W60: Length of vegetation corridors | X60: $0s | Y60: 0's | Z60: interruptions/customer | AA60: interruptions/customer | AC60: Number of spans | AE60: number | AF60: number
B61: EB | C61: ECONOMIC BENCHMARKING | E61: =LEFT(dms_SingleYear_FinalYear_Result,2)&RIGHT(dms_SingleYear_FinalYear_Result,2) -> 2018 | F61: =LEFT(dms_SingleYear_FinalYear_Result,2)&RIGHT(dms_SingleYear_FinalYear_Result,2) | H61: Formula errors are OK | N61: Line rebuild over existing route - dual circuit | O61: Number | P61: total spend $0s | Q61: total spend $0s | R61: total spend $0s | S61: total spend $0s | T61: (per cent) | U61: 0's | V61: 0's | W61: Average number of trees per maintenance span | AC61: Number of spans | AE61: number | AF61: (per cent)
B62: PTRM | C62: POST TAX REVENUE MODEL | E62: =LEFT(dms_MultiYear_FinalYear_Result,2)&RIGHT(dms_MultiYear_FinalYear_Result,2) -> 2025 | F62: =LEFT(dms_MultiYear_FinalYear_Result,2)&RIGHT(dms_MultiYear_FinalYear_Result,2) | N62: Reconductor - Single circuit | O62: Number | P62: net circuit km added | Q62: net circuit km added | R62: net circuit km added | S62: net circuit km added | U62: years | V62: years | W62: Average frequency of cutting cycle | AC62: Years | AE62: number
B63: Reset | C63: REGULATORY REPORTING STATEMENT | E63: =LEFT(dms_MultiYear_FinalYear_Result,2)&RIGHT(dms_MultiYear_FinalYear_Result,2) -> 2025 | F63: =LEFT(dms_MultiYear_FinalYear_Result,2)&RIGHT(dms_MultiYear_FinalYear_Result,2) | H63: Formula errors are OK | N63: Reconductor - Dual circuit | O63: Number | P63: total spend $0s | Q63: total spend $0s | R63: total spend $0s | S63: total spend $0s | AC63: Years | AE63: number
B64: RFM | C64: ROLL FORWARD MODEL | E64: =LEFT(dms_CRCP_FinalYear_Result,2)&RIGHT(dms_CRCP_FinalYear_Result,2) -> 2018 | F64: =LEFT(dms_CRCP_FinalYear_Result,2)&RIGHT(dms_CRCP_FinalYear_Result,2) | N64: Other | P64: net circuit km added | Q64: net circuit km added | R64: net circuit km added | S64: net circuit km added | AC64: Trees | AE64: number
B65: WACC | C65: WEIGHTED AVERAGE COST OF CAPITAL | E65: =LEFT(dms_MultiYear_FinalYear_Result,2)&RIGHT(dms_MultiYear_FinalYear_Result,2) -> 2025 | F65: =LEFT(dms_MultiYear_FinalYear_Result,2)&RIGHT(dms_MultiYear_FinalYear_Result,2) | P65: total spend $0s | Q65: total spend $0s | R65: total spend $0s | S65: total spend $0s | AC65: Trees | AE65: number
P66: 0's | R66: $0s | AC66: Defects | AE66: number
B67: dms_DataQuality_List | P67: 0's | AC67: Defects | AE67: number
B68: Actual | P68: 0's | AC68: Spans | AE68: number
B69: Estimate | P69: $0s | AC69: km | AE69: (per cent)
B70: Consolidated | AC70: Spans | AE70: (per cent)
B71: Recast
B72: Public
O73: For PTRM files - this field set the text for the named range "DMS_Xfactor" which in all cases is simply the text "x factors" - this saves putting in each old gas PTRM file | Z73: for TNSP only
B74: For all files either AER or business needs to be able to specify the type of submission | C74: For PTRM & RFM templates we must provide a choice in case they change their form of control - otherwise it is drawn from the business specific lookup table above. | O74: DMS_Xfactor | Z74: dms_030601_01_UOM | AB74: dms_030701_01_UOM | AC74: dms_030702_01_UOM
B75: dms_SourceList | C75: dms_FormControl_Choices | O75: x factors | Z75: % | AB75: Number of spans | AC75: km
B76: After appeal | C76: Revenue cap | Z76: number | AB76: Years | AC76: %
B77: Draft decision | C77: Revenue yield | Z77: number | AB77: Trees | AC77: km
B78: Final decision | C78: Weighted average price cap | Z78: % | AB78: Defects | AC78: number
B79: PTRM update 1 | Z79: number | AB79: Number of spans
B80: PTRM update 2 | Z80: number | AB80: km
B81: PTRM update 3 | Z81: % | AB81: km
B82: PTRM update 4 | Z82: number | AB82: Number of spans
B83: PTRM update 5 | Z83: number
B84: PTRM update 6 | Z84: %
B85: PTRM update 7 | Z85: number
B86: Regulatory proposal | Z86: %
B87: Reporting | Z87: number
B88: Revised regulatory proposal | Z88: %
Z89: number
B93: Reason for interruption | C93: dms_Reason_Interruption_Detailed | D93: dms_Reason_Interruption | E93: dms_STPIS_Exclusion_List | F93: dms_020301_ProjectType_List | G93: dms_020302_ProjectType_List
B94: Animal | C94: Animal impact | D94: Animal | E94: Weather | F94: New substation establishment | G94: New line on new route - single circuit
C95: Animal nesting/burrowing, etc and other | D95: Asset failure | E95: Equipment failure | F95: Capacity upgrade | G95: New line on new route - dual circuit
C96: Other | D96: Other | E96: Operational error | F96: Voltage upgrade | G96: New line on new route - other
B97: Asset failure | C97: LV | D97: Overloads | E97: Vegetation | F97: Other | G97: Line rebuild over existing route - single circuit
C98: Distribution substation | D98: Planned | E98: Animals | G98: Line rebuild over existing route - dual circuit
C99: HV | D99: Network business | E99: Third party impacts | G99: Reconductor - Single circuit
C100: Zone substation | D100: Third party | E100: Transmission failure | G100: Reconductor - Dual circuit
C101: Subtransmission | D101: Unknown | E101: Load shedding | G101: Reconductor - Other
B102: Other | C102: insert description of 'other' | D102: Vegetation | E102: Inter-distributor connection failure | G102: Line upgrade - raising/retensoring
B103: Overloads | C103: - | D103: Weather | E103: Other | G103: Line upgrade - voltage upgrade
B104: Planned | C104: - | D104: 2 - STPIS Exclusion (3.3)(a) | G104: Line upgrade - capacity
B105: Network business | C105: Network error | D105: 3 - STPIS Exclusion (3.3)(a) | G105: String spare circuit
C106: Switching and protection error | D106: 4 - STPIS Exclusion (3.3)(a) | G106: Other
B107: Third party | C107: Fire | D107: 5 - STPIS Exclusion (3.3)(a)
C108: Other | D108: 6 - STPIS Exclusion (3.3)(a)
C109: Dig-in | D109: 7 - STPIS Exclusion (3.3)(a)
C110: Unauthorised access
C111: Vehicle impact
B112: Unknown | C112: Unknown
B113: Vegetation | C113: Blow-in/Fall-in - NSP responsibility
C114: Grow-in - NSP responsibility
C115: Blow-in/Fall-in - Other responsible party
C116: Grow-in - Other responsible party
B117: Weather
B118: 2 - STPIS Exclusion (3.3)(a)
B119: 3 - STPIS Exclusion (3.3)(a)
B120: 4 - STPIS Exclusion (3.3)(a)
B121: 5 - STPIS Exclusion (3.3)(a)
B122: 6 - STPIS Exclusion (3.3)(a)
B123: 7 - STPIS Exclusion (3.3)(a)
B131: These are indeces and lookup values for various dates. All step from the value placed in FRCP_y1 on the business and other details worksheet | C131: =IF(dms_FifthFeeder_flag_NSP="NO","This NSP has only 4 feeder categories","This NSP has 5 feeder categories") -> This NSP has 5 feeder categories | O131: These date tables are currently used in the Recast templates to provide column headings and conditional formatting
B132: dms_FRCPlength_Num_List | C132: dms_FinalYear_List | D132: dms_CRCPlength_Num_List | E132: dms_CFinalYear_List | F132: dms_FRCP_years | H132: dms_CRCP_years | J132: dms_CRCP_index | L132: dms_Financial_Years | M132: dms_Calendar_Years | O132: CRY from input cell on business sheet | P132: CRY - financial | Q132: dms_FinYears | R132: CRY calendar | S132: dms_CalYears
B133: 1 | C133: dms_FRCP_y1 | D133: 1 | E133: CRCP_y1 | F133: =FRCP_y1 -> 2020-21 | G133: dms_FRCP_y1 | H133: =IF(dms_RPT="financial",VALUE(LEFT(dms_FRCP_y1,4)-1)&"-"&TEXT(VALUE(MID(dms_FRCP_y1,3,2)),"00"),VALUE(LEFT(dms_FRCP_y1,4)-1)) -> 2019-20 | I133: dms_CRCP_yZ | J133: 1 | L133: 2005-06 | M133: 2006 | O133: =CRY -> 2017-18 | P133: =VALUE(LEFT(CRY,4))&"-"&TEXT(MID(CRY,3,2)+1,"00") -> 2017-18 | Q133: dms_CRYf_y1 | R133: =VALUE(LEFT(CRY,4)+1) -> 2018 | S133: dms_CRYc_y1
B134: 2 | C134: dms_FRCP_y2 | D134: 2 | E134: CRCP_y2 | F134: =IF(dms_RPT="financial",VALUE(LEFT(dms_FRCP_y1,4)+1)&"-"&TEXT(VALUE(RIGHT(dms_FRCP_y1,2)+1),"00"),VALUE(LEFT(dms_FRCP_y1,4)+1)) -> 2021-22 | G134: dms_FRCP_y2 | H134: =IF(dms_RPT="financial",VALUE(LEFT(dms_CRCP_yZ,4)-1)&"-"&TEXT(VALUE(MID(dms_CRCP_yZ,3,2)),"00"),VALUE(LEFT(dms_CRCP_yZ,4)-1)) -> 2018-19 | I134: dms_CRCP_yY | J134: 2 | L134: 2006-07 | M134: 2007 | P134: =VALUE(LEFT(dms_CRYf_y1,4)+1)&"-"&TEXT(MID(dms_CRYf_y1,3,2)+2,"00") -> 2018-19 | Q134: dms_CRYf_y2 | R134: =VALUE(LEFT(dms_CRYc_y1,4)+1) -> 2019 | S134: dms_CRYc_y2
B135: 3 | C135: dms_FRCP_y3 | D135: 3 | E135: CRCP_y3 | F135: =IF(dms_RPT="financial",VALUE(LEFT(dms_FRCP_y2,4)+1)&"-"&TEXT(VALUE(RIGHT(dms_FRCP_y2,2)+1),"00"),VALUE(LEFT(dms_FRCP_y2,4)+1)) -> 2022-23 | G135: dms_FRCP_y3 | H135: =IF(dms_RPT="financial",VALUE(LEFT(dms_CRCP_yY,4)-1)&"-"&TEXT(VALUE(MID(dms_CRCP_yY,3,2)),"00"),VALUE(LEFT(dms_CRCP_yY,4)-1)) -> 2017-18 | I135: dms_CRCP_yX | J135: 3 | L135: 2007-08 | M135: 2008 | P135: =VALUE(LEFT(dms_CRYf_y2,4)+1)&"-"&TEXT(MID(dms_CRYf_y2,3,2)+2,"00") -> 2019-20 | Q135: dms_CRYf_y3 | R135: =VALUE(LEFT(dms_CRYc_y2,4)+1) -> 2020 | S135: dms_CRYc_y3
B136: 4 | C136: dms_FRCP_y4 | D136: 4 | E136: CRCP_y4 | F136: =IF(dms_RPT="financial",VALUE(LEFT(dms_FRCP_y3,4)+1)&"-"&TEXT(VALUE(RIGHT(dms_FRCP_y3,2)+1),"00"),VALUE(LEFT(dms_FRCP_y3,4)+1)) -> 2023-24 | G136: dms_FRCP_y4 | H136: =IF(dms_RPT="financial",VALUE(LEFT(dms_CRCP_yX,4)-1)&"-"&TEXT(VALUE(MID(dms_CRCP_yX,3,2)),"00"),VALUE(LEFT(dms_CRCP_yX,4)-1)) -> 2016-17 | I136: dms_CRCP_yW | J136: 4 | L136: 2008-09 | M136: 2009 | P136: =VALUE(LEFT(dms_CRYf_y3,4)+1)&"-"&TEXT(MID(dms_CRYf_y3,3,2)+2,"00") -> 2020-21 | Q136: dms_CRYf_y4 | R136: =VALUE(LEFT(dms_CRYc_y3,4)+1) -> 2021 | S136: dms_CRYc_y4
B137: 5 | C137: dms_FRCP_y5 | D137: 5 | E137: CRCP_y5 | F137: =IF(dms_RPT="financial",VALUE(LEFT(dms_FRCP_y4,4)+1)&"-"&TEXT(VALUE(RIGHT(dms_FRCP_y4,2)+1),"00"),VALUE(LEFT(dms_FRCP_y4,4)+1)) -> 2024-25 | G137: dms_FRCP_y5 | H137: =IF(dms_RPT="financial",VALUE(LEFT(dms_CRCP_yW,4)-1)&"-"&TEXT(VALUE(MID(dms_CRCP_yW,3,2)),"00"),VALUE(LEFT(dms_CRCP_yW,4)-1)) -> 2015-16 | I137: dms_CRCP_yV | J137: 5 | L137: 2009-10 | M137: 2010 | P137: =VALUE(LEFT(dms_CRYf_y4,4)+1)&"-"&TEXT(MID(dms_CRYf_y4,3,2)+2,"00") -> 2021-22 | Q137: dms_CRYf_y5 | R137: =VALUE(LEFT(dms_CRYc_y4,4)+1) -> 2022 | S137: dms_CRYc_y5
B138: 6 | C138: dms_FRCP_y6 | D138: 6 | E138: CRCP_y6 | F138: =IF(dms_RPT="financial",VALUE(LEFT(dms_FRCP_y5,4)+1)&"-"&TEXT(VALUE(RIGHT(dms_FRCP_y5,2)+1),"00"),VALUE(LEFT(dms_FRCP_y5,4)+1)) -> 2025-26 | G138: dms_FRCP_y6 | H138: =IF(dms_RPT="financial",VALUE(LEFT(dms_CRCP_yV,4)-1)&"-"&TEXT(VALUE(MID(dms_CRCP_yV,3,2)),"00"),VALUE(LEFT(dms_CRCP_yV,4)-1)) -> 2014-15 | I138: dms_CRCP_yU | J138: 6 | L138: 2010-11 | M138: 2011 | P138: =VALUE(LEFT(dms_CRYf_y5,4)+1)&"-"&TEXT(MID(dms_CRYf_y5,3,2)+2,"00") -> 2022-23 | Q138: dms_CRYf_y6 | R138: =VALUE(LEFT(dms_CRYc_y5,4)+1) -> 2023 | S138: dms_CRYc_y6
B139: 7 | C139: dms_FRCP_y7 | D139: 7 | E139: CRCP_y7 | F139: =IF(dms_RPT="financial",VALUE(LEFT(dms_FRCP_y6,4)+1)&"-"&TEXT(VALUE(RIGHT(dms_FRCP_y6,2)+1),"00"),VALUE(LEFT(dms_FRCP_y6,4)+1)) -> 2026-27 | G139: dms_FRCP_y7 | H139: =IF(dms_RPT="financial",VALUE(LEFT(dms_CRCP_yU,4)-1)&"-"&TEXT(VALUE(MID(dms_CRCP_yU,3,2)),"00"),VALUE(LEFT(dms_CRCP_yU,4)-1)) -> 2013-14 | I139: dms_CRCP_yT | J139: 7 | L139: 2011-12 | M139: 2012 | P139: =VALUE(LEFT(dms_CRYf_y6,4)+1)&"-"&TEXT(MID(dms_CRYf_y6,3,2)+2,"00") -> 2023-24 | Q139: dms_CRYf_y7 | R139: =VALUE(LEFT(dms_CRYc_y6,4)+1) -> 2024 | S139: dms_CRYc_y7
B140: 8 | C140: dms_FRCP_y8 | D140: 8 | E140: CRCP_y8 | F140: =IF(dms_RPT="financial",VALUE(LEFT(dms_FRCP_y7,4)+1)&"-"&TEXT(VALUE(RIGHT(dms_FRCP_y7,2)+1),"00"),VALUE(LEFT(dms_FRCP_y7,4)+1)) -> 2027-28 | G140: dms_FRCP_y8 | H140: =IF(dms_RPT="financial",VALUE(LEFT(dms_CRCP_yT,4)-1)&"-"&TEXT(VALUE(MID(dms_CRCP_yT,3,2)),"00"),VALUE(LEFT(dms_CRCP_yT,4)-1)) -> 2012-13 | I140: dms_CRCP_yS | J140: 8 | L140: 2012-13 | M140: 2013 | P140: =VALUE(LEFT(dms_CRYf_y7,4)+1)&"-"&TEXT(MID(dms_CRYf_y7,3,2)+2,"00") -> 2024-25 | Q140: dms_CRYf_y8 | R140: =VALUE(LEFT(dms_CRYc_y7,4)+1) -> 2025 | S140: dms_CRYc_y8
B141: 9 | C141: dms_FRCP_y9 | D141: 9 | E141: CRCP_y9 | F141: =IF(dms_RPT="financial",VALUE(LEFT(dms_FRCP_y8,4)+1)&"-"&TEXT(VALUE(RIGHT(dms_FRCP_y8,2)+1),"00"),VALUE(LEFT(dms_FRCP_y8,4)+1)) -> 2028-29 | G141: dms_FRCP_y9 | H141: =IF(dms_RPT="financial",VALUE(LEFT(dms_CRCP_yS,4)-1)&"-"&TEXT(VALUE(MID(dms_CRCP_yS,3,2)),"00"),VALUE(LEFT(dms_CRCP_yS,4)-1)) -> 2011-12 | I141: dms_CRCP_yR | J141: 9 | L141: 2013-14 | M141: 2014 | P141: =VALUE(LEFT(dms_CRYf_y8,4)+1)&"-"&TEXT(MID(dms_CRYf_y8,3,2)+2,"00") -> 2025-26 | Q141: dms_CRYf_y9 | R141: =VALUE(LEFT(dms_CRYc_y8,4)+1) -> 2026 | S141: dms_CRYc_y9
B142: 10 | C142: dms_FRCP_y10 | D142: 10 | E142: CRCP_y10 | F142: =IF(dms_RPT="financial",VALUE(LEFT(dms_FRCP_y9,4)+1)&"-"&TEXT(VALUE(RIGHT(dms_FRCP_y9,2)+1),"00"),VALUE(LEFT(dms_FRCP_y9,4)+1)) -> 2029-30 | G142: dms_FRCP_y10 | H142: =IF(dms_RPT="financial",VALUE(LEFT(dms_CRCP_yR,4)-1)&"-"&TEXT(VALUE(MID(dms_CRCP_yR,3,2)),"00"),VALUE(LEFT(dms_CRCP_yR,4)-1)) -> 2010-11 | I142: dms_CRCP_yQ | J142: 10 | L142: 2014-15 | M142: 2015 | P142: =VALUE(LEFT(dms_CRYf_y9,4)+1)&"-"&TEXT(MID(dms_CRYf_y9,3,2)+2,"00") -> 2026-27 | Q142: dms_CRYf_y10 | R142: =VALUE(LEFT(dms_CRYc_y9,4)+1) -> 2027 | S142: dms_CRYc_y10
B143: 11 | C143: dms_FRCP_y11 | D143: 11 | E143: CRCP_y11 | F143: =IF(dms_RPT="financial",VALUE(LEFT(dms_FRCP_y10,4)+1)&"-"&TEXT(VALUE(RIGHT(dms_FRCP_y10,2)+1),"00"),VALUE(LEFT(dms_FRCP_y10,4)+1)) -> 2030-31 | G143: dms_FRCP_y11 | H143: =IF(dms_RPT="financial",VALUE(LEFT(dms_CRCP_yQ,4)-1)&"-"&TEXT(VALUE(MID(dms_CRCP_yQ,3,2)),"00"),VALUE(LEFT(dms_CRCP_yQ,4)-1)) -> 2009-10 | I143: dms_CRCP_yP | J143: 11 | L143: 2015-16 | M143: 2016 | P143: =VALUE(LEFT(dms_CRYf_y10,4)+1)&"-"&TEXT(MID(dms_CRYf_y10,3,2)+2,"00") -> 2027-28 | Q143: dms_CRYf_y11 | R143: =VALUE(LEFT(dms_CRYc_y10,4)+1) -> 2028 | S143: dms_CRYc_y11
B144: 12 | C144: dms_FRCP_y12 | D144: 12 | E144: CRCP_y12 | F144: =IF(dms_RPT="financial",VALUE(LEFT(dms_FRCP_y11,4)+1)&"-"&TEXT(VALUE(RIGHT(dms_FRCP_y11,2)+1),"00"),VALUE(LEFT(dms_FRCP_y11,4)+1)) -> 2031-32 | G144: dms_FRCP_y12 | H144: =IF(dms_RPT="financial",VALUE(LEFT(dms_CRCP_yP,4)-1)&"-"&TEXT(VALUE(MID(dms_CRCP_yP,3,2)),"00"),VALUE(LEFT(dms_CRCP_yP,4)-1)) -> 2008-09 | I144: dms_CRCP_yO | J144: 12 | L144: 2016-17 | M144: 2017 | P144: =VALUE(LEFT(dms_CRYf_y11,4)+1)&"-"&TEXT(MID(dms_CRYf_y11,3,2)+2,"00") -> 2028-29 | Q144: dms_CRYf_y12 | R144: =VALUE(LEFT(dms_CRYc_y11,4)+1) -> 2029 | S144: dms_CRYc_y12
B145: 13 | C145: dms_FRCP_y13 | D145: 13 | E145: CRCP_y13 | F145: =IF(dms_RPT="financial",VALUE(LEFT(dms_FRCP_y12,4)+1)&"-"&TEXT(VALUE(RIGHT(dms_FRCP_y12,2)+1),"00"),VALUE(LEFT(dms_FRCP_y12,4)+1)) -> 2032-33 | G145: dms_FRCP_y13 | H145: =IF(dms_RPT="financial",VALUE(LEFT(dms_CRCP_yO,4)-1)&"-"&TEXT(VALUE(MID(dms_CRCP_yO,3,2)),"00"),VALUE(LEFT(dms_CRCP_yO,4)-1)) -> 2007-08 | I145: dms_CRCP_yN | J145: 13 | L145: 2017-18 | M145: 2018 | P145: =VALUE(LEFT(dms_CRYf_y12,4)+1)&"-"&TEXT(MID(dms_CRYf_y12,3,2)+2,"00") -> 2029-30 | Q145: dms_CRYf_y13 | R145: =VALUE(LEFT(dms_CRYc_y12,4)+1) -> 2030 | S145: dms_CRYc_y13
B146: 14 | C146: dms_FRCP_y14 | D146: 14 | E146: CRCP_y14 | F146: =IF(dms_RPT="financial",VALUE(LEFT(dms_FRCP_y13,4)+1)&"-"&TEXT(VALUE(RIGHT(dms_FRCP_y13,2)+1),"00"),VALUE(LEFT(dms_FRCP_y13,4)+1)) -> 2033-34 | G146: dms_FRCP_y14 | H146: =IF(dms_RPT="financial",VALUE(LEFT(dms_CRCP_yN,4)-1)&"-"&TEXT(VALUE(MID(dms_CRCP_yN,3,2)),"00"),VALUE(LEFT(dms_CRCP_yN,4)-1)) -> 2006-07 | I146: dms_CRCP_yM | J146: 14 | L146: 2018-19 | M146: 2019 | P146: =VALUE(LEFT(dms_CRYf_y13,4)+1)&"-"&TEXT(MID(dms_CRYf_y13,3,2)+2,"00") -> 2030-31 | Q146: dms_CRYf_y14 | R146: =VALUE(LEFT(dms_CRYc_y13,4)+1) -> 2031 | S146: dms_CRYc_y14
B147: 15 | C147: dms_FRCP_y15 | D147: 15 | E147: CRCP_y15 | F147: =IF(dms_RPT="financial",VALUE(LEFT(dms_FRCP_y14,4)+1)&"-"&TEXT(VALUE(RIGHT(dms_FRCP_y14,2)+1),"00"),VALUE(LEFT(dms_FRCP_y14,4)+1)) -> 2034-35 | G147: dms_FRCP_y15 | H147: =IF(dms_RPT="financial",VALUE(LEFT(dms_CRCP_yM,4)-1)&"-"&TEXT(VALUE(MID(dms_CRCP_yM,3,2)),"00"),VALUE(LEFT(dms_CRCP_yM,4)-1)) -> 2005-06 | I147: dms_CRCP_yL | J147: 15 | L147: 2019-20 | M147: 2020 | P147: =VALUE(LEFT(dms_CRYf_y14,4)+1)&"-"&TEXT(MID(dms_CRYf_y14,3,2)+2,"00") -> 2031-32 | Q147: dms_CRYf_y15 | R147: =VALUE(LEFT(dms_CRYc_y14,4)+1) -> 2032 | S147: dms_CRYc_y15
L148: 2020-21 | M148: 2021 | P148: =VALUE(LEFT(dms_CRYf_y15,4)+1)&"-"&TEXT(MID(dms_CRYf_y15,3,2)+2,"00") -> 2032-33 | Q148: dms_CRYf_y16 | R148: =VALUE(LEFT(dms_CRYc_y15,4)+1) -> 2033 | S148: dms_CRYc_y16
B149: These are drop down lists for businesses to select the correct FRCP_y1 on the business and other details worksheet. This also populates the column headings in the worksheets | L149: 2021-22 | M149: 2022 | P149: =VALUE(LEFT(dms_CRYf_y16,4)+1)&"-"&TEXT(MID(dms_CRYf_y16,3,2)+2,"00") -> 2033-34 | Q149: dms_CRYf_y17 | R149: =VALUE(LEFT(dms_CRYc_y16,4)+1) -> 2034 | S149: dms_CRYc_y17
B150: dms_RCP_fyear_list | C150: dms_CRY_ListF | D150: dms_CRY_ListC | E150: dms_RCP_cyear_list | F150: dms_FRCP_fyear_list | G150: dms_FRCP_ListF | H150: dms_FRCP_ListC | I150: dms_FRCP_cyear_list | L150: 2022-23 | M150: 2023 | P150: =VALUE(LEFT(dms_CRYf_y17,4)+1)&"-"&TEXT(MID(dms_CRYf_y17,3,2)+2,"00") -> 2034-35 | Q150: dms_CRYf_y18 | R150: =VALUE(LEFT(dms_CRYc_y17,4)+1) -> 2035 | S150: dms_CRYc_y18
B151: dms_y1 | C151: =CRY -> 2017-18 | D151: 2006 | E151: dms_cy1 | F151: dms_frcp_fy1 | G151: 2010-11 | H151: 2011 | I151: dms_crcp_cy1 | L151: 2023-24 | M151: 2024 | P151: =VALUE(LEFT(dms_CRYf_y18,4)+1)&"-"&TEXT(MID(dms_CRYf_y18,3,2)+2,"00") -> 2035-36 | Q151: dms_CRYf_y19 | R151: =VALUE(LEFT(dms_CRYc_y18,4)+1) -> 2036 | S151: dms_CRYc_y19
B152: dms_y2 | C152: =IF(dms_RPT="financial",VALUE(LEFT(CRY,4)+1)&"-"&TEXT(MID(CRY,3,2)+2,"00"),VALUE(LEFT(CRY,4)+1)) -> 2018-19 | D152: 2007 | E152: dms_cy2 | F152: dms_frcp_fy2 | G152: 2011-12 | H152: 2012 | I152: dms_crcp_cy2 | L152: 2024-25 | M152: 2025 | P152: =VALUE(LEFT(dms_CRYf_y19,4)+1)&"-"&TEXT(MID(dms_CRYf_y19,3,2)+2,"00") -> 2036-37 | Q152: dms_CRYf_y20 | R152: =VALUE(LEFT(dms_CRYc_y19,4)+1) -> 2037 | S152: dms_CRYc_y20
B153: dms_y3 | C153: =IF(dms_RPT="financial",VALUE(LEFT(dms_fy2,4)+1)&"-"&TEXT(MID(dms_fy2,3,2)+2,"00"),VALUE(LEFT(dms_fy2,4)+1)) -> 2019-20 | D153: 2008 | E153: dms_cy3 | F153: dms_frcp_fy3 | G153: 2012-13 | H153: 2013 | I153: dms_crcp_cy3 | L153: 2025-26 | M153: 2026
B154: dms_y4 | C154: =IF(dms_RPT="financial",VALUE(LEFT(dms_fy3,4)+1)&"-"&TEXT(MID(dms_fy3,3,2)+2,"00"),VALUE(LEFT(dms_fy3,4)+1)) -> 2020-21 | D154: 2009 | E154: dms_cy4 | F154: dms_frcp_fy4 | G154: 2013-14 | H154: 2014 | I154: dms_crcp_cy4 | L154: 2026-27 | M154: 2027
B155: dms_y5 | C155: =IF(dms_RPT="financial",VALUE(LEFT(dms_fy4,4)+1)&"-"&TEXT(MID(dms_fy4,3,2)+2,"00"),VALUE(LEFT(dms_fy4,4)+1)) -> 2021-22 | D155: 2010 | E155: dms_cy5 | F155: dms_frcp_fy5 | G155: 2014-15 | H155: 2015 | I155: dms_crcp_cy5 | L155: 2027-28 | M155: 2028
B156: dms_y6 | C156: =IF(dms_RPT="financial",VALUE(LEFT(dms_fy5,4)+1)&"-"&TEXT(MID(dms_fy5,3,2)+2,"00"),VALUE(LEFT(dms_fy5,4)+1)) -> 2022-23 | D156: 2011 | E156: dms_cy6 | F156: dms_frcp_fy6 | G156: 2015-16 | H156: 2016 | I156: dms_crcp_cy6 | L156: 2028-29 | M156: 2029
B157: dms_y7 | C157: =IF(dms_RPT="financial",VALUE(LEFT(dms_fy6,4)+1)&"-"&TEXT(MID(dms_fy6,3,2)+2,"00"),VALUE(LEFT(dms_fy6,4)+1)) -> 2023-24 | D157: 2012 | E157: dms_cy7 | F157: dms_frcp_fy7 | G157: 2016-17 | H157: 2017 | I157: dms_crcp_cy7 | L157: 2029-30 | M157: 2030
B158: dms_y8 | C158: =IF(dms_RPT="financial",VALUE(LEFT(dms_fy7,4)+1)&"-"&TEXT(MID(dms_fy7,3,2)+2,"00"),VALUE(LEFT(dms_fy7,4)+1)) -> 2024-25 | D158: 2013 | E158: dms_cy8 | F158: dms_frcp_fy8 | G158: 2017-18 | H158: 2018 | I158: dms_crcp_cy8 | L158: 2030-31 | M158: 2031
B159: dms_y9 | C159: =IF(dms_RPT="financial",VALUE(LEFT(dms_fy8,4)+1)&"-"&TEXT(MID(dms_fy8,3,2)+2,"00"),VALUE(LEFT(dms_fy8,4)+1)) -> 2025-26 | D159: 2014 | E159: dms_cy9 | F159: dms_frcp_fy9 | G159: 2018-19 | H159: 2019 | I159: dms_crcp_cy9 | L159: 2031-32 | M159: 2032
B160: dms_y10 | C160: =IF(dms_RPT="financial",VALUE(LEFT(dms_fy9,4)+1)&"-"&TEXT(MID(dms_fy9,3,2)+2,"00"),VALUE(LEFT(dms_fy9,4)+1)) -> 2026-27 | D160: 2015 | E160: dms_cy10 | F160: dms_frcp_fy10 | G160: 2019-20 | H160: 2020 | I160: dms_crcp_cy10 | L160: 2032-33 | M160: 2033
B161: dms_y11 | C161: =IF(dms_RPT="financial",VALUE(LEFT(dms_fy10,4)+1)&"-"&TEXT(MID(dms_fy10,3,2)+2,"00"),VALUE(LEFT(dms_fy10,4)+1)) -> 2027-28 | D161: 2016 | E161: dms_cy11 | F161: dms_frcp_fy11 | G161: 2020-21 | H161: 2021 | I161: dms_crcp_cy11 | L161: 2033-34 | M161: 2034
B162: dms_y12 | C162: =IF(dms_RPT="financial",VALUE(LEFT(dms_fy11,4)+1)&"-"&TEXT(MID(dms_fy11,3,2)+2,"00"),VALUE(LEFT(dms_fy11,4)+1)) -> 2028-29 | D162: 2017 | E162: dms_cy12 | F162: dms_frcp_fy12 | G162: 2021-22 | H162: 2022 | I162: dms_crcp_cy12 | L162: 2034-35 | M162: 2035
B163: dms_y13 | C163: =IF(dms_RPT="financial",VALUE(LEFT(dms_fy12,4)+1)&"-"&TEXT(MID(dms_fy12,3,2)+2,"00"),VALUE(LEFT(dms_fy12,4)+1)) -> 2029-30 | D163: 2018 | E163: dms_cy13 | F163: dms_frcp_fy13 | G163: 2022-23 | H163: 2023 | I163: dms_crcp_cy13 | L163: 2035-36 | M163: 2036
B164: dms_y14 | C164: =IF(dms_RPT="financial",VALUE(LEFT(dms_fy13,4)+1)&"-"&TEXT(MID(dms_fy13,3,2)+2,"00"),VALUE(LEFT(dms_fy13,4)+1)) -> 2030-31 | D164: 2019 | E164: dms_cy14 | F164: dms_frcp_fy14 | G164: 2023-24 | H164: 2024 | I164: dms_crcp_cy14
B165: dms_y15 | C165: =IF(dms_RPT="financial",VALUE(LEFT(dms_fy14,4)+1)&"-"&TEXT(MID(dms_fy14,3,2)+2,"00"),VALUE(LEFT(dms_fy14,4)+1)) -> 2031-32 | D165: 2020 | E165: dms_cy15 | F165: dms_frcp_fy15 | G165: 2024-25 | H165: 2025 | I165: dms_crcp_cy15
B166: dms_y16 | C166: =IF(dms_RPT="financial",VALUE(LEFT(dms_fy15,4)+1)&"-"&TEXT(MID(dms_fy15,3,2)+2,"00"),VALUE(LEFT(dms_fy15,4)+1)) -> 2032-33 | D166: 2021 | E166: dms_cy16
B167: dms_y17 | C167: =IF(dms_RPT="financial",VALUE(LEFT(dms_fy16,4)+1)&"-"&TEXT(MID(dms_fy16,3,2)+2,"00"),VALUE(LEFT(dms_fy16,4)+1)) -> 2033-34 | D167: 2022 | E167: dms_cy17
B168: dms_y18 | C168: =IF(dms_RPT="financial",VALUE(LEFT(dms_fy17,4)+1)&"-"&TEXT(MID(dms_fy17,3,2)+2,"00"),VALUE(LEFT(dms_fy17,4)+1)) -> 2034-35 | D168: 2023 | E168: dms_cy18
B169: dms_y19 | C169: =IF(dms_RPT="financial",VALUE(LEFT(dms_fy18,4)+1)&"-"&TEXT(MID(dms_fy18,3,2)+2,"00"),VALUE(LEFT(dms_fy18,4)+1)) -> 2035-36 | D169: 2024 | E169: dms_cy19
B170: dms_y20 | C170: =IF(dms_RPT="financial",VALUE(LEFT(dms_fy19,4)+1)&"-"&TEXT(MID(dms_fy19,3,2)+2,"00"),VALUE(LEFT(dms_fy19)+1)) -> 2036-37 | D170: 2025 | E170: dms_cy20
B176: These "row descriptions" are the column headings in the various templates but become row descriptions in the ETL process
C177: Table 6.3 sustained interruptions - row descriptions
C178: dms_060301_CustNo_Affected_Row | D178: dms_060301_Avg_Duration_Sustained_Int_Row | E178: dms_060301_Effect_unplanned_SAIDI_Row | F178: dms_060301_Effect_unplanned_SAIFI_Row
C179: Number of customers affected by the interruption | D179: Average duration of sustained customer interruption | E179: Effect on unplanned SAIDI | F179: Effect on unplanned SAIFI
C183: Table 6.1 telephone answering - row descriptions and start date
C184: dms_060101_Rows | D184: dms_060102_Rows | E184: dms_060101_StartDateTxt
C185: Total number of calls (after removing excluded events) | D185: Number of calls answered within 30 seconds (after excluding excluded events) | E185: =dms_060701_StartDateTxt -> 1-Jul-2017
H189: dms_0603_FeederList | I189: =INDEX(dms_FeederName_1,MATCH(dms_TradingName,dms_TradingName_List)) -> Critical Infrastructure | J189: =INDEX(dms_FeederName_2,MATCH(dms_TradingName,dms_TradingName_List)) -> High density commercial | K189: =INDEX(dms_FeederName_3,MATCH(dms_TradingName,dms_TradingName_List)) -> Urban | L189: =INDEX(dms_FeederName_4,MATCH(dms_TradingName,dms_TradingName_List)) -> High density rural | M189: =INDEX(dms_FeederName_5,MATCH(dms_TradingName,dms_TradingName_List)) -> Low density rural
C190: Table 6.7.1 - daily performance data - unplanned - MAIFI -- row descriptions and header named range values
C191: These headings (Lists) are determined from the INDEX/MATCH function on the NSP selected on the Business & other details sheet
B192: dms_060701_Feeder_Header_Lvl4 | C192: =INDEX(dms_FeederName_1,MATCH(dms_TradingName,dms_TradingName_List)) -> Critical Infrastructure | D192: =INDEX(dms_FeederName_1,MATCH(dms_TradingName,dms_TradingName_List)) -> Critical Infrastructure | E192: =INDEX(dms_FeederName_2,MATCH(dms_TradingName,dms_TradingName_List)) -> High density commercial | F192: =INDEX(dms_FeederName_2,MATCH(dms_TradingName,dms_TradingName_List)) -> High density commercial | G192: =INDEX(dms_FeederName_3,MATCH(dms_TradingName,dms_TradingName_List)) -> Urban | H192: =INDEX(dms_FeederName_3,MATCH(dms_TradingName,dms_TradingName_List)) -> Urban | I192: =INDEX(dms_FeederName_4,MATCH(dms_TradingName,dms_TradingName_List)) -> High density rural | J192: =INDEX(dms_FeederName_4,MATCH(dms_TradingName,dms_TradingName_List)) -> High density rural | K192: =IF((INDEX(dms_FeederName_5,MATCH(dms_TradingName,dms_TradingName_List))=0),"Network",(INDEX(dms_FeederName_5,MATCH(dms_TradingName,dms_TradingName_List)))) -> Low density rural | L192: =IF((INDEX(dms_FeederName_5,MATCH(dms_TradingName,dms_TradingName_List))=0),"Network",(INDEX(dms_FeederName_5,MATCH(dms_TradingName,dms_TradingName_List)))) -> Low density rural | M192: Network | N192: Network
B194: dms_060701_Rows | C194: All events | D194: After removing excluded events | E194: All events | F194: After removing excluded events | G194: All events | H194: After removing excluded events | I194: All events | J194: After removing excluded events | K194: All events | L194: After removing excluded events | M194: All events | N194: After removing excluded events
C195: the number of column headings changes from 10 to 12 depending on the number of feeder categories for the NSP
C200: Table 6.8.1 - row descriptions
C201: dms_060801_01_Rows | D201: dms_060801_02_Rows | E201: dms_060801_03_Rows | F201: dms_060801_04_Rows
C202: Number of interruptions | D202: Duration of interruptions | E202: Total unplanned minutes off supply | F202: Effect on unplanned MAIFI
C207: Table 7.9.4 - market impact component - row descriptions
B208: dms_070904_01_Rows | C208: without exclusions | D208: with exclusions
C214: Use this to add to existing files
C215: ARRs 6.7 STPIS daily performance
C216: dms_060101_Values | D216: dms_060102_Values | E216: dms_060701_Values
C218: ARR's 6.8 STPIS exclusions
C219: dms_060801_Event_Date | D219: dms_060801_OutageID | E219: dms_060801_FeederID | F219: dms_060801_FeederClass | G219: dms_060801_CauseID | H219: dms_060801_01_Values | I219: dms_060801_02_Values | J219: dms_060801_03_Values | K219: dms_060801_Excl_Cat | L219: dms_060801_04_Values
C220: dms_060801_StartCell
C222: CA 6.3 sustained interruptions
C223: dms_060301_Event_Date | D223: dms_060301_Event_Time | E223: dms_060301_AssetID | F223: dms_060301_FeederClass | G223: dms_060301_Reason | H223: dms_060301_DetailedReason | I223: dms_060301_CustNo_Affected_Values | J223: dms_060301_Avg_Duration_Sustained_Int_Values | K223: dms_060301_Effect_unplanned_SAIDI_Values | L223: dms_060301_Effect_unplanned_SAIFI_Values | M223: dms_060301_MED

Sheet Contents
B3: =CONCATENATE(dms_Segment," Network Service Provider") -> Distribution Network Service Provider
B4: Annual Reporting RIN Template
B5: Table of Contents
C8: Instructions
C9: Business & other details
B12: CATEGORY ANALYSIS | C12: STPIS | D12: STATUTORY ACCOUNTS
B14: 2.11 Labour | C14: 6.2 STPIS Reliability | D14: 8.1 Income
C15: 6.6 STPIS Customer Service | D15: 8.2 Capex
C16: 6.7 STPIS Daily Performance
C17: 6.8 STPIS Exclusions | D17: 8.4 Opex
C18: 6.9 STPIS GSL
B22: NETWORK PERFORMANCE | C22: OTHER INFORMATION | D22: PRICING PROPOSAL
D23: Victorian Businesses Only
B24: 3.6 Quality of services | C24: 7.8 Avoided Cost Payments
B25: 3.6.8 Network-feeders | C25: 7.10 Juris Scheme | D25: 9.5 TUoS
B26: 3.6.9 Network-reliability | C26: 7.11 DMIS-DMIA
C27: 7.12 Safety and Bushfire
C28: 7.13 TARC
B29: PUBLIC LIGHTING
B31: 4.1 Public lighting tariffs

Sheet Instructions
B2: =CONCATENATE(dms_Segment," Network Service Provider") -> Distribution Network Service Provider
B3: =IF(dms_Model="Reset","Regulatory Proposal RIN Template","Annual Reporting RIN") -> Annual Reporting RIN
C4: This template is to be used by Australian Distribution Co. to fulfil its reporting obligations to the AER.
C5: INSTRUCTIONS
C6: Complete the Business & other details worksheet before entering data or values in any other worksheets. The Business & other details worksheet is linked to other worksheets within the workbook and automatically generates certain column headings and conditional formatting.
C8: Identifying CONFIDENTIAL INFORMATION: Please use the macro at the top of each worksheet to identify confidential information.
C9: -Do this by selecting the cell or cells that contain confidential information and then run the Mark selected cells as CONFIDENTIAL macro. This will format the cells a specific colour that is identified by the AER's database which in turn marks that information as confidential. -To reverse this, select the cell or cells and run the Return cells to NON-CONFIDENTIAL macro.
C11: UNITS OF MEASURE All amounts are to be unrounded and reported on a one for one basis: that is 1000 is to be entered as '1000'. Applicable units of measure may be identified in the table column headings or row descriptors.
C13: COLOUR CODING OF INPUT / NON-INPUT CELLS:
D14: Yellow = Input cell (mandatory)
D15: Darker yellow = input cell (mandatory)
D16: Orange = input cell (if data available)
D17: Grey = Not applicable/No inputs required
D18: PLEASE DO NOT ENTER TEXT into cells that are to contain numeric data.
C21: WORKSHEET NAVIGATION Many tables in the worksheets have been "grouped" to allow for easy navigation. To ungroup or group data use the outline symbols in the left margin (for Row groupings) or above the columns (for column groupings).
C23: RETURNING COMPLETED RESPONSES Please return two (2) files to the AER: 1. A confidential version which must contain a complete set of all responses with confidential information marked using the Mark selection CONFIDENTIAL macro and which has been completed using the locked template file provided by the AER. 2. A public version with confidential information either removed completely or aggregated in some form together with writtten consent to disclose the public version of the response. Use the drop down box on the Business and other details worksheet to identify the file as either confidential ('consolidated') or public.
C25: SUBMITTING AMENDED DATA TO THE AER If an NSP wishes to correct data previously submitted to the AER it should resubmit that data using the original completed submission as the starting point. Please make any necessary changes to the data. Data that is not being amended should be left unchanged. NSPs must identify the reason for the amendments in the Amendment Reason box on the Business and other details worksheet. NSPs may provide further details regarding any amendments in the Amendments worksheet. .
C26: NSP may use Amended Data macro to highlight cells that contain amended data. NB: if data is also CONFIDENTIAL, re-apply the Confidentiality macro after applying the Amended macro
C27: Please resubmit two (2) files - a confidential version and a public version of the amended submission to the AER

Sheet Business & other details
B1: =IF(dms_DataQuality="backcast",INDEX(dms_Worksheet_List,MATCH(dms_Model,dms_Model_List))&" BACKCAST",INDEX(dms_Worksheet_List,MATCH(dms_Model,dms_Model_List))) -> ANNUAL REPORTING STATEMENT
B2: =INDEX(dms_TradingNameFull_List,MATCH(dms_TradingName,dms_TradingName_List)) -> TasNetworks (D)
B3: =IF(SUM(dms_SingleYear_Model)>0,CONCATENATE(CRY),CONCATENATE(FRCP_y1," to ",dms_MultiYear_FinalYear_Result)) -> 2017-18
B4: BUSINESS & OTHER DETAILS
B7: Instructions
B8: Complete the following business details regulatory template before entering data or values in any other regulatory template. This regulatory template is linked to other cells within the spreadsheet and automatically generates column headings and conditional formatting to distinguish business specific input and non-input cells.
B10: SUBMISSION PARTICULARS INPUT SHEETS
B12: ENTITY DETAILS
B14: Short name | C14: TasNetworks (D) | F14: Select business name from drop down list first
B15: ACN / ABN | C15: =INDEX(dms_ABN_List,MATCH(dms_TradingName,dms_TradingName_List)) -> 24167357299
B18: Business address | C18: Address 1 | E18: =INDEX(dms_Addr1_List,MATCH(dms_TradingName,dms_TradingName_List)) -> 1-7 Maria Street
D19: Address 2 | E19: =IF(ISBLANK(INDEX(dms_Addr2_List,MATCH(dms_TradingName,dms_TradingName_List))),"",(INDEX(dms_Addr2_List,MATCH(dms_TradingName,dms_TradingName_List)))) -> 
C20: Suburb | E20: =INDEX(dms_Suburb_List,MATCH(dms_TradingName,dms_TradingName_List)) -> LENAH VALLEY
D21: State | E21: =INDEX(dms_State_List,MATCH(dms_TradingName,dms_TradingName_List)) -> Tas | F21: p/code | G21: =INDEX(dms_PostCode_List,MATCH(dms_TradingName,dms_TradingName_List)) -> 7008
B23: Postal address | C23: Address 1 | E23: =INDEX(dms_PAddr1_List,MATCH(dms_TradingName,dms_TradingName_List)) -> PO Box 606
D24: Address 2 | E24: =IF(ISBLANK(INDEX(dms_PAddr2_List,MATCH(dms_TradingName,dms_TradingName_List))),"",(INDEX(dms_PAddr2_List,MATCH(dms_TradingName,dms_TradingName_List)))) -> 
C25: Suburb | E25: =INDEX(dms_PSuburb_List,MATCH(dms_TradingName,dms_TradingName_List)) -> MOONAH
D26: State | E26: =INDEX(dms_PState_List,MATCH(dms_TradingName,dms_TradingName_List)) -> Tas | F26: p/code | G26: =INDEX(dms_PPostCode_List,MATCH(dms_TradingName,dms_TradingName_List)) -> 7009
B29: Contact name/s | C29: =INDEX(dms_ContactName1_List,MATCH(dms_TradingName,dms_TradingName_List)) -> John Sayers
B30: Contact phone/s | C30: =INDEX(dms_ContactPh1_List,MATCH(dms_TradingName,dms_TradingName_List)) -> 03 6271 6469
B31: Contact email address/s | C31: =INDEX(dms_ContactEmail_List,MATCH(dms_TradingName,dms_TradingName_List)) -> john.sayers@tasnetworks.com.au
B33: REGULATORY CONTROL PERIODS
B35: Forthcoming regulatory control period | C35: 2020-21 | D35: =dms_FRCP_y2 -> 2021-22 | E35: =dms_FRCP_y3 -> 2022-23 | F35: =dms_FRCP_y4 -> 2023-24 | G35: =dms_FRCP_y5 -> 2024-25
C36: =dms_FRCP_y6 -> 2025-26 | D36: =dms_FRCP_y7 -> 2026-27 | E36: =dms_FRCP_y8 -> 2027-28 | F36: =dms_FRCP_y9 -> 2028-29 | G36: =dms_FRCP_y10 -> 2029-30
B39: Current regulatory control period | C39: =dms_CRCP_FirstYear_Result -> 2015-16 | D39: =IF(dms_RPT="financial",VALUE(LEFT(CRCP_y1,4)+1)&"-"&TEXT(MID(CRCP_y1,3,2)+2,"00"),VALUE(LEFT(CRCP_y1,4)+1)) -> 2016-17 | E39: =IF(dms_RPT="financial",VALUE(LEFT(CRCP_y1,4)+2)&"-"&TEXT(VALUE(MID(CRCP_y1,3,2)+3),"00"),VALUE(LEFT(CRCP_y1,4)+2)) -> 2017-18 | F39: =IF(dms_RPT="financial",VALUE(LEFT(CRCP_y1,4)+3)&"-"&TEXT(MID(CRCP_y1,3,2)+4,"00"),VALUE(LEFT(CRCP_y1,4)+3)) -> 2018-19 | G39: =IF(dms_RPT="financial",VALUE(LEFT(CRCP_y1,4)+4)&"-"&TEXT(MID(CRCP_y1,3,2)+5,"00"),VALUE(LEFT(CRCP_y1,4)+4)) -> 2019-20
C40: =IF(dms_RPT="financial",VALUE(LEFT(CRCP_y1,4)+5)&"-"&TEXT(MID(CRCP_y1,3,2)+6,"00"),VALUE(LEFT(CRCP_y1,4)+5)) -> 2020-21 | D40: =IF(dms_RPT="financial",VALUE(LEFT(CRCP_y1,4)+6)&"-"&TEXT(MID(CRCP_y1,3,2)+7,"00"),VALUE(LEFT(CRCP_y1,4)+6)) -> 2021-22 | E40: =IF(dms_RPT="financial",VALUE(LEFT(CRCP_y1,4)+7)&"-"&TEXT(MID(CRCP_y1,3,2)+8,"00"),VALUE(LEFT(CRCP_y1,4)+7)) -> 2022-23 | F40: =IF(dms_RPT="financial",VALUE(LEFT(CRCP_y1,4)+8)&"-"&TEXT(MID(CRCP_y1,3,2)+9,"00"),VALUE(LEFT(CRCP_y1,4)+8)) -> 2023-24 | G40: =IF(dms_RPT="financial",VALUE(LEFT(CRCP_y1,4)+9)&"-"&TEXT(MID(CRCP_y1,3,2)+10,"00"),VALUE(LEFT(CRCP_y1,4)+9)) -> 2024-25
C41: =IF(dms_RPT="financial",VALUE(LEFT(CRCP_y1,4)+10)&"-"&TEXT(MID(CRCP_y1,3,2)+11,"00"),VALUE(LEFT(CRCP_y1,4)+10)) -> 2025-26 | D41: =IF(dms_RPT="financial",VALUE(LEFT(CRCP_y1,4)+11)&"-"&TEXT(MID(CRCP_y1,3,2)+12,"00"),VALUE(LEFT(CRCP_y1,4)+11)) -> 2026-27 | E41: =IF(dms_RPT="financial",VALUE(LEFT(CRCP_y1,4)+12)&"-"&TEXT(MID(CRCP_y1,3,2)+13,"00"),VALUE(LEFT(CRCP_y1,4)+12)) -> 2027-28 | F41: =IF(dms_RPT="financial",VALUE(LEFT(CRCP_y1,4)+13)&"-"&TEXT(MID(CRCP_y1,3,2)+14,"00"),VALUE(LEFT(CRCP_y1,4)+13)) -> 2028-29 | G41: =IF(dms_RPT="financial",VALUE(LEFT(CRCP_y1,4)+14)&"-"&TEXT(MID(CRCP_y1,3,2)+15,"00"),VALUE(LEFT(CRCP_y1,4)+14)) -> 2029-30
B44: Previous regulatory control period | C44: =IF(dms_RPT="financial",VALUE(LEFT(PRCP_y2,4)-1)&"-"&TEXT(VALUE(MID(PRCP_y2,3,2)),"00"),VALUE(LEFT(PRCP_y2,4)-1)) -> 2010-11 | D44: =IF(dms_RPT="financial",VALUE(LEFT(PRCP_y3,4)-1)&"-"&TEXT(VALUE(MID(PRCP_y3,3,2)),"00"),VALUE(LEFT(PRCP_y3,4)-1)) -> 2011-12 | E44: =IF(dms_RPT="financial",VALUE(LEFT(PRCP_y4,4)-1)&"-"&TEXT(VALUE(MID(PRCP_y4,3,2)),"00"),VALUE(LEFT(PRCP_y4,4)-1)) -> 2012-13 | F44: =IF(dms_RPT="financial",VALUE(LEFT(PRCP_y5,4)-1)&"-"&TEXT(VALUE(RIGHT(PRCP_y5,2)-1),"00"),VALUE(LEFT(PRCP_y5,4)-1)) -> 2013-14 | G44: =IF(dms_RPT="financial",VALUE(LEFT(CRCP_y1,4)-1)&"-"&TEXT(VALUE(RIGHT(CRCP_y1,2)-1),"00"),VALUE(LEFT(CRCP_y1,4)-1)) -> 2014-15
B48: Commencing regulatory year | C48: 2017-18 | D48: CRY
B50: Last completed regulatory year | C50: 2017-18 | D50: dms_FinalYear
C54: IF THIS IS AN ABC RIN - make sure the the named range CRY is applied and the named range dms_dollar_nom_UOM is applied
C55: IF THIS IS A RESET RIN - make sure the named ranges CRY and dms_dollar_nom_UOM are NOT present in the workbook
C56: FOR ABC RINS THAT SPAN MULTIPLE YEARS - make sure MultiYear Flag is set and final year entered as required
B58: Source | C58: Reporting | E58: Please select the correct submission type from the dropdown list.
B59: Data quality (actual, estimate, public, consolidated) | C59: Consolidated | E59: Use Consolidated for Consolidated Confidential version Use Public for Consolidated Public version
B60: Amended RIN submission - amendment reason | C60: .
B61: Submission Date | C61: dd/mm/yy | D61: dms_SubmissionDate | E61: Please enter date this file submitted to AER (dd/mm/yyyy)
B62: EBSS - First application of scheme in forthcoming period? | C62: No
B63: Sector | C63: =INDEX(dms_Sector_List,MATCH(dms_TradingName,dms_TradingName_List)) -> Electricity | D63: dms_Sector | E63: =INDEX(dms_Sector_List,MATCH(dms_TradingName,dms_TradingName_List))
B64: Segment | C64: =INDEX(dms_Segment_List,MATCH(dms_TradingName,dms_TradingName_List)) -> Distribution | D64: dms_Segment | E64: =INDEX(dms_Segment_List,MATCH(dms_TradingName,dms_TradingName_List))
B65: Regulatory Year Ending | C65: =IF(dms_MultiYear_Flag=1,LEFT(dms_Specified_FinalYear,2)&RIGHT(dms_Specified_FinalYear,2),INDEX(dms_RYE_Formula_Result,MATCH(dms_Model,dms_Model_List))) -> 2018 | D65: dms_RYE | E65: =IF(dms_MultiYear_Flag=1,LEFT(dms_Specified_FinalYear,2)&RIGHT(dms_Specified_FinalYear,2),INDEX(dms_RYE_Formula_Result,MATCH(dms_Model,dms_Model_List)))
B66: Reporting Period Type | C66: =INDEX(dms_RPT_List,MATCH(dms_TradingName,dms_TradingName_List)) -> Financial | D66: dms_RPT | E66: =INDEX(dms_RPT_List,MATCH(dms_TradingName,dms_TradingName_List))
B67: Model or RIN Type | C67: ARR | D67: dms_Model | E67: Drop down selection
B68: EB/CA Unit of Measure for Monetary Values | C68: $0s | D68: dms_dollar_nom_UOM | E68: If the cover sheet is attached to an ABC RIN apply the NAMED RANGE to the cell
B69: Security Classification | C69: Public | D69: dms_Classification | E69: Always Public
B70: Jurisdiction | C70: =INDEX(dms_JurisdictionList,MATCH(dms_TradingName,dms_TradingName_List)) -> Tas | D70: dms_Jurisdiction | E70: =INDEX(dms_JurisdictionList,MATCH(dms_TradingName,dms_TradingName_List))
B71: FORECAST and MultiYear RINS
B72: CRY-1 (last full calendar year before CRY) | C72: =IF(dms_RPT="financial",VALUE(LEFT(dms_SingleYear_FinalYear_Result,4)),VALUE(LEFT(dms_SingleYear_FinalYear_Result,4)-1)) -> 2017 | D72: dms_Cal_Year_B4_CRY | E72: '=IF(dms_RPT="financial",VALUE(LEFT(dms_SingleYear_FinalYear_Result,4)),VALUE(LEFT(dms_SingleYear_FinalYear_Result,4)-1))
B73: Dollar $ real month | C73: =INDEX(dms_RPTMonth_List,MATCH(dms_TradingName,dms_TradingName_List)) -> June | D73: dms_RPTMonth | E73: =INDEX(dms_RPTMonth_List,MATCH(dms_TradingName,dms_TradingName_List))
B74: Dollar $ real (the last month before the FRCP_y1) | C74: =IF(SUM(dms_SingleYear_Model)>0,CONCATENATE(dms_RPTMonth)&" "&VALUE((LEFT(CRY,2))&RIGHT(CRY,2)),CONCATENATE(dms_RPTMonth)&" "&VALUE((LEFT(dms_CRCP_FinalYear_Result,2)&RIGHT(dms_CRCP_FinalYear_Result,2)))) -> June 2018 | D74: dms_DollarReal | E74: =IF(SUM(dms_SingleYear_Model)>0,CONCATENATE(dms_RPTMonth)&" "&VALUE((LEFT(CRY,2))&RIGHT(CRY,2)),CONCATENATE(dms_RPTMonth)&" "&VALUE((LEFT(dms_CRCP_FinalYear_Result,2)&RIGHT(dms_CRCP_FinalYear_Result,2))))
B75: Dollar $ real previous year (PRCP_y5) | C75: =IF(SUM(dms_SingleYear_Model)>0,CONCATENATE(dms_RPTMonth)&" "&VALUE(((LEFT(CRY,2))&RIGHT(CRY,2))-1),CONCATENATE(dms_RPTMonth)&" "&VALUE(((LEFT(dms_CRCP_FirstYear_Result,2)&RIGHT(dms_CRCP_FirstYear_Result,2))))-1) -> June 2017 | D75: dms_DollarReal_Prev | E75: =IF(SUM(dms_SingleYear_Model)>0,CONCATENATE(dms_RPTMonth)&" "&VALUE(((LEFT(CRY,2))&RIGHT(CRY,2))-1),CONCATENATE(dms_RPTMonth)&" "&VALUE(((LEFT(dms_CRCP_FirstYear_Result,2)&RIGHT(dms_CRCP_FirstYear_Result,2))))-1)
B76: This block works out the various RYE's for ALL RIN types and MODELS
B77: Single Year Model T/F | C77: =IF(dms_Model="EB",1,0) -> 0 | D77: dms_EB
C78: =IF(dms_Model="CA",1,0) -> 0 | D78: dms_CA | E78: =dms_SingleYear_Model
C79: =IF(dms_Model="ARR",1,0) -> 1 | D79: dms_ARR
B80: Is this a single Year RIN? | C80: =IF(SUM(dms_SingleYear_Model)=1,"yes","no") -> yes | D80: dms_SingleYearModel | E80: =IF(SUM(dms_SingleYear_Model)=1,"yes","no")
B81: Single Year Final Year Reference | C81: CRY | D81: dms_SingleYear_FinalYear_Ref | E81: This is the reference for EB, CA & ARR RINs
B82: Single Year Final Year Result | C82: =IFERROR(IF(SUM(dms_SingleYear_Model)<>0,(INDIRECT(dms_SingleYear_FinalYear_Ref)),"not a single year RIN"),"CRY not present") -> 2017-18 | D82: dms_SingleYear_FinalYear_Result | E82: =IFERROR(IF(SUM(dms_SingleYear_Model)<>0,(INDIRECT(dms_SingleYear_FinalYear_Ref)),"not a single year RIN"),"CRY not present")
B83: FRCP length in years | C83: =INDEX(dms_FRCPlength_List,MATCH(dms_TradingName,dms_TradingName_List)) -> 5 | D83: dms_FRCPlength_Num | E83: =INDEX(dms_FRCPlength_List,MATCH(dms_TradingName,dms_TradingName_List))
B84: Multi Year Final Year Reference | C84: =INDEX(dms_FinalYear_List,MATCH(dms_FRCPlength_Num,dms_FRCPlength_Num_List)) -> dms_FRCP_y5 | D84: dms_MultiYear_FinalYear_Ref | E84: =INDEX(dms_FinalYear_List,MATCH(dms_FRCPlength_Num,dms_FRCPlength_Num_List))
B85: Multi Year Final Year Result | C85: =IF(dms_MultiYear_Flag=0,INDIRECT(dms_MultiYear_FinalYear_Ref),dms_Specified_FinalYear) -> 2024-25 | D85: dms_MultiYear_FinalYear_Result | E85: =IF(dms_MultiYear_Flag=0,INDIRECT(dms_MultiYear_FinalYear_Ref),dms_Specified_FinalYear) | I85: Formula errors OK
B86: CRCP length in years | C86: =INDEX(dms_CRCPlength_List,MATCH(dms_TradingName,dms_TradingName_List)) -> 5 | D86: dms_CRCPlength_Num | E86: =INDEX(dms_CRCPlength_List,MATCH(dms_TradingName,dms_TradingName_List))
B87: CRCP Final Year Reference | C87: =INDEX(dms_CFinalYear_List,MATCH(dms_CRCPlength_Num,dms_CRCPlength_Num_List)) -> CRCP_y5 | D87: dms_CRCP_FinalYear_Ref | E87: =INDEX(dms_CFinalYear_List,MATCH(dms_CRCPlength_Num,dms_CRCPlength_Num_List))
B88: CRCP First Year Result | C88: =INDEX(dms_CRCP_years,MATCH(dms_CRCPlength_Num,dms_CRCP_index)) -> 2015-16 | D88: dms_CRCP_FirstYear_Result | E88: =INDEX(dms_CRCP_years,MATCH(dms_CRCPlength_Num,dms_CRCP_index))
B89: CRCP Final Year Result | C89: =IF(dms_MultiYear_Flag=0,(IF(SUM(dms_SingleYear_Model)>0,CRY,dms_CRCP_yZ)),dms_Specified_FinalYear) -> 2017-18 | D89: dms_CRCP_FinalYear_Result | E89: =IF(dms_MultiYear_Flag=0,(IF(SUM(dms_SingleYear_Model)>0,CRY,dms_CRCP_yZ)),dms_Specified_FinalYear)
B90: PTRM/ RFMs
B91: Form of control | C91: =INDEX(dms_FormControl_List,MATCH(dms_TradingName,dms_TradingName_List)) -> Revenue cap | D91: dms_FormControl | E91: =INDEX(dms_FormControl_List,MATCH(dms_TradingName,dms_TradingName_List))
B92: ABC RINS THAT SPAN MULTIPLE YEARS
B93: Is this a multi year ABC RIN? | C93: No
B94: Multiyear EB, CA or ARR? | C94: =IF(dms_MultiYear_ResponseFlag="No",0,1) -> 0 | D94: dms_MultiYear_Flag | E94: This is set from the answer provided above
C95: =IF(dms_MultiYear_Flag=1,FRY,"not a Multiple year submission") -> not a Multiple year submission | D95: dms_Specified_FinalYear | E95: The result here is returned to dms_CRCP_FinalYear_Result if response to Q in C73 is "yes" and dms_MultiYear_Flag is set to 1
B96: Start year for 5.2 in Multi year ABC RINS | C96: =IFERROR(IF(dms_MultiYear_Flag=1,FRY,CRY),"not an ABC") -> 2017-18 | D96: dms_0502_Inst_Year | E96: =IF(dms_MultiYear_Flag=1,FRY,CRY) | G96: For single year RINS this is CRY - multi year RINS need to start a the end of the span of years (ie. FRY)
B97: EB RINS
B98: Calendar Year for table 3.6 data | C98: =IF(dms_RPT="financial",VALUE(LEFT(dms_SingleYear_FinalYear_Result,4)),VALUE(LEFT(dms_SingleYear_FinalYear_Result,4)-1)) -> 2017 | D98: dms_0306_Year | E98: =IF(dms_RPT="financial",VALUE(LEFT(dms_SingleYear_FinalYear_Result,4)),VALUE(LEFT(dms_SingleYear_FinalYear_Result,4)-1))
B99: CA RINS
B100: Find how many rows in tables 6.3 sustained interruptions? | E100: dms_060301_MaxRows only returns a valid value when cover sheet is attached to a CA file
C101: =IF(dms_Model<>"CA","not a CA","Is a CA") -> not a CA | E101: =IF(dms_Model<>"CA","not a CA","Is a CA")
B102: dms_060301_Avg_Duration_Sustained_Int_Values present? | C102: =IFERROR(IF(INDEX(dms_060301_Avg_Duration_Sustained_Int_Values,1,1)<>"","yes","no"),"no") -> no | D102: dms_060301_checkvalue | E102: =IFERROR(IF(INDEX(dms_060301_Avg_Duration_Sustained_Int_Values,1,1)<>"","yes","no"),"no")
C103: =IF(AND(dms_Model="CA",(dms_060301_checkvalue="no")),"error - NR not present","no errors") -> no errors | E103: =IF(AND(dms_Model="CA",(dms_060301_checkvalue="no")),"error - NR not present","no errors")
B104: Table 6.3.1 - last row reference | C104: =IFERROR(IF(dms_Model="CA",LOOKUP(2,1/(dms_060301_Avg_Duration_Sustained_Int_Values<>""),(ROW(dms_060301_Avg_Duration_Sustained_Int_Values))),"not a CA"),"6.3 not present") -> not a CA | D104: dms_060301_LastRow | E104: =IFERROR(IF(dms_Model="CA",LOOKUP(2,1/(dms_060301_Avg_Duration_Sustained_Int_Values<>""),(ROW(dms_060301_Avg_Duration_Sustained_Int_Values))),"not a CA"),"6.3 not present")
B105: Table 6.3.1 - max number rows | C105: =IFERROR(IF(dms_Model="CA",(dms_060301_LastRow-15),"not a CA"),"error") -> not a CA | D105: dms_060301_MaxRows | E105: =IFERROR(IF(dms_Model="CA",(dms_060301_LastRow-15),"not a CA"),"error")
B106: Table 6.6.3 - Public lighting repair - no. business days | C106: =INDEX(dms_663_List,MATCH(dms_TradingName,dms_TradingName_List)) -> 5 | D106: dms_663 | E106: =INDEX(dms_663_List,MATCH(dms_TradingName,dms_TradingName_List))
B107: ARR or RESET RINS
B108: How many rows in tables 6.1 or 6.7? (leap year?) | C108: insert dms_LeapYear NR if required | E108: 'dms_LeapYear is used to determine dms_060701_Max_Rows BUT it is only found on worksheet 6.1 or 6.7 and the date value in the cell is used to determine whether it is a leap year
B109: Is dms_LeapYear named range present? | C109: =IFERROR(IF(dms_LeapYear,"yes"),"no") -> yes
B110: Table 6.7.1 - includes a leap year? | C110: =IFERROR(IF(MONTH(DATE(YEAR(dms_LeapYear),2,29))=2,"is a leap year","not a leap year"), "dms_LeapYear not present") -> not a leap year | D110: dms_LeapYear_Result | E110: =IFERROR(IF(MONTH(DATE(YEAR(dms_LeapYear),2,29))=2,"is a leap year","not a leap year"),"dms_LeapYear not present")
B111: MaxRows if Reset and leap year | C111: =IF(dms_LeapYear_Result="is a leap year",1827,1826) -> 1826 | D111: dms_060701_Reset_MaxRows | E111: =IF(dms_LeapYear_Result="is a leap year",1827,1826) | H111: number of days present in Reset RIN table
B112: MaxRows if ARR and leap year | C112: =IF(dms_LeapYear_Result="is a leap year",366,365) -> 365 | D112: dms_060701_ARR_MaxRows | E112: =IF(dms_LeapYear_Result="is a leap year",366,365) | H112: number of days present in ARR RIN table
B113: Table 6.7.1 - Max Rows (leap year/ non leap year) | C113: =IF(dms_Model="ARR",dms_060701_ARR_MaxRows,IF(dms_Model="Reset",dms_060701_Reset_MaxRows,"not a relevant RIN type")) -> 365 | D113: dms_060701_MaxRows | E113: =IF(dms_Model="ARR",dms_060701_ARR_MaxRows,IF(dms_Model="Reset",dms_060701_Reset_MaxRows,"not a relevant RIN type"))
B114: How many columns in 6.7? (4 or 5 feeder categories) | C114: =IF(dms_FifthFeeder_flag_NSP="NO","This NSP has only 4 feeder categories","This NSP has 5 feeder categories") -> This NSP has 5 feeder categories
B115: Table 6.7.1 - Last column (# of feeder categories > 4) | C115: =IF(dms_FifthFeeder_flag_NSP="NO",10,12) -> 12 | D115: dms_060701_MaxCols | E115: =IF(dms_FifthFeeder_flag_NSP="NO",8,10)
B116: Table 6.7.1 - Number of offset rows | C116: =IF(dms_Model="ARR",15,9) -> 15 | D116: dms_060701_OffsetRows | E116: =IF(dms_Model="ARR",15,9)
B117: Start date for telephone answering in 6.1 or 6.7? | E117: Using 060101 as naming standard not 060701 for start dates
B118: Table 6.1.1 and 6.7.1 - Start Date as Text | C118: =IF(dms_SingleYearModel="yes",(CONCATENATE(IF(LEN(CRY)=4,"1-Jan-","1-Jul-"),LEFT(CRY,4))),(CONCATENATE(IF(LEN(PRCP_y4)=4,"1-Jan-","1-Jul-"),LEFT(PRCP_y4,4)))) -> 1-Jul-2017 | D118: dms_060101_StartDateTxt | E118: =IF(SUM(dms_SingleYear_Model)>1,(CONCATENATE(IF(LEN(CRY)=4,"1-Jan-","1-Jul-"),LEFT(CRY,4))),(CONCATENATE(IF(LEN(CRCP_y4)=4,"1-Jan-","1-Jul-"),LEFT(CRCP_y4,4))))
B119: Table 6.1.1 and 6.7.1 - Start Date as Date Value | C119: =DATEVALUE(dms_060701_StartDateTxt) -> 42917 | D119: dms_060101_StartDateVal | E119: =DATEVALUE(dms_060701_StartDateTxt)
B120: ARRs
B121: How many rows in table 6.8? | C121: insert dms_060801_StartCell NR if required | E121: dms_060801_StartCell is only found on worksheet 6.8 and is used to determine the starting date for the date range
B122: Is dms_060801_StartCell named range present? | C122: yes | E122: =IFERROR(IF((ROW(dms_060801_StartCell)-1)=1,"yes","yes"),"no")
B123: Table 6.8 - Number of offset rows | C123: =IFERROR(IF(dms_Model="ARR",(ROW(dms_060801_StartCell)-1),"not an ARR"),"6.8 error") -> 11 | D123: dms_0608_OffsetRows | E123: =IFERROR(IF(dms_Model="ARR",(ROW(dms_060801_StartCell)-1),"not an ARR"),"6.8 error")
B124: Table 6.8 - Last row | C124: =IFERROR(IF(dms_060801_StartCell<>"",IF(dms_Model="ARR",(LOOKUP(2,1/(dms_060801_01_Values<>""),(ROW(dms_060801_01_Values)))),"not an ARR"),0),"6.8 not present") -> 998 | D124: dms_0608_LastRow | E124: =IFERROR(IF(dms_060801_StartCell<>"",IF(dms_Model="ARR",(LOOKUP(2,1/(dms_060801_01_Values<>""),(ROW(dms_060801_01_Values)))),"not an ARR"),0),"6.8 not present")
B125: Table 6.8 - MaxRows | C125: =IFERROR(IF(dms_Model="ARR",(MAX(0,dms_0608_LastRow-dms_0608_OffsetRows)),"not an ARR"),"6.8 not present") -> 987 | D125: dms_060801_MaxRows | E125: =IFERROR(IF(dms_Model="ARR",(MAX(0,dms_0608_LastRow-dms_0608_OffsetRows)),"not an ARR"),"6.8 not present")
B126: TNSP RESET RINS
B127: Table 7.9.4 only appears in TNSPs Reset RIN
B128: Table 7.9.4 - first year | C128: =LEFT(PRCP_y3,4) -> 2012 | D128: dms_070904_Start_Year | E128: =LEFT(PRCP_y3,4)
B129: SUBSET FILES
B130: Is this Submission File a Subset File | C130: NO | D130: dms_Partial
B131: MISC
B132: Distribution Determination Reference | C132: =INDEX(dms_DeterminationRef_List,MATCH(dms_TradingName,dms_TradingName_List)) -> distribution determination | D132: dms_DeterminationRef
B133: Public lighting NSP? | C133: =INDEX(dms_Public_Lighting_List,MATCH(dms_TradingName,dms_TradingName_List)) -> YES | D133: dms_Public_Lighting | E133: =INDEX(dms_Public_Lighting_List,MATCH(dms_TradingName,dms_TradingName_List))
B134: CBD Feeder for this business | C134: =INDEX(dms_CBD_flag,MATCH(dms_TradingName,dms_TradingName_List)) -> YES | D134: dms_CBD_flag_NSP
B135: Urban Feeder for this business | C135: =INDEX(dms_Urban_flag,MATCH(dms_TradingName,dms_TradingName_List)) -> YES | D135: dms_Urban_flag_NSP
B136: Short rural Feeder for this business | C136: =INDEX(dms_ShortRural_flag,MATCH(dms_TradingName,dms_TradingName_List)) -> YES | D136: dms_ShortRural_flag_NSP
B137: Long rural Feeder for this business | C137: =INDEX(dms_LongRural_flag,MATCH(dms_TradingName,dms_TradingName_List)) -> YES | D137: dms_LongRural_flag_NSP
B138: Fifth Feeder Category (eg. TasNetworks (D)) | C138: =INDEX(dms_FeederType_5_flag,MATCH(dms_TradingName,dms_TradingName_List)) -> YES | D138: dms_FifthFeeder_flag_NSP | E138: =INDEX(dms_FeederType_5_flag,MATCH(dms_TradingName,dms_TradingName_List))
B140: DISCARD FILES
B141: discard this record? | C141: NO | D141: dms_DISCARD | E141: If record is to be discarded from DB set this flag to YES
B143: USES NAMED RANGES FLAG | C143: yes | D143: dms_Defined_Names_Used
B145: REGULATORY YEARS FOR MULTI RYE SUBMISSIONS
B146: Multiple RYE flag | C146: NO | D146: dms_Multi_RYE_flag
C147: Manually specify RYE | D147: Named ranges to apply
C148: 2013 | D148: dms_RYE_01
C149: 2014 | D149: dms_RYE_02
C150: 2015 | D150: dms_RYE_03
C151: 2016 | D151: dms_RYE_04
C152: 2017 | D152: dms_RYE_05
C153: 2018 | D153: dms_RYE_06
C154: 2019 | D154: dms_RYE_07
C155: 2020 | D155: dms_RYE_08
C156: 2021 | D156: dms_RYE_09

Sheet 2.11 Labour
B1: =IF(dms_DataQuality="backcast",INDEX(dms_Worksheet_List,MATCH(dms_Model,dms_Model_List))&" BACKCAST",INDEX(dms_Worksheet_List,MATCH(dms_Model,dms_Model_List))) -> ANNUAL REPORTING STATEMENT
B2: =INDEX(dms_TradingNameFull_List,MATCH(dms_TradingName,dms_TradingName_List)) -> TasNetworks (D)
B3: =CONCATENATE("Annual Reporting RIN Response ",IF(SUM(dms_SingleYear_Model)>0,CONCATENATE(CRY),CONCATENATE(FRCP_y1," to ",dms_MultiYear_FinalYear_Result))) -> Annual Reporting RIN Response 2017-18
B4: 2.11 LABOUR
B6: Tables 2.11.1 and 2.11.2 deliberately omitted.
B8: 2.11.3 - LABOUR / NON-LABOUR EXPENDITURE SPLIT
B9: 2.11.3.1 - Opex
C10: =CRY -> 2017-18
C11: $0's, nominal
C12: Opex
B13: In-house labour expenditure | C13: 45083761.67
B14: Labour expenditure outsourced to related parties | C14: 0
B15: Labour expenditure outsourced to unrelated parties | C15: 2550938.606
B16: Controllable non-labour expenditure | C16: 38781646.66
B17: Uncontrollable non-labour expenditure
B18: Total | C18: =SUM(C13:C17) -> 86416346.93
B20: Reconciliation with Opex worksheets - SCS | C20: Opex
B21: Total including margins | C21: =dms_Total_Actual_Opex -> 86416346.93 | D21: =IF(ROUND(C18,0)=ROUND(dms_Total_Actual_Opex,0),"OK","Error") -> OK
B24: 2.11.3.2 - Capex
C25: =CRY -> 2017-18
C26: $0's, nominal
C27: Capex
B28: In-house labour expenditure | C28: 43522867.64
B29: Labour expenditure outsourced to related parties
B30: Labour expenditure outsourced to unrelated parties | C30: 2462619.782
B31: Controllable non-labour expenditure | C31: 116339880.7
B32: Uncontrollable non-labour expenditure
B33: Total | C33: =SUM(C28:C32) -> 162325368.2
B35: Reconciliation with Capex & Opex worksheets - SCS | C35: Capex
B36: Total including margins | C36: =dms_Total_Actual_Capex -> 162325368.2 | D36: =IF(ROUND(C33,0)=ROUND(dms_Total_Actual_Capex,0),"OK","Error") -> OK

Sheet 3.6 Quality of services
B1: =IF(dms_DataQuality="backcast",INDEX(dms_Worksheet_List,MATCH(dms_Model,dms_Model_List))&" BACKCAST",INDEX(dms_Worksheet_List,MATCH(dms_Model,dms_Model_List))) -> ANNUAL REPORTING STATEMENT
B2: =INDEX(dms_TradingNameFull_List,MATCH(dms_TradingName,dms_TradingName_List)) -> TasNetworks (D)
B3: =CONCATENATE("Annual Reporting RIN Response ",IF(SUM(dms_SingleYear_Model)>0,CONCATENATE(CRY),CONCATENATE(FRCP_y1," to ",dms_MultiYear_FinalYear_Result))) -> Annual Reporting RIN Response 2017-18
B4: 3.6 QUALITY OF SERVICES
B6: 3.6.5 - QUALITY OF SUPPLY METRICS
D7: Volume
C8: Units | D8: =CRY -> 2017-18
B9: Over voltage events - due to high voltage injection | C9: number | D9: 2
B10: Customers receiving over-voltage - due to high voltage injection | C10: number | D10: 4
B11: Over voltage events - due to lightning | C11: number | D11: 20
B12: Customers receiving over-voltage - due to lightning | C12: number | D12: 40
B13: Over voltage events - due to voltage regulation or other cause | C13: number | D13: 148
B14: Customers receiving over-voltage - due to voltage regulation or other cause | C14: number | D14: 148
B15: Voltage variations - steady state (zone sub) | C15: number | D15: 327
B16: Voltage variations - one minute (zone sub) | C16: number | D16: 0
B17: Voltage variations - 10 seconds (zone sub) Min<0.7 | C17: number | D17: 0
B18: Voltage variations - 10 seconds (zone sub) Min<0.8 | C18: number | D18: 0
B19: Voltage variations - 10 seconds (zone sub) Min<0.9 | C19: number | D19: 0
B20: Voltage variations - steady state (feeder) | C20: number | D20: 326
B21: Voltage variations - % zone subs monitored | C21: (per cent) | D21: 1
B22: Voltage variations - % feeders monitored | C22: (per cent) | D22: 0.09
B24: 3.6.6 - COMPLAINTS - TECHNICAL QUALITY OF SUPPLY
D25: Volume
C26: Units | D26: =CRY -> 2017-18
B27: 3.6.6.1 - TECHNICAL QUALITY OF SUPPLY
B28: Number of complaints - technical quality of supply | C28: number | D28: 412
B29: 3.6.6.2 - PERCENTAGE OF COMPLAINTS BY CATEGORY
B30: Low voltage supply | C30: (per cent) | D30: 0.06
B31: Voltage dips | C31: (per cent) | D31: 0.08
B32: Voltage swell | C32: (per cent) | D32: 0.23
B33: Voltage spike (impulsive transient) | C33: (per cent) | D33: 0
B34: Waveform distortion | C34: (per cent) | D34: 0
B35: TV or radio interference | C35: (per cent) | D35: 0.02
B36: Solar related | C36: (per cent) | D36: 0
B37: Noise from appliances | C37: (per cent) | D37: 0
B38: Other | C38: (per cent) | D38: 0.61
B39: 3.6.6.3 - PERCENTAGE OF COMPLAINTS BY LIKELY CAUSE
B40: Network equipment faulty | C40: (per cent) | D40: 0.01
B41: Network interference by NSP equipment | C41: (per cent) | D41: 0
B42: Network interference by another customer | C42: (per cent) | D42: 0.01
B43: Network limitation | C43: (per cent) | D43: 0.41
B44: Customer internal problem | C44: (per cent) | D44: 0.01
B45: No problem identified | C45: (per cent) | D45: 0.54
B46: Environmental | C46: (per cent) | D46: 0.01
B47: Other | C47: (per cent) | D47: 0.01
B51: 3.6.7 - CUSTOMER SERVICE METRICS
D52: Volume
C53: Unit | D53: =CRY -> 2017-18
B54: 3.6.7.1 - TIMELY PROVISIONS OF SERVICES
B55: Number of connections made | C55: number | D55: 2959
B56: Number of connections not made on or before agreed date | C56: number | D56: 525
B57: 3.6.7.2 - TIMELY REPAIR OF FAULTY STREET LIGHTS
B58: Street lights - average monthly number "out" | C58: number | D58: 171.83
B59: Street lights - not repaired by "fix by" date | C59: number | D59: 908
B60: Street lights - average number of days to repair | C60: number | D60: 12.43
B61: Total number of street lights | C61: number | D61: 36383
B62: 3.6.7.3 - CALL CENTRE PERFORMANCE
B63: Calls to call centre fault line | C63: number | D63: =SUM(dms_060101_Values) -> 42634
B64: Calls to fault line answered within 30 seconds | C64: number | D64: =SUM(dms_060102_Values) -> 34315
B65: Calls to fault line - average waiting time before call answered | C65: number | D65: 47
B66: Call centre - number of overload events | C66: number | D66: N/A
B67: Percentage of calls abandoned | C67: (per cent) | D67: 0.1722
B68: 3.6.7.4 - NUMBER OF CUSTOMER COMPLAINTS
B69: Complaint - reliability of supply | C69: number | D69: 111
B70: Complaint - technical quality of supply | C70: number | D70: =dms_030606_01_Values -> 412
B71: Complaint - administrative process or customer service | C71: number | D71: 0
B72: Complaint - connection or augmentation | C72: number | D72: 146
B73: Complaint - other | C73: number | D73: 1946
B74: Total number of complaints | C74: number | D74: =SUM(D69:D73) -> 2615

Sheet 3.6.8 Network-feeders
B1: =IF(dms_DataQuality="backcast",INDEX(dms_Worksheet_List,MATCH(dms_Model,dms_Model_List))&" BACKCAST",INDEX(dms_Worksheet_List,MATCH(dms_Model,dms_Model_List))) -> ANNUAL REPORTING STATEMENT
B2: =INDEX(dms_TradingNameFull_List,MATCH(dms_TradingName,dms_TradingName_List)) -> TasNetworks (D)
B3: =CONCATENATE("Annual Reporting RIN Response ",IF(SUM(dms_SingleYear_Model)>0,CONCATENATE(CRY),CONCATENATE(FRCP_y1," to ",dms_MultiYear_FinalYear_Result))) -> Annual Reporting RIN Response 2017-18
B4: 3.6 QUALITY OF SERVICES
B6: Did the MAIFI parameter of the STPIS apply during the period? | F6: No | G6: ** IMPORTANT Please ensure this question is answered correctly. Your response will affect other tables throughout this workbook and will determine which cells are grey and which are input cells.
B10: 3.6.8 - NETWORK FEEDER RELIABILITY
B11: Feeder ID / name | C11: Description of the service area for the feeder | D11: Feeder classification (drop down) | E11: Number of distribution customers | F11: Length of high voltage distribution lines | H11: Maximum demand (MVA) | I11: Energy not supplied (MWh) | K11: Unplanned Outages | P11: Planned Outages | U11: Momentary feeder outages
F12: Overhead | G12: Underground | I12: Unplanned | J12: Planned | K12: Total number of unplanned outages | L12: Unplanned customer minutes off-supply (SAIDI) | N12: Unplanned interruptions (SAIFI) | P12: Total number of planned outages | Q12: Planned customer minutes off-supply (SAIDI) | S12: Planned interruptions (SAIFI) | U12: Total number of momentary feeder outages | V12: Momentary interruptions due to feeder outages (MAIFI)
L13: Including excluded events and MEDs | M13: After removing excluded events and MED | N13: Including excluded events and MEDs | O13: After removing excluded events and MED | Q13: Including MEDs | R13: After removing MED | S13: Including MEDs | T13: After removing MED | V13: Including excluded events and MEDs | W13: After removing excluded events and MED
B14: 12017 | C14: Enterprise Rd-Mt Nelson-Taroona | D14: Urban | E14: 1004 | F14: 6.514 | G14: 3.172 | H14: 3.3533 | I14: 34.54565744 | J14: 0.6669204574 | K14: 22 | L14: 1087.219993 | M14: 204.4082374 | N14: 5.11655821 | O14: 3.11155573 | P14: 1 | Q14: 35.41170585 | R14: 35.41170585 | S14: 0.10205102 | T14: 0.10205102
B15: 12018 | C15: Upper Sandy Bay | D15: Urban | E15: 888 | F15: 0.02 | G15: 4.424 | H15: 2.6661 | I15: 23.08337469 | J15: 0.3837586879 | K15: 6 | L15: 0.9786756453 | M15: 0.9786756453 | N15: 0.00448932 | O15: 0.00448932 | P15: 2 | Q15: 51.16782637 | R15: 51.16782637 | S15: 0.17059483 | T15: 0.17059483
B16: 12019 | C16: Lower Sandy Bay | D16: Urban | E16: 1129 | F16: 2.199 | G16: 3.558 | H16: 3.6162 | I16: 39.12449424 | J16: 0.9301158214 | K16: 14 | L16: 5.145296478 | M16: 5.145296478 | N16: 0.07489966 | O16: 0.07489966 | P16: 5 | Q16: 37.95630852 | R16: 37.95630852 | S16: 0.23896564 | T16: 0.23896564
B17: 12030 | C17: Lower Sandy Bay-Taroona (North)-Station Supply | D17: Short Rural | E17: 936 | F17: 6.18 | G17: 5.241 | H17: 3.2993 | I17: 28.89259722 | J17: 0.3824483978 | K17: 29 | L17: 430.9289995 | M17: 430.9289995 | N17: 2.36490098 | O17: 2.36490098 | P17: 5 | Q17: 20.58052434 | R17: 20.58052434 | S17: 0.14874261 | T17: 0.14874261
B18: 12031 | C18: Mt Nelson-Taroona | D18: Urban | E18: 952 | F18: 10.201 | G18: 4.089 | H18: 4.4259 | I18: 57.63928719 | J18: 7.183685673 | K18: 29 | L18: 182.5453134 | M18: 182.5453134 | N18: 3.2090224 | O18: 3.2090224 | P18: 14 | Q18: 197.6070175 | R18: 197.6070175 | S18: 0.57944855 | T18: 0.57944855
B19: 12032 | C19: Sandy Bay-Dynnyrne-Waterworks Reserve | D19: Short Rural | E19: 681 | F19: 2.749 | G19: 3.999 | H19: 1.9618 | I19: 18.05765089 | J19: 0.005709677174 | K19: 9 | L19: 7.211314809 | M19: 7.211314809 | N19: 0.22287386 | O19: 0.22287386 | P19: 1 | Q19: 1.903225806 | R19: 1.903225806 | S19: 0.08651026 | T19: 0.08651026
B20: 12033 | C20: Sandy Bay | D20: Urban | E20: 344 | F20: 0.683 | G20: 2.389 | H20: 1.1787 | I20: 9.501159726 | J20: 0 | K20: 5 | L20: 1.388646288 | M20: 1.388646288 | N20: 0.0087336 | O20: 0.0087336 | P20: 0 | Q20: 0 | R20: 0 | S20: 0 | T20: 0
B21: 12034 | C21: University Boiler House | D21: Short Rural | E21: 1 | F21: 0 | G21: 0.194 | H21: 0.0267 | I21: 0 | J21: 0 | K21: 0 | L21: 0 | M21: 0 | N21: 0 | O21: 0 | P21: 0 | Q21: 0 | R21: 0 | S21: 0 | T21: 0
B22: 12035 | C22: Sandy Bay | D22: Urban | E22: 852 | F22: 1.266 | G22: 4.317 | H22: 3.0808 | I22: 29.1313154 | J22: 0.4028315176 | K22: 12 | L22: 43.16447955 | M22: 43.16447955 | N22: 0.22378436 | O22: 0.22378436 | P22: 5 | Q22: 15.22788518 | R22: 15.22788518 | S22: 0.07029874 | T22: 0.07029874
B23: 12036 | C23: Sandy Bay-Fitzroy Place | D23: Urban | E23: 15 | F23: 0.294 | G23: 3.516 | H23: 4.3281 | I23: 20.16243715 | J23: 0 | K23: 1 | L23: 0 | M23: 0 | N23: 0 | O23: 0 | P23: 0 | Q23: 0 | R23: 0 | S23: 0 | T23: 0
B24: 12037 | C24: Casino-Battery Point | D24: Urban | E24: 312 | F24: 0 | G24: 2.85 | H24: 2.6826 | I24: 29.20421677 | J24: 0 | K24: 4 | L24: 2.551068884 | M24: 2.551068884 | N24: 0.01425178 | O24: 0.01425178 | P24: 0 | Q24: 0 | R24: 0 | S24: 0 | T24: 0
B25: 12038 | C25: Tolmans Hill-Mt Nelson-Taroona-Sandy Bay | D25: Short Rural | E25: 747 | F25: 27.418 | G25: 4.288 | H25: 3.1862 | I25: 27.89228632 | J25: 1.11753346 | K25: 16 | L25: 124.8047075 | M25: 124.8047075 | N25: 1.35171473 | O25: 1.35171473 | P25: 7 | Q25: 54.08437566 | R25: 54.08437566 | S25: 0.18829851 | T25: 0.18829851
B26: 12039 | C26: West Hobart Zone | D26: Urban | E26: 1184 | F26: 0.521 | G26: 4.801 | H26: 3.4758 | I26: 39.36250362 | J26: 0.3638904031 | K26: 12 | L26: 14.8917544 | M26: 14.8917544 | N26: 0.11040873 | O26: 0.11040873 | P26: 1 | Q26: 11.04930468 | R26: 11.04930468 | S26: 0.03202697 | T26: 0.03202697
B27: 13043 | C27: Lynton Avenue South Hobart | D27: Urban | E27: 437 | F27: 0 | G27: 1.472 | H27: 1.4861 | I27: 0.0196421932 | J27: 0 | K27: 3 | L27: 1.086306099 | M27: 1.086306099 | N27: 0.00690447 | O27: 0.00690447 | P27: 0 | Q27: 0 | R27: 0 | S27: 0 | T27: 0
B28: 13044 | C28: City West to Harrington and Murray Sts | D28: Urban | E28: 516 | F28: 0 | G28: 3.382 | H28: 4.6869 | I28: 2.037135121 | J28: 0.176372285 | K28: 3 | L28: 44.31766201 | M28: 44.31766201 | N28: 0.09656924 | O28: 0.09656924 | P28: 1 | Q28: 8.76747141 | R28: 8.76747141 | S28: 0.03811944 | T28: 0.03811944
B29: 13045 | C29: South Hobart-Cascades | D29: Short Rural | E29: 1553 | F29: 10.822 | G29: 4.37 | H29: 4.109 | I29: 15.1592024 | J29: 0.235951532 | K29: 23 | L29: 585.4766784 | M29: 585.4766784 | N29: 4.04304515 | O29: 4.04304515 | P29: 7 | Q29: 9.03629939 | R29: 9.03629939 | S29: 0.04111785 | T29: 0.04111785
B30: 13046 | C30: City (South)(Collins St) | D30: Urban | E30: 8 | F30: 0 | G30: 0.893 | H30: 1.3146 | I30: 0.01953333219 | J30: 0 | K30: 1 | L30: 4 | M30: 4 | N30: 0.125 | O30: 0.125 | P30: 0 | Q30: 0 | R30: 0 | S30: 0 | T30: 0
B31: 13047 | C31: City (South-East)(Macquarie St)-Salamanca | D31: Urban | E31: 0 | F31: 0 | G31: 1.971 | H31: 1.0987 | I31: 0.004866597939 | J31: 0.5259922713 | K31: 1 | L31: 0.5078191358 | M31: 0.5078191358 | N31: 0.00617283 | O31: 0.00617283 | P31: 1 | Q31: 96.51234568 | R31: 96.51234568 | S31: 0.32716049 | T31: 0.32716049
B32: 13048 | C32: Molle St Near Collins | D32: Urban | E32: 372 | F32: 0 | G32: 1.916 | H32: 3.8423 | I32: 0.1540584082 | J32: 0.001053040352 | K32: 2 | L32: 0.3462050599 | M32: 0.3462050599 | N32: 0.00266311 | O32: 0.00266311 | P32: 1 | Q32: 0.9720372836 | R32: 0.9720372836 | S32: 0.00266311 | T32: 0.00266311
B33: 13049 | C33: West Hobart (Hill St - Arthur St) | D33: Urban | E33: 998 | F33: 0.534 | G33: 3.762 | H33: 2.7817 | I33: 0.02032507819 | J33: 0.4889256984 | K33: 7 | L33: 0.8601573293 | M33: 0.8601573293 | N33: 0.00602406 | O33: 0.00602406 | P33: 5 | Q33: 29.3373494 | R33: 29.3373494 | S33: 0.10642568 | T33: 0.10642568
B34: 13050 | C34: Sandy Bay | D34: Urban | E34: 291 | F34: 0.043 | G34: 2.83 | H34: 1.4035 | I34: 0.02820430462 | J34: 0 | K34: 2 | L34: 1.173010381 | M34: 1.173010381 | N34: 0.0034602 | O34: 0.0034602 | P34: 0 | Q34: 0 | R34: 0 | S34: 0 | T34: 0
B35: 13051 | C35: Open | D35: Short Rural | E35: 0 | F35: 0 | G35: 0 | H35: 0 | I35: 0 | J35: 0 | K35: 0 | L35: 0 | M35: 0 | N35: 0 | O35: 0 | P35: 0 | Q35: 0 | R35: 0 | S35: 0 | T35: 0
B36: 13052 | C36: Battery Point | D36: Urban | E36: 712 | F36: 0.126 | G36: 5.963 | H36: 4.7504 | I36: 0.3093860081 | J36: 0 | K36: 3 | L36: 4.553544648 | M36: 4.553544648 | N36: 0.0028169 | O36: 0.0028169 | P36: 0 | Q36: 0 | R36: 0 | S36: 0 | T36: 0
B37: 13053 | C37: Battery Point (Hampton Road) | D37: Urban | E37: 761 | F37: 0 | G37: 3.699 | H37: 2.7436 | I37: 0.1853245338 | J37: 0.6919713924 | K37: 11 | L37: 7.053377426 | M37: 7.053377426 | N37: 0.18085806 | O37: 0.18085806 | P37: 3 | Q37: 34.56105611 | R37: 34.56105611 | S37: 0.12145213 | T37: 0.12145213
B38: 13054 | C38: St Davids Park | D38: Urban | E38: 246 | F38: 0 | G38: 2.082 | H38: 2.6864 | I38: 1.107280563 | J38: 0 | K38: 5 | L38: 62.83129584 | M38: 62.83129584 | N38: 1.01711488 | O38: 1.01711488 | P38: 0 | Q38: 0 | R38: 0 | S38: 0 | T38: 0
B39: 13055 | C39: South Hobart | D39: Urban | E39: 897 | F39: 2.505 | G39: 2.119 | H39: 3.4549 | I39: 0.2182006077 | J39: 2.011799092 | K39: 11 | L39: 11.67299107 | M39: 11.67299107 | N39: 0.14285713 | O39: 0.14285713 | P39: 2 | Q39: 61.20535714 | R39: 61.20535714 | S39: 0.25334821 | T39: 0.25334821
B40: 13056 | C40: South Hobart - Sandy Bay Zone | D40: Urban | E40: 597 | F40: 0.583 | G40: 2.082 | H40: 1.5242 | I40: 0.003380128208 | J40: 0 | K40: 4 | L40: 0.2862876254 | M40: 0.2862876254 | N40: 0.00334448 | O40: 0.00334448 | P40: 0 | Q40: 0 | R40: 0 | S40: 0 | T40: 0
B41: 13057 | C41: Huon Road-Mount Wellington-Nieka | D41: Short Rural | E41: 879 | F41: 39.092 | G41: 0.932 | H41: 3.3215 | I41: 9.38762335 | J41: 0.5171604831 | K41: 27 | L41: 66.53700537 | M41: 66.53700537 | N41: 1.19520542 | O41: 1.19520542 | P41: 6 | Q41: 22.82534247 | R41: 22.82534247 | S41: 0.07305934 | T41: 0.07305934
B42: 13058 | C42: MacQuarie St | D42: Urban | E42: 27 | F42: 0 | G42: 1.305 | H42: 1.4035 | I42: 0 | J42: 0 | K42: 0 | L42: 0 | M42: 0 | N42: 0 | O42: 0 | P42: 0 | Q42: 0 | R42: 0 | S42: 0 | T42: 0
B43: 14060 | C43: Evans St | D43: Short Rural | E43: 128 | F43: 0 | G43: 1.364 | H43: 0 | I43: 20.67123558 | J43: 0 | K43: 1 | L43: 0 | M43: 0 | N43: 0 | O43: 0 | P43: 0 | Q43: 0 | R43: 0 | S43: 0 | T43: 0
B44: 14061 | C44: Domain-Tasman Bridge | D44: Urban | E44: 55 | F44: 1.071 | G44: 2.016 | H44: 1.6703 | I44: 1.386642318 | J44: 0.01829287931 | K44: 2 | L44: 70.19417476 | M44: 70.19417476 | N44: 1.04854367 | O44: 1.04854367 | P44: 1 | Q44: 1.844660194 | R44: 1.844660194 | S44: 0.01941747 | T44: 0.01941747
B45: 14062 | C45: City (East)-Marine Board Group | D45: Urban | E45: 116 | F45: 0 | G45: 3.242 | H45: 2.1974 | I45: 7.241356256 | J45: 0.3184374794 | K45: 1 | L45: 0 | M45: 0 | N45: 0 | O45: 0 | P45: 1 | Q45: 9.375 | R45: 9.375 | S45: 0.125 | T45: 0.125
B46: 14063 | C46: Argyle St North Hobart | D46: Urban | E46: 277 | F46: 0 | G46: 2.454 | H46: 2.4768 | I46: 0.0283547509 | J46: 0.02128920609 | K46: 4 | L46: 1.007535642 | M46: 1.007535642 | N46: 0.00814662 | O46: 0.00814662 | P46: 2 | Q46: 1.83299389 | R46: 1.83299389 | S46: 0.01629326 | T46: 0.01629326
B47: 14064 | C47: Collins Street to CBD | D47: Urban | E47: 51 | F47: 0 | G47: 0.757 | H47: 2.3371 | I47: 0 | J47: 0.01634304192 | K47: 0 | L47: 0 | M47: 0 | N47: 0 | O47: 0 | P47: 1 | Q47: 1.941747573 | R47: 1.941747573 | S47: 0.03883495 | T47: 0.03883495
B48: 14065 | C48: Sackville-Collins-Argyle-Liverpool-Mall-Collins | D48: Urban | E48: 324 | F48: 0 | G48: 1.901 | H48: 5.3919 | I48: 0.008481846296 | J48: 0 | K48: 1 | L48: 0.4061538462 | M48: 0.4061538462 | N48: 0.00307692 | O48: 0.00307692 | P48: 0 | Q48: 0 | R48: 0 | S48: 0 | T48: 0
B49: 14066 | C49: Brooker Ave (University - Tech College) | D49: Urban | E49: 78 | F49: 0 | G49: 0.69 | H49: 2.1466 | I49: 0 | J49: 0 | K49: 0 | L49: 0 | M49: 0 | N49: 0 | O49: 0 | P49: 0 | Q49: 0 | R49: 0 | S49: 0 | T49: 0
B50: 14067 | C50: Parliament Sq and Law Courts via Davey St | D50: Urban | E50: 118 | F50: 0 | G50: 1.819 | H50: 4.7314 | I50: 0 | J50: 8.224540876 | K50: 0 | L50: 0 | M50: 0 | N50: 0 | O50: 0 | P50: 2 | Q50: 170.6741573 | R50: 170.6741573 | S50: 0.6142322 | T50: 0.6142322
B51: 14068 | C51: Town Hall | D51: Urban | E51: 168 | F51: 0 | G51: 1.603 | H51: 3.5819 | I51: 0 | J51: 0 | K51: 0 | L51: 0 | M51: 0 | N51: 0 | O51: 0 | P51: 0 | Q51: 0 | R51: 0 | S51: 0 | T51: 0
B52: 14069 | C52: Murray St SBT to State Offices Macqu St Market Pl | D52: Urban | E52: 73 | F52: 0 | G52: 1.551 | H52: 3.3278 | I52: 0 | J52: 0.06722602656 | K52: 1 | L52: 0 | M52: 0 | N52: 0 | O52: 0 | P52: 2 | Q52: 7.397260274 | R52: 7.397260274 | S52: 0.04109589 | T52: 0.04109589
B53: 14070 | C53: Mawson Place - West Hobart Zone | D53: Urban | E53: 145 | F53: 0 | G53: 3.063 | H53: 4.2233 | I53: 0 | J53: 0.329425184 | K53: 0 | L53: 0 | M53: 0 | N53: 0 | O53: 0 | P53: 1 | Q53: 10.11023622 | R53: 10.11023622 | S53: 0.02362204 | T53: 0.02362204
B54: 16091 | C54: Albert Rpad-Charles St Moonah | D54: Urban | E54: 1044 | F54: 2.809 | G54: 7.405 | H54: 4.7187 | I54: 0.7764491237 | J54: 0.5897442658 | K54: 14 | L54: 32.8633662 | M54: 32.8633662 | N54: 0.72576457 | O54: 0.72576457 | P54: 1 | Q54: 14.44271643 | R54: 14.44271643 | S54: 0.20632452 | T54: 0.20632452
B55: 16092 | C55: Moonah-Gormanston Rd | D55: Urban | E55: 639 | F55: 0 | G55: 2.59 | H55: 2.172 | I55: 0.05362138537 | J55: 0.5301740012 | K55: 6 | L55: 2.638563622 | M55: 2.638563622 | N55: 0.38563622 | O55: 0.38563622 | P55: 1 | Q55: 34.7275566 | R55: 34.7275566 | S55: 0.09211553 | T55: 0.09211553
B56: 16093 | C56: Moonah-Birdwood Dr | D56: Urban | E56: 294 | F56: 0 | G56: 3.521 | H56: 2.3625 | I56: 0.2604423948 | J56: 0 | K56: 6 | L56: 30.98019417 | M56: 30.98019417 | N56: 0.12556052 | O56: 0.12556052 | P56: 0 | Q56: 0 | R56: 0 | S56: 0 | T56: 0
B57: 16094 | C57: Lutana | D57: Urban | E57: 1073 | F57: 3.595 | G57: 2.54 | H57: 3.9502 | I57: 3.439860865 | J57: 0.02917284051 | K57: 18 | L57: 95.42699599 | M57: 95.42699599 | N57: 1.35228325 | O57: 1.35228325 | P57: 2 | Q57: 0.6663560112 | R57: 0.6663560112 | S57: 0.00186392 | T57: 0.00186392
B58: 16095 | C58: Selfs Point-Lenox Avenue | D58: Urban | E58: 156 | F58: 1.279 | G58: 2.221 | H58: 1.8163 | I58: 0.3780517141 | J58: 0.003303834822 | K58: 4 | L58: 43.38938053 | M58: 43.38938053 | N58: 0.4896755 | O58: 0.4896755 | P58: 1 | Q58: 0.7079646018 | R58: 0.7079646018 | S58: 0.0058997 | T58: 0.0058997
B59: 16096 | C59: North Hobart | D59: Urban | E59: 1133 | F59: 1.725 | G59: 8.098 | H59: 3.8423 | I59: 0.05179790107 | J59: 0.43258338 | K59: 13 | L59: 1.894943211 | M59: 1.894943211 | N59: 0.01238386 | O59: 0.01238386 | P59: 3 | Q59: 11.21185316 | R59: 11.21185316 | S59: 0.06103492 | T59: 0.06103492
B60: 16097 | C60: New Town (Cross St) | D60: Urban | E60: 201 | F60: 0 | G60: 1.25 | H60: 1.1241 | I60: 0.01652338315 | J60: 0 | K60: 1 | L60: 1.373134328 | M60: 1.373134328 | N60: 0.00497512 | O60: 0.00497512 | P60: 0 | Q60: 0 | R60: 0 | S60: 0 | T60: 0
B61: 16098 | C61: Augusta Rd Lenah Valley-Creek Road Lenah Valley | D61: Urban | E61: 1066 | F61: 3.922 | G61: 3.737 | H61: 4.1725 | I61: 3.110436944 | J61: 0.1440238332 | K61: 11 | L61: 104.3001558 | M61: 104.3001558 | N61: 1.62336443 | O61: 1.62336443 | P61: 2 | Q61: 5.397196262 | R61: 5.397196262 | S61: 0.02242989 | T61: 0.02242989
B62: 17100 | C62: Eady St nr Cooper St-Derwent Pk (East) | D62: Urban | E62: 61 | F62: 0 | G62: 4.692 | H62: 2.8388 | I62: 0 | J62: 0 | K62: 0 | L62: 0 | M62: 0 | N62: 0 | O62: 0 | P62: 0 | Q62: 0 | R62: 0 | S62: 0 | T62: 0
B63: 17101 | C63: East Derwent Hwy Bowen Bridge | D63: Short Rural | E63: 343 | F63: 10.114 | G63: 6.391 | H63: 3.4358 | I63: 0.5271335829 | J63: 0.5535770661 | K63: 10 | L63: 25.12914211 | M63: 25.12914211 | N63: 0.32163738 | O63: 0.32163738 | P63: 3 | Q63: 48.38888889 | R63: 48.38888889 | S63: 0.24269004 | T63: 0.24269004
B64: 17102 | C64: Derwent Park (HEC Garage) | D64: Urban | E64: 1 | F64: 0 | G64: 0.819 | H64: 0.2985 | I64: 0 | J64: 0 | K64: 0 | L64: 0 | M64: 0 | N64: 0 | O64: 0 | P64: 0 | Q64: 0 | R64: 0 | S64: 0 | T64: 0
B65: 17103 | C65: Dowsing Point-Grove Road | D65: Urban | E65: 598 | F65: 2.039 | G65: 4.934 | H65: 3.3024 | I65: 0.5021629171 | J65: 0.05766393085 | K65: 13 | L65: 22.27280335 | M65: 22.27280335 | N65: 0.41506273 | O65: 0.41506273 | P65: 3 | Q65: 3.168200837 | R65: 3.168200837 | S65: 0.01338912 | T65: 0.01338912
B66: 17104 | C66: Derwent Park (Sunderland Street) | D66: Urban | E66: 156 | F66: 0 | G66: 1.864 | H66: 2.0069 | I66: 0.06786236243 | J66: 0.08448924815 | K66: 5 | L66: 17.70322581 | M66: 17.70322581 | N66: 0.31612903 | O66: 0.31612903 | P66: 2 | Q66: 29.19354839 | R66: 29.19354839 | S66: 0.07741935 | T66: 0.07741935
B67: 17105 | C67: Goodwood | D67: Urban | E67: 873 | F67: 2.715 | G67: 3.901 | H67: 3.6644 | I67: 0.06405675394 | J67: 0.5849885659 | K67: 13 | L67: 0.6464530892 | M67: 0.6464530892 | N67: 0.00915328 | O67: 0.00915328 | P67: 2 | Q67: 23.71853547 | R67: 23.71853547 | S67: 0.05377573 | T67: 0.05377573
B68: 17106 | C68: Brooker Hwy Lutana | D68: Urban | E68: 489 | F68: 2.58 | G68: 3.393 | H68: 3.4993 | I68: 0.3176787921 | J68: 0.7679751608 | K68: 4 | L68: 2.05210062 | M68: 2.05210062 | N68: 0.00619833 | O68: 0.00619833 | P68: 1 | Q68: 38.39876033 | R68: 38.39876033 | S68: 0.13016528 | T68: 0.13016528
B69: 17107 | C69: Main Rd Moonah | D69: Urban | E69: 299 | F69: 3.06 | G69: 4.114 | H69: 3.9566 | I69: 0.4506892582 | J69: 1.024729955 | K69: 22 | L69: 21.39296243 | M69: 21.39296243 | N69: 0.42778207 | O69: 0.42778207 | P69: 3 | Q69: 27.65042092 | R69: 27.65042092 | S69: 0.16179951 | T69: 0.16179951
B70: 17108 | C70: Derwent Park (Howard Road) | D70: Urban | E70: 28 | F70: 0 | G70: 1.446 | H70: 0.5843 | I70: 0 | J70: 0.02980766144 | K70: 0 | L70: 0 | M70: 0 | N70: 0 | O70: 0 | P70: 1 | Q70: 6 | R70: 6 | S70: 0.04166666 | T70: 0.04166666
B71: 17109 | C71: Moonah (Lampton Ave)-Moonah (HEC Depot) | D71: Urban | E71: 89 | F71: 0 | G71: 1.504 | H71: 1.1813 | I71: 0.007696334947 | J71: 0.5527977699 | K71: 3 | L71: 0.6596858639 | M71: 0.6596858639 | N71: 0.0104712 | O71: 0.0104712 | P71: 3 | Q71: 101.1518325 | R71: 101.1518325 | S71: 0.24083768 | T71: 0.24083768
B72: 18131 | C72: A-Argyle St to Library - B-Victoria St via CBD SW | D72: Urban | E72: 583 | F72: 0 | G72: 4.646 | H72: 6.0587 | I72: 0.1027868652 | J72: 0.3482375425 | K72: 6 | L72: 2.230872638 | M72: 2.230872638 | N72: 0.04330706 | O72: 0.04330706 | P72: 1 | Q72: 10.05905512 | R72: 10.05905512 | S72: 0.02755905 | T72: 0.02755905
B73: 18132 | C73: A-Websters, B-RHH | D73: Urban | E73: 33 | F73: 0 | G73: 2.241 | H73: 2.8007 | I73: 0 | J73: 0 | K73: 0 | L73: 0 | M73: 0 | N73: 0 | O73: 0 | P73: 0 | Q73: 0 | R73: 0 | S73: 0 | T73: 0
B74: 18133 | C74: A-RHH, B-North Hobart (Brisbane Street) | D74: Urban | E74: 138 | F74: 0 | G74: 3.225 | H74: 3.3723 | I74: 0.104602186 | J74: 0.1554230594 | K74: 2 | L74: 3.261538462 | M74: 3.261538462 | N74: 0.0153846 | O74: 0.0153846 | P74: 1 | Q74: 4.846153846 | R74: 4.846153846 | S74: 0.02307692 | T74: 0.02307692
B75: 18134 | C75: A-North Hobart, B-Domain | D75: Urban | E75: 760 | F75: 1.197 | G75: 2.707 | H75: 2.3511 | I75: 0.1256764051 | J75: 1.000227851 | K75: 8 | L75: 5.692404269 | M75: 5.692404269 | N75: 0.17953544 | O75: 0.17953544 | P75: 5 | Q75: 45.304457 | R75: 28.58129316 | S75: 0.13935969 | T75: 0.09416195
B76: 18135 | C76: A-New Town Substation, B-Augusta Rd | D76: Urban | E76: 604 | F76: 0.555 | G76: 2.684 | H76: 2.2177 | I76: 0.006479343905 | J76: 0.2890685508 | K76: 6 | L76: 0.3168627451 | M76: 0.3168627451 | N76: 0.00470586 | O76: 0.00470586 | P76: 2 | Q76: 14.13647059 | R76: 14.13647059 | S76: 0.06588234 | T76: 0.06588234
B77: 18136 | C77: A-New Town-Mt Stuart, B-Stn Supp No1 (Transend) | D77: Short Rural | E77: 464 | F77: 0 | G77: 0 | H77: 2.4197 | I77: 0 | J77: 0 | K77: 0 | L77: 0 | M77: 0 | N77: 0 | O77: 0 | P77: 0 | Q77: 0 | R77: 0 | S77: 0 | T77: 0
B78: 18141 | C78: A-Stn Supp No2 (Transend), B-North Hobart | D78: Urban | E78: 443 | F78: 0 | G78: 2.973 | H78: 3.2694 | I78: 0.3751707366 | J78: 0 | K78: 6 | L78: 11.3879096 | M78: 11.3879096 | N78: 0.09039545 | O78: 0.09039545 | P78: 0 | Q78: 0 | R78: 0 | S78: 0 | T78: 0
B79: 18142 | C79: A-City (West), B-City (West) | D79: Urban | E79: 215 | F79: 0 | G79: 2.295 | H79: 1.5014 | I79: 1.081311278 | J79: 0 | K79: 2 | L79: 58.66976744 | M79: 58.66976744 | N79: 1.00465115 | O79: 1.00465115 | P79: 0 | Q79: 0 | R79: 0 | S79: 0 | T79: 0
B80: 18143 | C80: A-North Hobart, B-Mount Stuart-City(North) | D80: Urban | E80: 1391 | F80: 1.637 | G80: 5.625 | H80: 4.3783 | I80: 5.813945428 | J80: 1.43563451 | K80: 18 | L80: 154.6209623 | M80: 154.6209623 | N80: 1.18718498 | O80: 1.18718498 | P80: 7 | Q80: 38.74730022 | R80: 38.74730022 | S80: 0.11447082 | T80: 0.11447082
B81: 18144 | C81: A-North Hobart, B-Lenah Valley-New Town | D81: Short Rural | E81: 1213 | F81: 0 | G81: 0 | H81: 4.7709 | I81: 0 | J81: 0 | K81: 0 | L81: 0 | M81: 0 | N81: 0 | O81: 0 | P81: 0 | Q81: 0 | R81: 0 | S81: 0 | T81: 0
B82: 18145 | C82: Noth Hobart Substation | D82: Short Rural | E82: 161 | F82: 0 | G82: 0 | H82: 1.3108 | I82: 0 | J82: 0 | K82: 0 | L82: 0 | M82: 0 | N82: 0 | O82: 0 | P82: 0 | Q82: 0 | R82: 0 | S82: 0 | T82: 0
B83: 18146 | C83: A-Mount Stuart, B-New Town, Ogilvie High School | D83: Urban | E83: 2374 | F83: 8.945 | G83: 15.409 | H83: 11.2829 | I83: 1.43468798 | J83: 0.5718443521 | K83: 47 | L83: 43.26078312 | M83: 43.26078312 | N83: 0.39564883 | O83: 0.39564883 | P83: 15 | Q83: 17.59477883 | R83: 17.59477883 | S83: 0.07483676 | T83: 0.07483676
B84: 20534 | C84: Glenorchy (East) | D84: Urban | E84: 320 | F84: 1.457 | G84: 2.108 | H84: 1.0893 | I84: 0.04663842791 | J84: 1.125508324 | K84: 6 | L84: 3.043711656 | M84: 3.043711656 | N84: 0.02760734 | O84: 0.02760734 | P84: 1 | Q84: 117.202454 | R84: 117.202454 | S84: 0.29447852 | T84: 0.29447852
B85: 20535 | C85: West Moonah | D85: Urban | E85: 1745 | F85: 4.654 | G85: 5.482 | H85: 4.5477 | I85: 19.47871354 | J85: 0.5210629712 | K85: 33 | L85: 209.3897488 | M85: 209.3897488 | N85: 2.15878473 | O85: 2.15878473 | P85: 1 | Q85: 12.94754944 | R85: 12.94754944 | S85: 0.03668672 | T85: 0.03668672
B86: 20536 | C86: Glenorchy (Central) | D86: Urban | E86: 890 | F86: 2.321 | G86: 2.811 | H86: 2.3372 | I86: 1.503527203 | J86: 0.957857016 | K86: 12 | L86: 67.18082221 | M86: 67.18082221 | N86: 1.03236604 | O86: 1.03236604 | P86: 3 | Q86: 42.79910714 | R86: 42.79910714 | S86: 0.13950892 | T86: 0.13950892
B87: 20537 | C87: Merton-Glenorchy (Central) | D87: Short Rural | E87: 825 | F87: 2.846 | G87: 4.596 | H87: 2.1139 | I87: 4.790678852 | J87: 0.2000088789 | K87: 10 | L87: 247.0994727 | M87: 247.0994727 | N87: 1.00851578 | O87: 1.00851578 | P87: 1 | Q87: 10.3163017 | R87: 10.3163017 | S87: 0.1946472 | T87: 0.1946472
B88: 20538 | C88: Open | D88: Short Rural | E88: 0 | F88: 0 | G88: 0 | H88: 0 | I88: 0 | J88: 0 | K88: 0 | L88: 0 | M88: 0 | N88: 0 | O88: 0 | P88: 0 | Q88: 0 | R88: 0 | S88: 0 | T88: 0
B89: 20539 | C89: Glenorchy (Central) | D89: Short Rural | E89: 168 | F89: 0.113 | G89: 3.791 | H89: 0.6229 | I89: 0 | J89: 0 | K89: 0 | L89: 0 | M89: 0 | N89: 0 | O89: 0 | P89: 0 | Q89: 0 | R89: 0 | S89: 0 | T89: 0
B90: 20540 | C90: Northgate-Nichols St | D90: Urban | E90: 186 | F90: 0 | G90: 3.812 | H90: 2.4985 | I90: 0.2117826065 | J90: 1.05337928 | K90: 1 | L90: 6.810659621 | M90: 6.810659621 | N90: 0.00542005 | O90: 0.00542005 | P90: 4 | Q90: 33.87533875 | R90: 33.87533875 | S90: 0.19512192 | T90: 0.19512192
B91: 20541 | C91: Rosetta-Berriedale | D91: Urban | E91: 754 | F91: 2.992 | G91: 7.56 | H91: 4.7288 | I91: 2.887465816 | J91: 0.02866023712 | K91: 4 | L91: 71.70483124 | M91: 71.70483124 | N91: 1.00463268 | O91: 1.00463268 | P91: 1 | Q91: 0.7147584381 | R91: 0.7147584381 | S91: 0.00397088 | T91: 0.00397088
B92: 20542 | C92: Station Supply No1 (Owned By Transend) | D92: Urban | E92: 1 | F92: 0 | G92: 0.024 | H92: 0.1292 | I92: 0 | J92: 0 | K92: 0 | L92: 0 | M92: 0 | N92: 0 | O92: 0 | P92: 0 | Q92: 0 | R92: 0 | S92: 0 | T92: 0
B93: 20544 | C93: Glenorchy (North)-Montrose | D93: Urban | E93: 229 | F93: 1.165 | G93: 1.99 | H93: 3.471 | I93: 3.826574289 | J93: 0 | K93: 9 | L93: 139.9911504 | M93: 139.9911504 | N93: 2.3938053 | O93: 2.3938053 | P93: 0 | Q93: 0 | R93: 0 | S93: 0 | T93: 0
B94: 20545 | C94: Glenorchy (West) | D94: Short Rural | E94: 939 | F94: 1.952 | G94: 4.336 | H94: 0.8065 | I94: 0.5103079011 | J94: 0.764417405 | K94: 9 | L94: 40.46271678 | M94: 40.46271678 | N94: 0.12117958 | O94: 0.12117958 | P94: 1 | Q94: 60.61126005 | R94: 60.61126005 | S94: 0.16836461 | T94: 0.16836461
B95: 20547 | C95: Stn Service No2 (Transend)-Merton-West Moonah | D95: Urban | E95: 936 | F95: 3.967 | G95: 0.761 | H95: 2.2033 | I95: 0.01804464076 | J95: 0 | K95: 15 | L95: 0.8702711991 | M95: 0.8702711991 | N95: 0.00856528 | O95: 0.00856528 | P95: 0 | Q95: 0 | R95: 0 | S95: 0 | T95: 0
B96: 20548 | C96: Lenah Valley | D96: Short Rural | E96: 1629 | F96: 13.587 | G96: 5.71 | H96: 4.9645 | I96: 19.64958619 | J96: 0.6745870438 | K96: 23 | L96: 444.0282303 | M96: 444.0282303 | N96: 3.06858524 | O96: 3.06858524 | P96: 5 | Q96: 15.40416412 | R96: 15.40416412 | S96: 0.0520514 | T96: 0.0520514
B97: 20549 | C97: Rosetta-Berriedale-Chigwell | D97: Urban | E97: 972 | F97: 1.787 | G97: 6.839 | H97: 2.878 | I97: 0.6438550159 | J97: 3.696211648 | K97: 18 | L97: 23.32149593 | M97: 23.32149593 | N97: 0.10499221 | O97: 0.10499221 | P97: 13 | Q97: 145.8733917 | R97: 145.8733917 | S97: 0.48481721 | T97: 0.48481721
B98: 20551 | C98: Glenorchy (West) | D98: Urban | E98: 210 | F98: 2.293 | G98: 0.635 | H98: 1.0447 | I98: 0.3110020486 | J98: 0 | K98: 4 | L98: 18.5286523 | M98: 18.5286523 | N98: 1.00242129 | O98: 1.00242129 | P98: 0 | Q98: 0 | R98: 0 | S98: 0 | T98: 0
B99: 20552 | C99: Montrose | D99: Urban | E99: 1048 | F99: 5.509 | G99: 2.94 | H99: 2.8582 | I99: 1.644138819 | J99: 0.109984623 | K99: 15 | L99: 63.71526419 | M99: 63.71526419 | N99: 0.30332677 | O99: 0.30332677 | P99: 2 | Q99: 4.26223092 | R99: 4.26223092 | S99: 0.01369861 | T99: 0.01369861
B100: 20553 | C100: Rosetta (West)-Glenlusk-Collinsvale-Collins Cap | D100: Short Rural | E100: 959 | F100: 47.74 | G100: 2.433 | H100: 2.5952 | I100: 14.52971062 | J100: 2.54730446 | K100: 26 | L100: 46.4328293 | M100: 46.4328293 | N100: 0.86444206 | O100: 0.86444206 | P100: 10 | Q100: 100.9426486 | R100: 100.9426486 | S100: 0.29614177 | T100: 0.29614177
B101: 20554 | C101: Glenorchy (Central) | D101: Urban | E101: 417 | F101: 0.466 | G101: 2.877 | H101: 2.749 | I101: 0 | J101: 0 | K101: 2 | L101: 0 | M101: 0 | N101: 0 | O101: 0 | P101: 0 | Q101: 0 | R101: 0 | S101: 0 | T101: 0
B102: 21081 | C102: Claremont | D102: Urban | E102: 908 | F102: 2.4 | G102: 4.397 | H102: 2.8452 | I102: 1.680356436 | J102: 0.05030302088 | K102: 9 | L102: 68.68069593 | M102: 68.68069593 | N102: 1.00329669 | O102: 1.00329669 | P102: 2 | Q102: 2.554945055 | R102: 2.554945055 | S102: 0.0164835 | T102: 0.0164835
B103: 21082 | C103: Battersby Drive | D103: Urban | E103: 227 | F103: 0 | G103: 1.669 | H103: 0.7748 | I103: 0 | J103: 0 | K103: 0 | L103: 0 | M103: 0 | N103: 0 | O103: 0 | P103: 0 | Q103: 0 | R103: 0 | S103: 0 | T103: 0
B104: 21083 | C104: Cadburys | D104: Urban | E104: 319 | F104: 0 | G104: 3.876 | H104: 2.9468 | I104: 0.02440277519 | J104: 0 | K104: 4 | L104: 0.6761674718 | M104: 0.6761674718 | N104: 0.00966183 | O104: 0.00966183 | P104: 0 | Q104: 0 | R104: 0 | S104: 0 | T104: 0
B105: 21084 | C105: Cadburys | D105: Urban | E105: 113 | F105: 0 | G105: 2.527 | H105: 2.5086 | I105: 0 | J105: 0 | K105: 0 | L105: 0 | M105: 0 | N105: 0 | O105: 0 | P105: 0 | Q105: 0 | R105: 0 | S105: 0 | T105: 0
B106: 21085 | C106: Claremont | D106: Urban | E106: 1598 | F106: 8.91 | G106: 5.017 | H106: 4.8012 | I106: 0.4027232664 | J106: 0.4714141295 | K106: 17 | L106: 6.800480991 | M106: 6.800480991 | N106: 0.11041401 | O106: 0.11041401 | P106: 2 | Q106: 29.51380176 | R106: 29.51380176 | S106: 0.11856963 | T106: 0.11856963
B107: 21086 | C107: Claremont (East) | D107: Urban | E107: 716 | F107: 2.374 | G107: 2.653 | H107: 2.4578 | I107: 9.12970069 | J107: 1.972907206 | K107: 14 | L107: 564.8119164 | M107: 564.8119164 | N107: 5.1205574 | O107: 5.1205574 | P107: 5 | Q107: 73.72125436 | R107: 57.34494774 | S107: 0.30940764 | T107: 0.23972123
B108: 21087 | C108: Rosetta | D108: Urban | E108: 609 | F108: 1.393 | G108: 3.4 | H108: 1.683 | I108: 0.103826904 | J108: 1.076144397 | K108: 10 | L108: 8.57985258 | M108: 8.57985258 | N108: 0.03603602 | O108: 0.03603602 | P108: 10 | Q108: 102.7272727 | R108: 102.7272727 | S108: 0.50122845 | T108: 0.50122845
B109: 21088 | C109: Claremont-Chigwell (Nth) | D109: Urban | E109: 346 | F109: 1.073 | G109: 1.252 | H109: 0.9209 | I109: 0.0367928799 | J109: 0.2746171202 | K109: 5 | L109: 0.2337662338 | M109: 0.2337662338 | N109: 0.002886 | O109: 0.002886 | P109: 2 | Q109: 67.12842713 | R109: 67.12842713 | S109: 0.19047618 | T109: 0.19047618
B110: 21089 | C110: Claremont West-Austins Ferry | D110: Short Rural | E110: 122 | F110: 6.551 | G110: 1.866 | H110: 2.4768 | I110: 0.04425974408 | J110: 0 | K110: 2 | L110: 2.311157025 | M110: 2.311157025 | N110: 0.01652892 | O110: 0.01652892 | P110: 0 | Q110: 0 | R110: 0 | S110: 0 | T110: 0
B111: 22323 | C111: Shorline-Howrah-Tranmere | D111: Urban | E111: 409 | F111: 1.389 | G111: 3.166 | H111: 4.0684 | I111: 18.83608631 | J111: 0.07616512892 | K111: 4 | L111: 281.8915046 | M111: 281.8915046 | N111: 1.0051177 | O111: 1.0051177 | P111: 2 | Q111: 5.322415558 | R111: 5.322415558 | S111: 0.0470829 | T111: 0.0470829
B112: 22324 | C112: Mornington-Rokeby Terminal | D112: Short Rural | E112: 336 | F112: 10.505 | G112: 3.866 | H112: 1.5242 | I112: 0.3760680347 | J112: 0.09982933051 | K112: 9 | L112: 31.52169072 | M112: 31.52169072 | N112: 0.25507244 | O112: 0.25507244 | P112: 2 | Q112: 7.710144928 | R112: 7.710144928 | S112: 0.02608695 | T112: 0.02608695
B113: 22325 | C113: Ninabah St Howrah | D113: Urban | E113: 906 | F113: 0 | G113: 6.095 | H113: 2.6559 | I113: 1.252704209 | J113: 1.609923649 | K113: 8 | L113: 35.01493308 | M113: 35.01493308 | N113: 0.15410014 | O113: 0.15410014 | P113: 10 | Q113: 70.68668134 | R113: 70.68668134 | S113: 0.29829385 | T113: 0.29829385
B114: 22326 | C114: Rokeby-Rokeby Terminal | D114: Urban | E114: 345 | F114: 0 | G114: 2.791 | H114: 0.8574 | I114: 0.003660096558 | J114: 0.4010652223 | K114: 4 | L114: 0.7768115942 | M114: 0.7768115942 | N114: 0.00869565 | O114: 0.00869565 | P114: 3 | Q114: 65 | R114: 65 | S114: 0.25507246 | T114: 0.25507246
B115: 22328 | C115: Clarence St Bellerive | D115: Urban | E115: 791 | F115: 2.815 | G115: 4.906 | H115: 3.5203 | I115: 0.770407714 | J115: 1.688188917 | K115: 5 | L115: 67.70244722 | M115: 67.70244722 | N115: 0.23291138 | O115: 0.23291138 | P115: 5 | Q115: 56.52436709 | R115: 56.52436709 | S115: 0.18101263 | T115: 0.18101263
B116: 22329 | C116: Howrah-Rokeby-Bellerive Zone | D116: Urban | E116: 997 | F116: 4.967 | G116: 6.511 | H116: 3.9966 | I116: 0.5671912582 | J116: 1.734355378 | K116: 14 | L116: 25.11475163 | M116: 25.11475163 | N116: 1.19719014 | O116: 1.19719014 | P116: 10 | Q116: 64.57124937 | R116: 64.57124937 | S116: 0.24385344 | T116: 0.24385344
B117: 22330 | C117: Rokeby | D117: Short Rural | E117: 74 | F117: 0.785 | G117: 0.185 | H117: 0.2286 | I117: 0.0007927927751 | J117: 0 | K117: 3 | L117: 1.027027027 | M117: 1.027027027 | N117: 0.02702702 | O117: 0.02702702 | P117: 0 | Q117: 0 | R117: 0 | S117: 0 | T117: 0
B118: 22331 | C118: Howrah-Tranmere | D118: Urban | E118: 966 | F118: 0 | G118: 6.659 | H118: 4.7371 | I118: 12.03437758 | J118: 1.231376015 | K118: 11 | L118: 127.6316779 | M118: 127.6316779 | N118: 1.14950851 | O118: 1.14950851 | P118: 5 | Q118: 37.41024315 | R118: 24.44386963 | S118: 0.17485771 | T118: 0.09208482
B119: 22333 | C119: Ploughman Rd | D119: Urban | E119: 1 | F119: 0 | G119: 0.248 | H119: 1.9053 | I119: 0 | J119: 0 | K119: 0 | L119: 0 | M119: 0 | N119: 0 | O119: 0 | P119: 0 | Q119: 0 | R119: 0 | S119: 0 | T119: 0
B120: 23340 | C120: Open | D120: Short Rural | E120: 0 | F120: 0 | G120: 0 | H120: 0 | I120: 0 | J120: 0 | K120: 0 | L120: 0 | M120: 0 | N120: 0 | O120: 0 | P120: 0 | Q120: 0 | R120: 0 | S120: 0 | T120: 0
B121: 23341 | C121: Bellerive CBD to Kangaroo Bluff via Cambridge Road | D121: Urban | E121: 666 | F121: 1.246 | G121: 2.762 | H121: 2.0958 | I121: 0.03011973158 | J121: 0.5615871645 | K121: 5 | L121: 1.299421434 | M121: 1.299421434 | N121: 0.00754716 | O121: 0.00754716 | P121: 6 | Q121: 32.57811321 | R121: 32.57811321 | S121: 0.16905658 | T121: 0.16905658
B122: 23342 | C122: Lindisfarne-Geilstone Bay Zone | D122: Urban | E122: 833 | F122: 1.971 | G122: 5.351 | H122: 5.3766 | I122: 0.007287340337 | J122: 1.035051024 | K122: 4 | L122: 0.2266466066 | M122: 0.2266466066 | N122: 0.0036036 | O122: 0.0036036 | P122: 4 | Q122: 14.83483483 | R122: 14.83483483 | S122: 0.06846846 | T122: 0.06846846
B123: 23343 | C123: Bellerive Zone Via Bayfield and Bligh Streets | D123: Urban | E123: 779 | F123: 0 | G123: 4.303 | H123: 3.1938 | I123: 0.02256670717 | J123: 0.4128453637 | K123: 10 | L123: 0.5725515615 | M123: 0.5725515615 | N123: 0.00764814 | O123: 0.00764814 | P123: 8 | Q123: 21.79196941 | R123: 21.79196941 | S123: 0.07138299 | T123: 0.07138299
B124: 23346 | C124: Open | D124: Short Rural | E124: 0 | F124: 0 | G124: 0 | H124: 0 | I124: 0 | J124: 0 | K124: 0 | L124: 0 | M124: 0 | N124: 0 | O124: 0 | P124: 0 | Q124: 0 | R124: 0 | S124: 0 | T124: 0
B125: 23347 | C125: Rosny Bastick St Motague Bay Lindisfarne +Sub Cab | D125: Urban | E125: 845 | F125: 4.466 | G125: 4.25 | H125: 3.0567 | I125: 0.005552764607 | J125: 1.003887403 | K125: 9 | L125: 0.5130331754 | M125: 0.5130331754 | N125: 0.00592415 | O125: 0.00592415 | P125: 17 | Q125: 73.44036339 | R125: 73.44036339 | S125: 0.22156391 | T125: 0.22156391
B126: 23348 | C126: Linisfarne via Gordins Hill Rd | D126: Urban | E126: 653 | F126: 2.031 | G126: 3.701 | H126: 2.3568 | I126: 0.0428891518 | J126: 0.1874733474 | K126: 5 | L126: 3.08565255 | M126: 3.08565255 | N126: 0.03802936 | O126: 0.03802936 | P126: 1 | Q126: 16.06914434 | R126: 16.06914434 | S126: 0.1434745 | T126: 0.1434745
B127: 24401 | C127: Howrah Zone | D127: Subtransmission | E127: 0 | F127: 0 | G127: 4.629 | H127: 10.3112 | I127: 0 | J127: 0 | K127: 0 | L127: 0 | M127: 0 | N127: 0 | O127: 0 | P127: 0 | Q127: 0 | R127: 0 | S127: 0 | T127: 0
B128: 24402 | C128: Cambridge Zone | D128: Subtransmission | E128: 0 | F128: 0 | G128: 8.812 | H128: 6.979 | I128: 0 | J128: 0 | K128: 0 | L128: 0 | M128: 0 | N128: 0 | O128: 0 | P128: 0 | Q128: 0 | R128: 0 | S128: 0 | T128: 0
B129: 24406 | C129: Howrah Zone | D129: Subtransmission | E129: 0 | F129: 0 | G129: 4.62 | H129: 10.2541 | I129: 0 | J129: 0 | K129: 0 | L129: 0 | M129: 0 | N129: 0 | O129: 0 | P129: 0 | Q129: 0 | R129: 0 | S129: 0 | T129: 0
B130: 25305 | C130: Bellerive Zone Substation | D130: Subtransmission | E130: 0 | F130: 4.597 | G130: 1.256 | H130: 6.4017 | I130: 0 | J130: 0 | K130: 0 | L130: 0 | M130: 0 | N130: 0 | O130: 0 | P130: 0 | Q130: 0 | R130: 0 | S130: 0 | T130: 0
B131: 25306 | C131: Future | D131: Subtransmission | E131: 0 | F131: 0 | G131: 0 | H131: 0 | I131: 0 | J131: 0 | K131: 0 | L131: 0 | M131: 0 | N131: 0 | O131: 0 | P131: 0 | Q131: 0 | R131: 0 | S131: 0 | T131: 0
B132: 25307 | C132: Geilston Bay Zone Substation | D132: Subtransmission | E132: 1 | F132: 1.92 | G132: 0.087 | H132: 8.0499 | I132: 0 | J132: 0 | K132: 0 | L132: 0 | M132: 0 | N132: 0 | O132: 0 | P132: 0 | Q132: 0 | R132: 0 | S132: 0 | T132: 0
B133: 25308 | C133: Geilston Bay Zone Substation | D133: Subtransmission | E133: 1 | F133: 2.21 | G133: 0.199 | H133: 9.853 | I133: 0 | J133: 0 | K133: 0 | L133: 0 | M133: 0 | N133: 0 | O133: 0 | P133: 0 | Q133: 0 | R133: 0 | S133: 0 | T133: 0
B134: 25309 | C134: Cambridge Zone | D134: Subtransmission | E134: 0 | F134: 0 | G134: 12.673 | H134: 7.4869 | I134: 0 | J134: 0 | K134: 0 | L134: 0 | M134: 0 | N134: 0 | O134: 0 | P134: 0 | Q134: 0 | R134: 0 | S134: 0 | T134: 0
B135: 25310 | C135: Bellerive Zone Substation | D135: Subtransmission | E135: 0 | F135: 3.087 | G135: 2.456 | H135: 7.7684 | I135: 0 | J135: 0 | K135: 0 | L135: 0 | M135: 0 | N135: 0 | O135: 0 | P135: 0 | Q135: 0 | R135: 0 | S135: 0 | T135: 0
B136: 26160 | C136: Station Supply | D136: Short Rural | E136: 1 | F136: 0 | G136: 0 | H136: 0 | I136: 0 | J136: 0 | K136: 0 | L136: 0 | M136: 0 | N136: 0 | O136: 0 | P136: 0 | Q136: 0 | R136: 0 | S136: 0 | T136: 0
B137: 26161 | C137: Risdon-Otago Bay | D137: Short Rural | E137: 652 | F137: 13.302 | G137: 6.112 | H137: 2.0767 | I137: 0.06971472444 | J137: 0 | K137: 4 | L137: 4.568165596 | M137: 4.568165596 | N137: 0.11134903 | O137: 0.11134903 | P137: 0 | Q137: 0 | R137: 0 | S137: 0 | T137: 0
B138: 26162 | C138: Lindisfarne (West)-Geilston Bay | D138: Urban | E138: 432 | F138: 0.089 | G138: 1.915 | H138: 3.4549 | I138: 1.813279279 | J138: 2.183325537 | K138: 4 | L138: 12.3847286 | M138: 12.3847286 | N138: 0.18837209 | O138: 0.18837209 | P138: 2 | Q138: 46.81395349 | R138: 46.81395349 | S138: 0.13720929 | T138: 0.13720929
B139: 26163 | C139: Lindisfarne-Rose Bay-Montagu Bay | D139: Urban | E139: 302 | F139: 1.574 | G139: 1.122 | H139: 1.0352 | I139: 1.045667115 | J139: 0.04040991846 | K139: 5 | L139: 123.1490066 | M139: 123.1490066 | N139: 1.31125826 | O139: 1.31125826 | P139: 4 | Q139: 4.66986755 | R139: 4.66986755 | S139: 0.02649004 | T139: 0.02649004
B140: 26164 | C140: Risdon Brook | D140: Short Rural | E140: 1440 | F140: 9.458 | G140: 4.89 | H140: 3.5882 | I140: 1.445145538 | J140: 1.861834291 | K140: 19 | L140: 78.67682716 | M140: 78.67682716 | N140: 1.22202975 | O140: 1.22202975 | P140: 16 | Q140: 68.20028867 | R140: 68.20028867 | S140: 0.24592998 | T140: 0.24592998
B141: 26165 | C141: Flagstaff Gully-Warrane (North) - Kennedy Drive | D141: Urban | E141: 388 | F141: 4.321 | G141: 4.633 | H141: 2.7499 | I141: 2.374388492 | J141: 0.107585562 | K141: 5 | L141: 200.7165775 | M141: 200.7165775 | N141: 1.03475934 | O141: 1.03475934 | P141: 2 | Q141: 4.564171123 | R141: 4.564171123 | S141: 0.03475935 | T141: 0.03475935
B142: 26166 | C142: Lindisfarne (East) Malunna Rd to Begonia St | D142: Urban | E142: 492 | F142: 2.668 | G142: 0.916 | H142: 1.5179 | I142: 0.1118834769 | J142: 0.15030549 | K142: 4 | L142: 1.207739308 | M142: 1.207739308 | N142: 0.01832991 | O142: 0.01832991 | P142: 1 | Q142: 22.54582485 | R142: 22.54582485 | S142: 0.08350305 | T142: 0.08350305
B143: 26167 | C143: Risdon Vale | D143: Short Rural | E143: 858 | F143: 9.109 | G143: 4.389 | H143: 3.639 | I143: 4.704348668 | J143: 3.620505586 | K143: 13 | L143: 118.1899534 | M143: 118.1899534 | N143: 2.00931468 | O143: 2.00931468 | P143: 3 | Q143: 82.52827678 | R143: 82.52827678 | S143: 0.30738521 | T143: 0.30738521
B144: 26169 | C144: Open | D144: Short Rural | E144: 0 | F144: 0 | G144: 0 | H144: 0 | I144: 0 | J144: 0 | K144: 0 | L144: 0 | M144: 0 | N144: 0 | O144: 0 | P144: 0 | Q144: 0 | R144: 0 | S144: 0 | T144: 0
B145: 27171 | C145: Warrane via Barana St to Hill/Beach Sts Bellerive | D145: Urban | E145: 1065 | F145: 2.851 | G145: 2.658 | H145: 3.0103 | I145: 0.2164284892 | J145: 1.054571313 | K145: 11 | L145: 1.681671308 | M145: 1.681671308 | N145: 0.0094073 | O145: 0.0094073 | P145: 7 | Q145: 45.04421449 | R145: 45.04421449 | S145: 0.22953901 | T145: 0.22953901
B146: 27172 | C146: Open | D146: Short Rural | E146: 0 | F146: 0 | G146: 0 | H146: 0 | I146: 0 | J146: 0 | K146: 0 | L146: 0 | M146: 0 | N146: 0 | O146: 0 | P146: 0 | Q146: 0 | R146: 0 | S146: 0 | T146: 0
B147: 27173 | C147: Cambridge | D147: Short Rural | E147: 222 | F147: 8.586 | G147: 2.167 | H147: 0.9145 | I147: 0.01510560441 | J147: 0.02591150385 | K147: 4 | L147: 4.933628319 | M147: 4.933628319 | N147: 0.08849554 | O147: 0.08849554 | P147: 2 | Q147: 8.566371681 | R147: 8.566371681 | S147: 0.039823 | T147: 0.039823
B148: 27174 | C148: Open | D148: Short Rural | E148: 0 | F148: 0 | G148: 0 | H148: 0 | I148: 0 | J148: 0 | K148: 0 | L148: 0 | M148: 0 | N148: 0 | O148: 0 | P148: 0 | Q148: 0 | R148: 0 | S148: 0 | T148: 0
B149: 27175 | C149: Warrane Cambridge Rd to Kangaroo Bay - Bayfield St | D149: Urban | E149: 885 | F149: 2.678 | G149: 2.722 | H149: 2.4641 | I149: 1.35650322 | J149: 0.5857572767 | K149: 9 | L149: 119.8739425 | M149: 119.8739425 | N149: 2.04512123 | O149: 2.04512123 | P149: 6 | Q149: 50.18950931 | R149: 50.18950931 | S149: 0.14100393 | T149: 0.14100393
B150: 27176 | C150: Warrane-Rosny | D150: Urban | E150: 356 | F150: 0.326 | G150: 5.587 | H150: 4.2233 | I150: 0.6744106998 | J150: 1.443570306 | K150: 4 | L150: 18.49541284 | M150: 18.49541284 | N150: 0.07706422 | O150: 0.07706422 | P150: 1 | Q150: 33.96636073 | R150: 33.96636073 | S150: 0.10642201 | T150: 0.10642201
B151: 27177 | C151: Open | D151: Short Rural | E151: 0 | F151: 0 | G151: 0 | H151: 0 | I151: 0 | J151: 0 | K151: 0 | L151: 0 | M151: 0 | N151: 0 | O151: 0 | P151: 0 | Q151: 0 | R151: 0 | S151: 0 | T151: 0
B152: 27178 | C152: South Arm Hwy to Nankar Cr to South/Chrch Sts | D152: Urban | E152: 669 | F152: 3.66 | G152: 2.533 | H152: 2.4197 | I152: 0.2505713562 | J152: 0.2917999497 | K152: 8 | L152: 11.03045761 | M152: 11.03045761 | N152: 0.13203298 | O152: 0.13203298 | P152: 2 | Q152: 17.47936984 | R152: 17.47936984 | S152: 0.05701424 | T152: 0.05701424
B153: 28221 | C153: Ploughman Rd-Actaeon St | D153: Urban | E153: 657 | F153: 0 | G153: 4.986 | H153: 1.951 | I153: 0.1784836241 | J153: 0.3104226431 | K153: 11 | L153: 12.55791608 | M153: 12.55791608 | N153: 0.17602427 | O153: 0.17602427 | P153: 7 | Q153: 9.761760243 | R153: 9.761760243 | S153: 0.04248861 | T153: 0.04248861
B154: 28222 | C154: Lauderdale West -Sandford East - Clifton Beach | D154: Short Rural | E154: 972 | F154: 68.507 | G154: 1.853 | H154: 3.2027 | I154: 4.130089216 | J154: 1.436029324 | K154: 41 | L154: 95.89717868 | M154: 95.89717868 | N154: 1.37617545 | O154: 1.37617545 | P154: 24 | Q154: 65.03308945 | R154: 65.03308945 | S154: 0.23928938 | T154: 0.23928938
B155: 28223 | C155: Lauderdale_East Roches Beach | D155: Short Rural | E155: 1293 | F155: 28.171 | G155: 3.273 | H155: 4.21 | I155: 1.131314159 | J155: 1.745161557 | K155: 36 | L155: 40.16170732 | M155: 40.16170732 | N155: 0.80976356 | O155: 0.80976356 | P155: 7 | Q155: 34.46037714 | R155: 34.46037714 | S155: 0.13638121 | T155: 0.13638121
B156: 28224 | C156: Rokeby | D156: Urban | E156: 837 | F156: 0 | G156: 4.626 | H156: 2.1567 | I156: 0.9389250151 | J156: 0.1996252183 | K156: 4 | L156: 57.82272457 | M156: 57.82272457 | N156: 1.0065437 | O156: 1.0065437 | P156: 8 | Q156: 15.75728733 | R156: 15.75728733 | S156: 0.10707907 | T156: 0.10707907
B157: 28225 | C157: 0 | D157: Urban | E157: 11 | F157: 0.974 | G157: 2.483 | H157: 1.2346 | I157: 0 | J157: 0 | K157: 1 | L157: 0 | M157: 0 | N157: 0 | O157: 0 | P157: 0 | Q157: 0 | R157: 0 | S157: 0 | T157: 0
B158: 28226 | C158: Station Supply (Owned By Transend) | D158: Short Rural | E158: 1 | F158: 0 | G158: 0 | H158: 0.0991 | I158: 0 | J158: 0 | K158: 0 | L158: 0 | M158: 0 | N158: 0 | O158: 0 | P158: 0 | Q158: 0 | R158: 0 | S158: 0 | T158: 0
B159: 28227 | C159: Clarendon Vale-Pass Road | D159: Short Rural | E159: 1471 | F159: 0 | G159: 0 | H159: 1.6766 | I159: 0 | J159: 0 | K159: 0 | L159: 0 | M159: 0 | N159: 0 | O159: 0 | P159: 0 | Q159: 0 | R159: 0 | S159: 0 | T159: 0
B160: 28228 | C160: Claredon Vale | D160: Urban | E160: 655 | F160: 1.414 | G160: 5.75 | H160: 3.7838 | I160: 0.6025028053 | J160: 0 | K160: 14 | L160: 48.81602349 | M160: 48.81602349 | N160: 0.16946305 | O160: 0.16946305 | P160: 0 | Q160: 0 | R160: 0 | S160: 0 | T160: 0
B161: 28229 | C161: Rokeby East (Rokeby Rd) | D161: Urban | E161: 74 | F161: 1.616 | G161: 0.674 | H161: 5.752 | I161: 2.517548498 | J161: 0 | K161: 2 | L161: 47.90540541 | M161: 47.90540541 | N161: 1.01351351 | O161: 1.01351351 | P161: 0 | Q161: 0 | R161: 0 | S161: 0 | T161: 0
B162: 28230 | C162: Future | D162: Short Rural | E162: 0 | F162: 0 | G162: 0 | H162: 0 | I162: 0 | J162: 0 | K162: 0 | L162: 0 | M162: 0 | N162: 0 | O162: 0 | P162: 0 | Q162: 0 | R162: 0 | S162: 0 | T162: 0
B163: 28231 | C163: Tranmere West via Droughty Point | D163: Short Rural | E163: 1080 | F163: 10.548 | G163: 3.951 | H163: 3.8353 | I163: 6.672949427 | J163: 6.752903241 | K163: 22 | L163: 330.5711457 | M163: 330.5711457 | N163: 1.82278466 | O163: 1.82278466 | P163: 12 | Q163: 276.677702 | R163: 276.677702 | S163: 0.84225895 | T163: 0.84225895
B164: 28232 | C164: Sandford West to Opossum Bay | D164: Short Rural | E164: 1300 | F164: 80.375 | G164: 3.801 | H164: 3.0941 | I164: 25.03214071 | J164: 0.1011596758 | K164: 52 | L164: 218.5854734 | M164: 218.5854734 | N164: 2.83112838 | O164: 2.83112838 | P164: 10 | Q164: 6.652269805 | R164: 6.652269805 | S164: 0.14630349 | T164: 0.14630349
B165: 29481 | C165: Mount Rumney-Mornington-Bellerive Zone | D165: Short Rural | E165: 370 | F165: 14.791 | G165: 6.493 | H165: 1.2727 | I165: 1.325577076 | J165: 1.144459018 | K165: 11 | L165: 40.53116531 | M165: 40.53116531 | N165: 1.04607042 | O165: 1.04607042 | P165: 5 | Q165: 91.69566396 | R165: 91.69566396 | S165: 0.52574523 | T165: 0.52574523
B166: 29482 | C166: Backhouse Lane | D166: Short Rural | E166: 103 | F166: 6.293 | G166: 0.699 | H166: 0.8377 | I166: 0.9308627178 | J166: 0.334907555 | K166: 3 | L166: 1.565217391 | M166: 1.565217391 | N166: 0.01932366 | O166: 0.01932366 | P166: 2 | Q166: 30.97198068 | R166: 30.97198068 | S166: 0.0869565 | T166: 0.0869565
B167: 29483 | C167: Seven Mile Beach | D167: Short Rural | E167: 728 | F167: 23.969 | G167: 2.235 | H167: 3.5304 | I167: 0.1516968752 | J167: 0.36785652 | K167: 18 | L167: 5.35399449 | M167: 5.35399449 | N167: 0.03305784 | O167: 0.03305784 | P167: 9 | Q167: 19.99419187 | R167: 19.99419187 | S167: 0.10468317 | T167: 0.10468317
B168: 29484 | C168: Future | D168: Short Rural | E168: 0 | F168: 0 | G168: 0 | H168: 0 | I168: 0 | J168: 0 | K168: 0 | L168: 0 | M168: 0 | N168: 0 | O168: 0 | P168: 0 | Q168: 0 | R168: 0 | S168: 0 | T168: 0
B169: 29485 | C169: Hobart Airport | D169: Short Rural | E169: 14 | F169: 3.472 | G169: 8.093 | H169: 1.7325 | I169: 0 | J169: 0 | K169: 0 | L169: 0 | M169: 0 | N169: 0 | O169: 0 | P169: 0 | Q169: 0 | R169: 0 | S169: 0 | T169: 0
B170: 29486 | C170: Cranston Parade | D170: Short Rural | E170: 177 | F170: 0.86 | G170: 2.365 | H170: 0.7265 | I170: 0 | J170: 0.4577399969 | K170: 0 | L170: 0 | M170: 0 | N170: 0 | O170: 0 | P170: 1 | Q170: 54 | R170: 54 | S170: 0.33333333 | T170: 0.33333333
B171: 29487 | C171: Open | D171: Short Rural | E171: 0 | F171: 0 | G171: 0 | H171: 0 | I171: 0 | J171: 0 | K171: 0 | L171: 0 | M171: 0 | N171: 0 | O171: 0 | P171: 0 | Q171: 0 | R171: 0 | S171: 0 | T171: 0
B172: 29488 | C172: Cambridge-Richmond Golf Course-Brighton | D172: Short Rural | E172: 481 | F172: 39.378 | G172: 2.745 | H172: 3.8956 | I172: 6.471018998 | J172: 2.40014657 | K172: 23 | L172: 159.1486157 | M172: 159.1486157 | N172: 2.3078625 | O172: 2.3078625 | P172: 23 | Q172: 106.2945736 | R172: 105.9180509 | S172: 0.94573624 | T172: 0.56921355
B173: 29489 | C173: Pittwater Road | D173: Short Rural | E173: 233 | F173: 12.669 | G173: 3.793 | H173: 2.0539 | I173: 0.1426075963 | J173: 3.622607605 | K173: 5 | L173: 7.692176039 | M173: 7.692176039 | N173: 1.0757946 | O173: 1.0757946 | P173: 4 | Q173: 166.3080685 | R173: 166.3080685 | S173: 0.6748166 | T173: 0.6748166
B174: 29490 | C174: Acton Park | D174: Short Rural | E174: 339 | F174: 13.475 | G174: 2.861 | H174: 1.2264 | I174: 0.2191038357 | J174: 0.01278761187 | K174: 5 | L174: 28.27748289 | M174: 28.27748289 | N174: 0.07964601 | O174: 0.07964601 | P174: 1 | Q174: 3.008849558 | R174: 3.008849558 | S174: 0.00884955 | T174: 0.00884955
B175: 29491 | C175: Cambridge Park | D175: Urban | E175: 118 | F175: 0 | G175: 2.569 | H175: 1.6646 | I175: 0 | J175: 0 | K175: 0 | L175: 0 | M175: 0 | N175: 0 | O175: 0 | P175: 0 | Q175: 0 | R175: 0 | S175: 0 | T175: 0
B176: 29492 | C176: Holyman Avenue | D176: Short Rural | E176: 0 | F176: 0 | G176: 2.382 | H176: 0.0495 | I176: 0 | J176: 0 | K176: 0 | L176: 0 | M176: 0 | N176: 0 | O176: 0 | P176: 0 | Q176: 0 | R176: 0 | S176: 0 | T176: 0
B177: 30603 | C177: Huonville (North)-Ranelagh-Judbury-Lonnavale | D177: Short Rural | E177: 1060 | F177: 88.567 | G177: 1.264 | H177: 3.62 | I177: 4.080836435 | J177: 0.563595375 | K177: 32 | L177: 70.03938389 | M177: 70.03938389 | N177: 0.37914675 | O177: 0.37914675 | P177: 5 | Q177: 9.672985782 | R177: 9.672985782 | S177: 0.04170613 | T177: 0.04170613
B178: 30604 | C178: Huonville (Central)-South Franklin-Glen Huon | D178: Short Rural | E178: 930 | F178: 74.08 | G178: 2.019 | H178: 4.5898 | I178: 10.23410444 | J178: 1.020548559 | K178: 23 | L178: 155.9721188 | M178: 155.9721188 | N178: 0.81400427 | O178: 0.81400427 | P178: 8 | Q178: 20.90643687 | R178: 20.90643687 | S178: 0.07221002 | T178: 0.07221002
B179: 30605 | C179: Huonville (South)-Franklin | D179: Short Rural | E179: 731 | F179: 33.438 | G179: 0.881 | H179: 2.6293 | I179: 0.9221707983 | J179: 0.1082252798 | K179: 19 | L179: 34.31682658 | M179: 34.31682658 | N179: 0.22602732 | O179: 0.22602732 | P179: 1 | Q179: 4.02739726 | R179: 4.02739726 | S179: 0.01643835 | T179: 0.01643835
B180: 30606 | C180: Cradoc-Cygnet-Glaziers Bay | D180: Short Rural | E180: 1043 | F180: 71.349 | G180: 0.673 | H180: 2.7302 | I180: 2.102772801 | J180: 1.082372209 | K180: 31 | L180: 13.07087314 | M180: 13.07087314 | N180: 0.11281059 | O180: 0.11281059 | P180: 12 | Q180: 38.16507333 | R180: 38.16507333 | S180: 0.14435938 | T180: 0.14435938
B181: 30607 | C181: Pelverata-Lower Woodstock-Verona Sands | D181: Short Rural | E181: 1515 | F181: 138.822 | G181: 0.804 | H181: 2.936 | I181: 9.990784849 | J181: 3.720694969 | K181: 47 | L181: 223.349574 | M181: 223.349574 | N181: 0.84868839 | O181: 0.84868839 | P181: 32 | Q181: 156.3387917 | R181: 156.3387917 | S181: 0.5561531 | T181: 0.5561531
B182: 30608 | C182: Grove-Crabtree-Lower Longley-Mountain River | D182: Short Rural | E182: 1313 | F182: 130.687 | G182: 0.217 | H182: 4.2049 | I182: 1.547325786 | J182: 0.8594533239 | K182: 46 | L182: 23.73669638 | M182: 23.73669638 | N182: 0.31554307 | O182: 0.31554307 | P182: 15 | Q182: 17.42419166 | R182: 17.42419166 | S182: 0.06700415 | T182: 0.06700415
B183: 31002 | C183: Wattle Grove-Petcheys Bay-Lymington | D183: Short Rural | E183: 432 | F183: 57.26 | G183: 1.597 | H183: 0.6522 | I183: 12.02404556 | J183: 0.07802838647 | K183: 24 | L183: 697.8075556 | M183: 697.8075556 | N183: 3.40363628 | O183: 3.40363628 | P183: 7 | Q183: 14.18181818 | R183: 14.18181818 | S183: 0.06787875 | T183: 0.06787875
B184: 31007 | C184: Geeveston-Police Point-Surveyors Bay | D184: Short Rural | E184: 1074 | F184: 95.004 | G184: 2.012 | H184: 2.1264 | I184: 2.88954664 | J184: 0.4322320459 | K184: 36 | L184: 67.27753311 | M184: 67.27753311 | N184: 0.39906306 | O184: 0.39906306 | P184: 6 | Q184: 31.61311475 | R184: 31.61311475 | S184: 0.10585477 | T184: 0.10585477
B185: 31008 | C185: Dover-Southport-Lune River | D185: Short Rural | E185: 1156 | F185: 95.877 | G185: 11.222 | H185: 2.6967 | I185: 2.121587213 | J185: 1.935105311 | K185: 34 | L185: 84.08615 | M185: 84.08615 | N185: 0.34063031 | O185: 0.34063031 | P185: 13 | Q185: 75.73380035 | R185: 75.73380035 | S185: 0.33625213 | T185: 0.33625213
B186: 31010 | C186: Port Huon-Castle Forbes Bay | D186: Short Rural | E186: 478 | F186: 28.896 | G186: 0.377 | H186: 1.2434 | I186: 0.1470940515 | J186: 0.4028157337 | K186: 19 | L186: 14.15991426 | M186: 14.15991426 | N186: 0.12647369 | O186: 0.12647369 | P186: 2 | Q186: 58.84244373 | R186: 58.84244373 | S186: 0.16720256 | T186: 0.16720256
B187: 32371 | C187: Summerleas Zone (Station Service) | D187: Short Rural | E187: 1 | F187: 0 | G187: 0.001 | H187: 0 | I187: 0 | J187: 0 | K187: 0 | L187: 0 | M187: 0 | N187: 0 | O187: 0 | P187: 0 | Q187: 0 | R187: 0 | S187: 0 | T187: 0
B188: 32372 | C188: Future | D188: Short Rural | E188: 0 | F188: 0 | G188: 0 | H188: 0 | I188: 0 | J188: 0 | K188: 0 | L188: 0 | M188: 0 | N188: 0 | O188: 0 | P188: 0 | Q188: 0 | R188: 0 | S188: 0 | T188: 0
B189: 32373 | C189: Future | D189: Short Rural | E189: 0 | F189: 0 | G189: 0 | H189: 0.0191 | I189: 0 | J189: 0 | K189: 0 | L189: 0 | M189: 0 | N189: 0 | O189: 0 | P189: 0 | Q189: 0 | R189: 0 | S189: 0 | T189: 0
B190: 32374 | C190: Kingston (Summerleas Rd)-Kingston Terminal | D190: Urban | E190: 1122 | F190: 3.166 | G190: 8.128 | H190: 3.9312 | I190: 13.32541808 | J190: 1.097595837 | K190: 10 | L190: 346.8362126 | M190: 346.8362126 | N190: 3.10062329 | O190: 3.10062329 | P190: 5 | Q190: 30.73368949 | R190: 30.73368949 | S190: 0.08993764 | T190: 0.08993764
B191: 32375 | C191: Future | D191: Short Rural | E191: 0 | F191: 0 | G191: 0 | H191: 0 | I191: 0 | J191: 0 | K191: 0 | L191: 0 | M191: 0 | N191: 0 | O191: 0 | P191: 0 | Q191: 0 | R191: 0 | S191: 0 | T191: 0
B192: 32376 | C192: Future | D192: Short Rural | E192: 0 | F192: 0 | G192: 0 | H192: 0 | I192: 0 | J192: 0 | K192: 0 | L192: 0 | M192: 0 | N192: 0 | O192: 0 | P192: 0 | Q192: 0 | R192: 0 | S192: 0 | T192: 0
B193: 32377 | C193: Kingston | D193: Urban | E193: 386 | F193: 0.269 | G193: 2.512 | H193: 4.1217 | I193: 2.257681463 | J193: 0.4784737139 | K193: 2 | L193: 34.64669551 | M193: 34.64669551 | N193: 1.00144716 | O193: 1.00144716 | P193: 1 | Q193: 17.04775687 | R193: 17.04775687 | S193: 0.05499276 | T193: 0.05499276
B194: 32378 | C194: Future | D194: Short Rural | E194: 0 | F194: 0 | G194: 0 | H194: 0 | I194: 0 | J194: 0 | K194: 0 | L194: 0 | M194: 0 | N194: 0 | O194: 0 | P194: 0 | Q194: 0 | R194: 0 | S194: 0 | T194: 0
B195: 32379 | C195: Kingston (Whitewater Cr)-Firthside-Kingston Beach | D195: Short Rural | E195: 1430 | F195: 11.302 | G195: 5.572 | H195: 4.4837 | I195: 3.70248061 | J195: 0.5797878621 | K195: 16 | L195: 252.7627396 | M195: 252.7627396 | N195: 3.12234219 | O195: 3.12234219 | P195: 8 | Q195: 12.43081213 | R195: 9.670268386 | S195: 0.07947016 | T195: 0.07180199
B196: 32380 | C196: Future | D196: Short Rural | E196: 0 | F196: 0 | G196: 0 | H196: 0 | I196: 0 | J196: 0 | K196: 0 | L196: 0 | M196: 0 | N196: 0 | O196: 0 | P196: 0 | Q196: 0 | R196: 0 | S196: 0 | T196: 0
B197: 32381 | C197: Future | D197: Short Rural | E197: 0 | F197: 0 | G197: 0 | H197: 0 | I197: 0 | J197: 0 | K197: 0 | L197: 0 | M197: 0 | N197: 0 | O197: 0 | P197: 0 | Q197: 0 | R197: 0 | S197: 0 | T197: 0
B198: 32382 | C198: Future | D198: Short Rural | E198: 0 | F198: 0 | G198: 0 | H198: 0 | I198: 0 | J198: 0 | K198: 0 | L198: 0 | M198: 0 | N198: 0 | O198: 0 | P198: 0 | Q198: 0 | R198: 0 | S198: 0 | T198: 0
B199: 32383 | C199: Open | D199: Short Rural | E199: 0 | F199: 0 | G199: 0 | H199: 0 | I199: 0 | J199: 0 | K199: 0 | L199: 0 | M199: 0 | N199: 0 | O199: 0 | P199: 0 | Q199: 0 | R199: 0 | S199: 0 | T199: 0
B200: 32384 | C200: Open | D200: Short Rural | E200: 0 | F200: 0 | G200: 0 | H200: 0 | I200: 0 | J200: 0 | K200: 0 | L200: 0 | M200: 0 | N200: 0 | O200: 0 | P200: 0 | Q200: 0 | R200: 0 | S200: 0 | T200: 0
B201: 33271 | C201: Snug-Conningham-Oyster Cove-Bruny Is | D201: Short Rural | E201: 1502 | F201: 145.519 | G201: 3.394 | H201: 2.3408 | I201: 16.7898585 | J201: 1.367006286 | K201: 47 | L201: 132.4254591 | M201: 132.4254591 | N201: 0.96519076 | O201: 0.96519076 | P201: 18 | Q201: 71.30043934 | R201: 71.30043934 | S201: 0.37174712 | T201: 0.37174712
B202: 33272 | C202: Nierinna-West Margate-Kaoota-Sandfly-Longley | D202: Short Rural | E202: 1449 | F202: 115.514 | G202: 0.585 | H202: 4.2483 | I202: 13.162018 | J202: 0.1064492816 | K202: 47 | L202: 142.2413281 | M202: 142.2413281 | N202: 1.88059683 | O202: 1.88059683 | P202: 6 | Q202: 4.706699063 | R202: 4.706699063 | S202: 0.01874348 | T202: 0.01874348
B203: 33273 | C203: Electrona Abalone Plant | D203: Urban | E203: 2 | F203: 0.262 | G203: 0.487 | H203: 0.3797 | I203: 0 | J203: 0 | K203: 1 | L203: 0 | M203: 0 | N203: 0 | O203: 0 | P203: 0 | Q203: 0 | R203: 0 | S203: 0 | T203: 0
B204: 33274 | C204: Margate-,Huntingfield,Blackmans Bay Central | D204: Short Rural | E204: 1431 | F204: 48.535 | G204: 5.814 | H204: 4.4202 | I204: 5.630169463 | J204: 1.59654649 | K204: 42 | L204: 10.4092428 | M204: 10.4092428 | N204: 0.27870592 | O204: 0.27870592 | P204: 14 | Q204: 49.03298969 | R204: 49.03298969 | S204: 0.22893702 | T204: 0.22893702
... 223 more rows

Sheet 3.6.9 Network-reliability
B1: =IF(dms_DataQuality="backcast",INDEX(dms_Worksheet_List,MATCH(dms_Model,dms_Model_List))&" BACKCAST",INDEX(dms_Worksheet_List,MATCH(dms_Model,dms_Model_List))) -> ANNUAL REPORTING STATEMENT
B2: =INDEX(dms_TradingNameFull_List,MATCH(dms_TradingName,dms_TradingName_List)) -> TasNetworks (D)
B3: =CONCATENATE("Annual Reporting RIN Response ",IF(SUM(dms_SingleYear_Model)>0,CONCATENATE(CRY),CONCATENATE(FRCP_y1," to ",dms_MultiYear_FinalYear_Result))) -> Annual Reporting RIN Response 2017-18
B4: 3.6 QUALITY OF SERVICES
B7: 3.6.9 - NETWORK FEEDER RELIABILITY - PLANNED OUTAGES
C8: =CRY -> 2017-18
B9: 3.6.9.1 - PLANNED MINUTES OFF SUPPLY (SAIDI)
B10: =INDEX(dms_FeederName_1,MATCH(dms_TradingName,dms_TradingName_List)) -> Critical Infrastructure | C10: 24.29142857
B11: =INDEX(dms_FeederName_2,MATCH(dms_TradingName,dms_TradingName_List)) -> High density commercial | C11: 20.98384509
B12: =INDEX(dms_FeederName_3,MATCH(dms_TradingName,dms_TradingName_List)) -> Urban | C12: 40.56112869
B13: =INDEX(dms_FeederName_4,MATCH(dms_TradingName,dms_TradingName_List)) -> High density rural | C13: 84.71199363
B14: =IF((INDEX(dms_FeederName_5,MATCH(dms_TradingName,dms_TradingName_List))=0),"",(INDEX(dms_FeederName_5,MATCH(dms_TradingName,dms_TradingName_List)))) -> Low density rural | C14: 145.0461291
C16: =CRY -> 2017-18
B17: 3.6.9.2 - PLANNED INTERRUPTIONS TO SUPPLY (SAIFI)
B18: =INDEX(dms_FeederName_1,MATCH(dms_TradingName,dms_TradingName_List)) -> Critical Infrastructure | C18: 0.08857138
B19: =INDEX(dms_FeederName_2,MATCH(dms_TradingName,dms_TradingName_List)) -> High density commercial | C19: 0.07471443
B20: =INDEX(dms_FeederName_3,MATCH(dms_TradingName,dms_TradingName_List)) -> Urban | C20: 0.16683635
B21: =INDEX(dms_FeederName_4,MATCH(dms_TradingName,dms_TradingName_List)) -> High density rural | C21: 0.31790985
B22: =IF((INDEX(dms_FeederName_5,MATCH(dms_TradingName,dms_TradingName_List))=0),"",(INDEX(dms_FeederName_5,MATCH(dms_TradingName,dms_TradingName_List)))) -> Low density rural | C22: 0.5118534

Sheet 4.1 Public lighting
B1: =IF(dms_DataQuality="backcast",INDEX(dms_Worksheet_List,MATCH(dms_Model,dms_Model_List))&" BACKCAST",INDEX(dms_Worksheet_List,MATCH(dms_Model,dms_Model_List))) -> ANNUAL REPORTING STATEMENT
B2: =INDEX(dms_TradingNameFull_List,MATCH(dms_TradingName,dms_TradingName_List)) -> TasNetworks (D)
B3: =CONCATENATE("Annual Reporting RIN Response ",IF(SUM(dms_SingleYear_Model)>0,CONCATENATE(CRY),CONCATENATE(FRCP_y1," to ",dms_MultiYear_FinalYear_Result))) -> Annual Reporting RIN Response 2017-18
B4: 4.1 PUBLIC LIGHTING
B6: Tables 4.1.1 - 4.1.3 deliberately omitted.
B8: 4.1.4 - PUBLIC LIGHTING METRICS BY TARIFF
C9: Number of Lights | D9: Public Lighting Revenue
B10: Tariff categories | C10: 0's | D10: $0's, nominal
B11: Public Road Lights
B12: 14W LED | C12: 5105.916667 | D12: 581069.02
B13: 18W LED | C13: 485.1666667 | D13: 58930.98
B14: 18W LED Decorative | C14: 111.6666667 | D14: 14174.12
B15: 25W LED | C15: 16 | D15: 2462.63
B16: 25W LED Decorative | C16: 7.75 | D16: 1325.33
B17: 42W Compact Fluorescent | C17: 5627.5 | D17: 727825.5
B18: 42W Compact Fluorescent - Bottom Pole Entry | C18: 4 | D18: 513.26
B19: 70W Sodium Vapour | C19: 187.3333333 | D19: 23948.41
B20: 100W Sodium Vapour | C20: 335.5833333 | D20: 54445.36
B21: 150W Sodium Vapour | C21: 4270.833333 | D21: 722462.59
B22: 250W Sodium Vapour | C22: 5409.5 | D22: 934811.67
B23: 400W Sodium Vapour | C23: 501.3333333 | D23: 88181.18
B24: 250W Sodium Vapour - Flood Light | C24: 7.333333333 | D24: 1384.51
B25: 400W Sodium Vapour - Flood Light | C25: 4 | D25: 748.92
B26: 100W Metal Halide | C26: 0.6666666667 | D26: 107.79
B27: 150W Metal Halide | C27: 27 | D27: 4657.63
B28: 250W Metal Halide | C28: 28 | D28: 4916.2
B29: 400W Metal Halide | C29: 2 | D29: 389.64
B30: 250W Metal Halide - Flood Light | C30: 0 | D30: 0
B31: 400W Metal Halide - Flood Light | C31: 0 | D31: 0
B32: 2x24W Compact Fluorescent | C32: 0 | D32: 0
B33: 1x20W Fluorescent | C33: 7 | D33: 940.4
B34: 50W Mercury Vapour | C34: 162.4166667 | D34: 19448.73
B35: 80W Mercury Vapour | C35: 13832.75 | D35: 1710923.46
B36: 80W Mercury Vapour Art decorative | C36: 0 | D36: 0
B37: 125W Mercury Vapour | C37: 97.91666667 | D37: 15859.48
B38: 250W Mercury Vapour | C38: 424.3333333 | D38: 69459.89
B39: 400W Mercury Vapour | C39: 282.4166667 | D39: 48402.71
B40: 1x40W Fluorescent | C40: 40.33333333 | D40: 5251.67
B41: 2x20W Fluorescent | C41: 8 | D41: 1083.01
B42: 2x24W Fluorescent | C42: 35 | D42: 4732.02
B43: 2x40W Fluorescent | C43: 3 | D43: 393.84
B44: 4x40W Fluorescent | C44: 1 | D44: 170.4
B45: 100W Incandescent | C45: 8 | D45: 1195.29
B46: 60W Incandescent | C46: 15 | D46: 1750.54
B47: 30W LED | C47: 1 | D47: 122.24
B49: Private Contract Lights
B50: 14W LED | C50: 5730.666667 | D50: 254932.05
B51: 18W LED | C51: 33.66666667 | D51: 1479.36
B52: 18W LED Decorative | C52: 2.333333333 | D52: 102.52
B53: 25W LED | C53: 0.1666666667 | D53: 7.34
B54: 25W LED Decorative | C54: 0 | D54: 0
B55: 42W Compact Fluorescent | C55: 26.66666667 | D55: 1735.3
B56: 42W Compact Fluorescent - Bottom Pole Entry | C56: 0 | D56: 0
B57: 50W Mercury Vapour | C57: 179.1666667 | D57: 11608.38
B58: 80W Mercury Vapour | C58: 333.5833333 | D58: 21373.74
B59: 80W Mercury Vapour Art decorative | C59: 0 | D59: 0
B60: 125W Mercury Vapour | C60: 347 | D60: 26735.53
B61: 250W Mercury Vapour | C61: 28.58333333 | D61: 2148.81
B62: 400W Mercury Vapour | C62: 22 | D62: 1707.22
B63: 70W Sodium Vapour | C63: 73 | D63: 4789.74
B64: 100W Sodium Vapour | C64: 1 | D64: 80.3
B65: 150W Sodium Vapour | C65: 161.75 | D65: 13000.34
B66: 250W Sodium Vapour | C66: 167.5833333 | D66: 13460.69
B67: 400W Sodium Vapour | C67: 103.0833333 | D67: 8348.41
B68: 250W Sodium Vapour - Flood Light | C68: 0 | D68: 0
B69: 400W Sodium Vapour - Flood Light | C69: 0 | D69: 0
B70: 100W Metal Halide | C70: 0 | D70: 0
B71: 150W Metal Halide | C71: 28 | D71: 2262.59
B72: 250W Metal Halide | C72: 38 | D72: 3084.56
B73: 400W Metal Halide | C73: 9 | D73: 749.91
B74: 250W Metal Halide - Flood Light | C74: 0 | D74: 0
B75: 400W Metal Halide - Flood Light | C75: 0 | D75: 0
B76: 1x20W Fluorescent | C76: 27 | D76: 1748.11
B77: 2x20W Fluorescent | C77: 45 | D77: 2966.17
B78: 1x40W Fluorescent | C78: 4 | D78: 259.22
B79: 2x40W Fluorescent | C79: 3 | D79: 197.81
B80: 3x40W Fluorescent | C80: 1 | D80: 79.82
B81: 4x40W Fluorescent | C81: 1 | D81: 80.89
B82: 4x20 Fluorescent | C82: 2 | D82: 135.68
B83: 60W Incandescent | C83: 23 | D83: 1475.67
B84: 100W Incandescent | C84: 5 | D84: 384.59
B86: To enter further tariff categories - please insert new rows above this row.
B87: Total | C87: =SUM(C11:C85) -> 44446 | D87: =SUM(D11:D85) -> 5477023.17

Sheet 6.2 STPIS Reliability
B1: =IF(dms_DataQuality="backcast",INDEX(dms_Worksheet_List,MATCH(dms_Model,dms_Model_List))&" BACKCAST",INDEX(dms_Worksheet_List,MATCH(dms_Model,dms_Model_List))) -> ANNUAL REPORTING STATEMENT
B2: =INDEX(dms_TradingNameFull_List,MATCH(dms_TradingName,dms_TradingName_List)) -> TasNetworks (D)
B3: =CONCATENATE("Annual Reporting RIN Response ",IF(SUM(dms_SingleYear_Model)>0,CONCATENATE(CRY),CONCATENATE(FRCP_y1," to ",dms_MultiYear_FinalYear_Result))) -> Annual Reporting RIN Response 2017-18
B4: 6.2 RELIABILITY AND CUSTOMER SERVICE PERFORMANCE
B6: Did the MAIFI parameter of the STPIS apply during the period? NB:This flag is set from the response on worksheet 3.6.8 Network feeders | D6: =dms_MAIFI_Flag -> No
B9: 6.2.1 - UNPLANNED MINUTES OFF SUPPLY (SAIDI)
D10: =CRY -> 2017-18
B11: Total sustained minutes off supply | C11: =INDEX(dms_FeederName_1,MATCH(dms_TradingName,dms_TradingName_List)) -> Critical Infrastructure | D11: 29.64325714
C12: =INDEX(dms_FeederName_2,MATCH(dms_TradingName,dms_TradingName_List)) -> High density commercial | D12: 70.5779514
C13: =INDEX(dms_FeederName_3,MATCH(dms_TradingName,dms_TradingName_List)) -> Urban | D13: 246.9092288
C14: =INDEX(dms_FeederName_4,MATCH(dms_TradingName,dms_TradingName_List)) -> High density rural | D14: 576.719082
C15: =IF((INDEX(dms_FeederName_5,MATCH(dms_TradingName,dms_TradingName_List))=0),"",(INDEX(dms_FeederName_5,MATCH(dms_TradingName,dms_TradingName_List)))) -> Low density rural | D15: 758.4472806
C16: Whole Network | D16: 372.6187344
B17: Total of excluded events* *see 3.3 of STPIS | C17: =INDEX(dms_FeederName_1,MATCH(dms_TradingName,dms_TradingName_List)) -> Critical Infrastructure | D17: 26.0644
C18: =INDEX(dms_FeederName_2,MATCH(dms_TradingName,dms_TradingName_List)) -> High density commercial | D18: 48.68696003
C19: =INDEX(dms_FeederName_3,MATCH(dms_TradingName,dms_TradingName_List)) -> Urban | D19: 142.2049502
C20: =INDEX(dms_FeederName_4,MATCH(dms_TradingName,dms_TradingName_List)) -> High density rural | D20: 334.1113072
C21: =IF((INDEX(dms_FeederName_5,MATCH(dms_TradingName,dms_TradingName_List))=0),"",(INDEX(dms_FeederName_5,MATCH(dms_TradingName,dms_TradingName_List)))) -> Low density rural | D21: 438.0006178
C22: Whole Network | D22: 215.2703512
B23: Total sustained minutes off supply after removing excluded events | C23: =INDEX(dms_FeederName_1,MATCH(dms_TradingName,dms_TradingName_List)) -> Critical Infrastructure | D23: 3.578857143
C24: =INDEX(dms_FeederName_2,MATCH(dms_TradingName,dms_TradingName_List)) -> High density commercial | D24: 21.89099138
C25: =INDEX(dms_FeederName_3,MATCH(dms_TradingName,dms_TradingName_List)) -> Urban | D25: 104.7042786
C26: =INDEX(dms_FeederName_4,MATCH(dms_TradingName,dms_TradingName_List)) -> High density rural | D26: 242.6077748
C27: =IF((INDEX(dms_FeederName_5,MATCH(dms_TradingName,dms_TradingName_List))=0),"",(INDEX(dms_FeederName_5,MATCH(dms_TradingName,dms_TradingName_List)))) -> Low density rural | D27: 320.4466628
C28: Whole Network | D28: 157.3483833
B31: 6.2.2 - UNPLANNED INTERRUPTIONS TO SUPPLY (SAIFI)
D32: =CRY -> 2017-18
B33: Total sustained interruptions | C33: =INDEX(dms_FeederName_1,MATCH(dms_TradingName,dms_TradingName_List)) -> Critical Infrastructure | D33: 0.15142846
C34: =INDEX(dms_FeederName_2,MATCH(dms_TradingName,dms_TradingName_List)) -> High density commercial | D34: 0.37867153
C35: =INDEX(dms_FeederName_3,MATCH(dms_TradingName,dms_TradingName_List)) -> Urban | D35: 1.73878638
C36: =INDEX(dms_FeederName_4,MATCH(dms_TradingName,dms_TradingName_List)) -> High density rural | D36: 3.61107192
C37: =IF((INDEX(dms_FeederName_5,MATCH(dms_TradingName,dms_TradingName_List))=0),"",(INDEX(dms_FeederName_5,MATCH(dms_TradingName,dms_TradingName_List)))) -> Low density rural | D37: 4.25993436
C38: Whole Network | D38: 2.38518738
B39: Total of excluded events* *see 3.3 of STPIS | C39: =INDEX(dms_FeederName_1,MATCH(dms_TradingName,dms_TradingName_List)) -> Critical Infrastructure | D39: 0.09428565
C40: =INDEX(dms_FeederName_2,MATCH(dms_TradingName,dms_TradingName_List)) -> High density commercial | D40: 0.11196081
C41: =INDEX(dms_FeederName_3,MATCH(dms_TradingName,dms_TradingName_List)) -> Urban | D41: 0.47656391
C42: =INDEX(dms_FeederName_4,MATCH(dms_TradingName,dms_TradingName_List)) -> High density rural | D42: 1.14875142
C43: =IF((INDEX(dms_FeederName_5,MATCH(dms_TradingName,dms_TradingName_List))=0),"",(INDEX(dms_FeederName_5,MATCH(dms_TradingName,dms_TradingName_List)))) -> Low density rural | D43: 1.47568114
C44: Whole Network | D44: 0.72630901
B45: Total sustained interruptions after removing excluded events | C45: =INDEX(dms_FeederName_1,MATCH(dms_TradingName,dms_TradingName_List)) -> Critical Infrastructure | D45: 0.05714281
C46: =INDEX(dms_FeederName_2,MATCH(dms_TradingName,dms_TradingName_List)) -> High density commercial | D46: 0.26671072
C47: =INDEX(dms_FeederName_3,MATCH(dms_TradingName,dms_TradingName_List)) -> Urban | D47: 1.26222247
C48: =INDEX(dms_FeederName_4,MATCH(dms_TradingName,dms_TradingName_List)) -> High density rural | D48: 2.4623205
C49: =IF((INDEX(dms_FeederName_5,MATCH(dms_TradingName,dms_TradingName_List))=0),"",(INDEX(dms_FeederName_5,MATCH(dms_TradingName,dms_TradingName_List)))) -> Low density rural | D49: 2.78425322
C50: Whole Network | D50: 1.65887837
B53: 6.2.3 - UNPLANNED MOMENTARY INTERRUPTIONS TO SUPPLY (MAIFI)
D54: =CRY -> 2017-18
B55: Total momentary interruptions | C55: =INDEX(dms_FeederName_1,MATCH(dms_TradingName,dms_TradingName_List)) -> Critical Infrastructure | D55: 0.1234285714
C56: =INDEX(dms_FeederName_2,MATCH(dms_TradingName,dms_TradingName_List)) -> High density commercial | D56: 1.968521392
C57: =INDEX(dms_FeederName_3,MATCH(dms_TradingName,dms_TradingName_List)) -> Urban | D57: 3.547730903
C58: =INDEX(dms_FeederName_4,MATCH(dms_TradingName,dms_TradingName_List)) -> High density rural | D58: 8.110174525
C59: =IF((INDEX(dms_FeederName_5,MATCH(dms_TradingName,dms_TradingName_List))=0),"",(INDEX(dms_FeederName_5,MATCH(dms_TradingName,dms_TradingName_List)))) -> Low density rural | D59: 10.42561108
C60: Whole Network | D60: 5.266961348
B61: Total of excluded events* *see 3.3 of STPIS | C61: =INDEX(dms_FeederName_1,MATCH(dms_TradingName,dms_TradingName_List)) -> Critical Infrastructure | D61: 0.1234285714
C62: =INDEX(dms_FeederName_2,MATCH(dms_TradingName,dms_TradingName_List)) -> High density commercial | D62: 1.968521392
C63: =INDEX(dms_FeederName_3,MATCH(dms_TradingName,dms_TradingName_List)) -> Urban | D63: 3.296820028
C64: =INDEX(dms_FeederName_4,MATCH(dms_TradingName,dms_TradingName_List)) -> High density rural | D64: 7.461006031
C65: =IF((INDEX(dms_FeederName_5,MATCH(dms_TradingName,dms_TradingName_List))=0),"",(INDEX(dms_FeederName_5,MATCH(dms_TradingName,dms_TradingName_List)))) -> Low density rural | D65: 9.33270948
C66: Whole Network | D66: 4.829996608
B67: Total momentary interruptions after removing excluded events | C67: =INDEX(dms_FeederName_1,MATCH(dms_TradingName,dms_TradingName_List)) -> Critical Infrastructure | D67: 0
C68: =INDEX(dms_FeederName_2,MATCH(dms_TradingName,dms_TradingName_List)) -> High density commercial | D68: 0
C69: =INDEX(dms_FeederName_3,MATCH(dms_TradingName,dms_TradingName_List)) -> Urban | D69: 0.2509108752
C70: =INDEX(dms_FeederName_4,MATCH(dms_TradingName,dms_TradingName_List)) -> High density rural | D70: 0.6491684942
C71: =IF((INDEX(dms_FeederName_5,MATCH(dms_TradingName,dms_TradingName_List))=0),"",(INDEX(dms_FeederName_5,MATCH(dms_TradingName,dms_TradingName_List)))) -> Low density rural | D71: 1.092901596
C72: Whole Network | D72: 0.4369647397
B75: 6.2.4 - DISTRIBUTION CUSTOMER NUMBERS
D76: =CRY -> 2017-18
B77: Customer numbers at the start of the period | C77: =INDEX(dms_FeederName_1,MATCH(dms_TradingName,dms_TradingName_List)) -> Critical Infrastructure | D77: 1740
C78: =INDEX(dms_FeederName_2,MATCH(dms_TradingName,dms_TradingName_List)) -> High density commercial | D78: 4497
C79: =INDEX(dms_FeederName_3,MATCH(dms_TradingName,dms_TradingName_List)) -> Urban | D79: 190857
C80: =INDEX(dms_FeederName_4,MATCH(dms_TradingName,dms_TradingName_List)) -> High density rural | D80: 43537
C81: =IF((INDEX(dms_FeederName_5,MATCH(dms_TradingName,dms_TradingName_List))=0),"",(INDEX(dms_FeederName_5,MATCH(dms_TradingName,dms_TradingName_List)))) -> Low density rural | D81: 44192
C82: Whole Network | D82: 284823
B83: Customer numbers at the end of the period | C83: =INDEX(dms_FeederName_1,MATCH(dms_TradingName,dms_TradingName_List)) -> Critical Infrastructure | D83: 1760
C84: =INDEX(dms_FeederName_2,MATCH(dms_TradingName,dms_TradingName_List)) -> High density commercial | D84: 4524
C85: =INDEX(dms_FeederName_3,MATCH(dms_TradingName,dms_TradingName_List)) -> Urban | D85: 192291
C86: =INDEX(dms_FeederName_4,MATCH(dms_TradingName,dms_TradingName_List)) -> High density rural | D86: 44015
C87: =IF((INDEX(dms_FeederName_5,MATCH(dms_TradingName,dms_TradingName_List))=0),"",(INDEX(dms_FeederName_5,MATCH(dms_TradingName,dms_TradingName_List)))) -> Low density rural | D87: 44504
C88: Whole Network | D88: 287094
B89: Average customer numbers | C89: =INDEX(dms_FeederName_1,MATCH(dms_TradingName,dms_TradingName_List)) -> Critical Infrastructure | D89: =IFERROR(ROUND(AVERAGE(D77,D83),0),"") -> 1750
C90: =INDEX(dms_FeederName_2,MATCH(dms_TradingName,dms_TradingName_List)) -> High density commercial | D90: 4511
C91: =INDEX(dms_FeederName_3,MATCH(dms_TradingName,dms_TradingName_List)) -> Urban | D91: 191574
C92: =INDEX(dms_FeederName_4,MATCH(dms_TradingName,dms_TradingName_List)) -> High density rural | D92: 43776
C93: =IF((INDEX(dms_FeederName_5,MATCH(dms_TradingName,dms_TradingName_List))=0),"",(INDEX(dms_FeederName_5,MATCH(dms_TradingName,dms_TradingName_List)))) -> Low density rural | D93: 44348
C94: Whole Network | D94: 285959

Sheet 6.6 STPIS Customer Service
B1: =IF(dms_DataQuality="backcast",INDEX(dms_Worksheet_List,MATCH(dms_Model,dms_Model_List))&" BACKCAST",INDEX(dms_Worksheet_List,MATCH(dms_Model,dms_Model_List))) -> ANNUAL REPORTING STATEMENT
B2: =INDEX(dms_TradingNameFull_List,MATCH(dms_TradingName,dms_TradingName_List)) -> TasNetworks (D)
B3: =CONCATENATE("Annual Reporting RIN Response ",IF(SUM(dms_SingleYear_Model)>0,CONCATENATE(CRY),CONCATENATE(FRCP_y1," to ",dms_MultiYear_FinalYear_Result))) -> Annual Reporting RIN Response 2017-18
B4: 6.6 STPIS CUSTOMER SERVICE
B7: 6.6.1 - TELEPHONE ANSWERING
C8: Number of calls after removing excluded events | D8: Total number of calls
C9: =CRY -> 2017-18 | D9: =CRY -> 2017-18
B10: Number of calls received | C10: 42634 | D10: 50203
B11: Number of calls answered within 30 seconds | C11: 34315
B12: Percentage of calls answered within 30 seconds | C12: =IFERROR(C11/C10,"") -> 0.8048740442

Sheet 6.7 STPIS Daily Performance
B1: =IF(dms_DataQuality="backcast",INDEX(dms_Worksheet_List,MATCH(dms_Model,dms_Model_List))&" BACKCAST",INDEX(dms_Worksheet_List,MATCH(dms_Model,dms_Model_List))) -> ANNUAL REPORTING STATEMENT | I1: 1-Jul-2016
B2: =INDEX(dms_TradingNameFull_List,MATCH(dms_TradingName,dms_TradingName_List)) -> TasNetworks (D)
B3: =CONCATENATE("Annual Reporting RIN Response ",IF(SUM(dms_SingleYear_Model)>0,CONCATENATE(CRY),CONCATENATE(FRCP_y1," to ",dms_MultiYear_FinalYear_Result))) -> Annual Reporting RIN Response 2017-18
B4: 6.7 STPIS DAILY PERFORMANCE
B7: Did the MAIFI parameter of the STPIS apply during the period? This flag is set from the response on worksheet 3.6.8 Network feeders | G7: =dms_MAIFI_Flag -> No
B9: The excluded events to be removed from the data refer only to events listed in clause 3.3(a) of the STPIS, with respect to reliability data, and in clause 5.4 of the STPIS with respect to customer service parameters. *Customer service information must be reported as per the definitions in the STPIS, that is excluding: • calls to payment lines and automated interactive services • calls abandoned by the customer within 30 seconds of the call being queued for response by a human operator (where the time in which a telephone call is abandoned is not measured, then an estimate of the number of calls abandoned within 30 seconds will be determined by taking 20 per cent of all calls abadoned).
B11: 6.7.1 - DAILY PERFORMANCE DATA - UNPLANNED
B12: Date | C12: Customer service* | E12: MAIFI
C13: Number of calls received (after removing excluded events) | D13: Number of calls answered in 30 seconds (after removing excluded events) | E13: =INDEX(dms_FeederName_1,MATCH(dms_TradingName,dms_TradingName_List)) -> Critical Infrastructure | G13: =INDEX(dms_FeederName_2,MATCH(dms_TradingName,dms_TradingName_List)) -> High density commercial | I13: =INDEX(dms_FeederName_3,MATCH(dms_TradingName,dms_TradingName_List)) -> Urban | K13: =INDEX(dms_FeederName_4,MATCH(dms_TradingName,dms_TradingName_List)) -> High density rural | M13: =IF((INDEX(dms_FeederName_5,MATCH(dms_TradingName,dms_TradingName_List))=0),"Network",(INDEX(dms_FeederName_5,MATCH(dms_TradingName,dms_TradingName_List)))) -> Low density rural | O13: Network
E14: All events | F14: After removing excluded events | G14: All events | H14: After removing excluded events | I14: All events | J14: After removing excluded events | K14: All events | L14: After removing excluded events | M14: All events | N14: After removing excluded events | O14: All events | P14: After removing excluded events
B15: =dms_060701_StartDateTxt -> 1-Jul-2017 | C15: 78 | D15: 69
B16: =B15+1 -> 2017-07-02 | C16: 198 | D16: 143
B17: 2017-07-03 | C17: 235 | D17: 175
B18: 2017-07-04 | C18: 127 | D18: 119
B19: 2017-07-05 | C19: 110 | D19: 102
B20: 2017-07-06 | C20: 65 | D20: 60
B21: 2017-07-07 | C21: 89 | D21: 81
B22: 2017-07-08 | C22: 73 | D22: 66
B23: 2017-07-09 | C23: 100 | D23: 89
B24: 2017-07-10 | C24: 106 | D24: 103
B25: 2017-07-11 | C25: 94 | D25: 90
B26: 2017-07-12 | C26: 146 | D26: 116
B27: 2017-07-13 | C27: 112 | D27: 89
B28: 2017-07-14 | C28: 137 | D28: 113
B29: 2017-07-15 | C29: 122 | D29: 96
B30: 2017-07-16 | C30: 61 | D30: 60
B31: 2017-07-17 | C31: 143 | D31: 138
B32: 2017-07-18 | C32: 106 | D32: 101
B33: 2017-07-19 | C33: 96 | D33: 90
B34: 2017-07-20 | C34: 96 | D34: 91
B35: 2017-07-21 | C35: 95 | D35: 86
B36: 2017-07-22 | C36: 59 | D36: 55
B37: 2017-07-23 | C37: 115 | D37: 101
B38: 2017-07-24 | C38: 81 | D38: 73
B39: 2017-07-25 | C39: 114 | D39: 102
B40: 2017-07-26 | C40: 94 | D40: 88
B41: 2017-07-27 | C41: 93 | D41: 86
B42: 2017-07-28 | C42: 206 | D42: 171
B43: 2017-07-29 | C43: 130 | D43: 96
B44: 2017-07-30 | C44: 130 | D44: 96
B45: 2017-07-31 | C45: 99 | D45: 87
B46: 2017-08-01 | C46: 144 | D46: 117
B47: 2017-08-02 | C47: 101 | D47: 86
B48: 2017-08-03 | C48: 109 | D48: 94
B49: 2017-08-04 | C49: 105 | D49: 97
B50: 2017-08-05 | C50: 61 | D50: 58
B51: 2017-08-06 | C51: 45 | D51: 42
B52: 2017-08-07 | C52: 103 | D52: 89
B53: 2017-08-08 | C53: 76 | D53: 72
B54: 2017-08-09 | C54: 63 | D54: 57
B55: 2017-08-10 | C55: 99 | D55: 86
B56: 2017-08-11 | C56: 0 | D56: 0
B57: 2017-08-12 | C57: 789 | D57: 272
B58: 2017-08-13 | C58: 105 | D58: 102
B59: 2017-08-14 | C59: 174 | D59: 143
B60: 2017-08-15 | C60: 127 | D60: 97
B61: 2017-08-16 | C61: 148 | D61: 131
B62: 2017-08-17 | C62: 120 | D62: 106
B63: 2017-08-18 | C63: 88 | D63: 82
B64: 2017-08-19 | C64: 14 | D64: 13
B65: 2017-08-20 | C65: 46 | D65: 43
B66: 2017-08-21 | C66: 73 | D66: 65
B67: 2017-08-22 | C67: 92 | D67: 75
B68: 2017-08-23 | C68: 95 | D68: 83
B69: 2017-08-24 | C69: 132 | D69: 100
B70: 2017-08-25 | C70: 86 | D70: 73
B71: 2017-08-26 | C71: 60 | D71: 59
B72: 2017-08-27 | C72: 42 | D72: 41
B73: 2017-08-28 | C73: 94 | D73: 76
B74: 2017-08-29 | C74: 72 | D74: 69
B75: 2017-08-30 | C75: 65 | D75: 55
B76: 2017-08-31 | C76: 73 | D76: 63
B77: 2017-09-01 | C77: 64 | D77: 55
B78: 2017-09-02 | C78: 37 | D78: 37
B79: 2017-09-03 | C79: 148 | D79: 105
B80: =B79+1 -> 2017-09-04 | C80: 91 | D80: 78
B81: 2017-09-05 | C81: 113 | D81: 109
B82: 2017-09-06 | C82: 97 | D82: 94
B83: 2017-09-07 | C83: 139 | D83: 103
B84: 2017-09-08 | C84: 82 | D84: 76
B85: 2017-09-09 | C85: 43 | D85: 39
B86: 2017-09-10 | C86: 31 | D86: 30
B87: 2017-09-11 | C87: 164 | D87: 115
B88: 2017-09-12 | C88: 115 | D88: 97
B89: 2017-09-13 | C89: 120 | D89: 102
B90: 2017-09-14 | C90: 85 | D90: 73
B91: 2017-09-15 | C91: 61 | D91: 57
B92: 2017-09-16 | C92: 58 | D92: 55
B93: 2017-09-17 | C93: 32 | D93: 32
B94: 2017-09-18 | C94: 95 | D94: 88
B95: 2017-09-19 | C95: 100 | D95: 90
B96: 2017-09-20 | C96: 67 | D96: 59
B97: 2017-09-21 | C97: 88 | D97: 86
B98: 2017-09-22 | C98: 74 | D98: 71
B99: 2017-09-23 | C99: 163 | D99: 122
B100: 2017-09-24 | C100: 66 | D100: 63
B101: 2017-09-25 | C101: 194 | D101: 137
B102: 2017-09-26 | C102: 82 | D102: 70
B103: 2017-09-27 | C103: 103 | D103: 83
B104: 2017-09-28 | C104: 73 | D104: 66
B105: 2017-09-29 | C105: 103 | D105: 82
B106: 2017-09-30 | C106: 148 | D106: 118
B107: 2017-10-01 | C107: 40 | D107: 38
B108: 2017-10-02 | C108: 74 | D108: 70
B109: 2017-10-03 | C109: 60 | D109: 58
B110: 2017-10-04 | C110: 70 | D110: 67
B111: 2017-10-05 | C111: 44 | D111: 42
B112: 2017-10-06 | C112: 87 | D112: 77
B113: 2017-10-07 | C113: 52 | D113: 50
B114: 2017-10-08 | C114: 34 | D114: 33
B115: 2017-10-09 | C115: 68 | D115: 59
B116: 2017-10-10 | C116: 97 | D116: 94
B117: 2017-10-11 | C117: 93 | D117: 84
B118: 2017-10-12 | C118: 81 | D118: 74
B119: 2017-10-13 | C119: 74 | D119: 60
B120: 2017-10-14 | C120: 85 | D120: 78
B121: 2017-10-15 | C121: 83 | D121: 38
B122: 2017-10-16 | C122: 91 | D122: 82
B123: 2017-10-17 | C123: 94 | D123: 72
B124: 2017-10-18 | C124: 80 | D124: 74
B125: 2017-10-19 | C125: 103 | D125: 95
B126: 2017-10-20 | C126: 83 | D126: 69
B127: 2017-10-21 | C127: 77 | D127: 73
B128: 2017-10-22 | C128: 43 | D128: 36
B129: 2017-10-23 | C129: 92 | D129: 85
B130: 2017-10-24 | C130: 72 | D130: 57
B131: 2017-10-25 | C131: 84 | D131: 77
B132: 2017-10-26 | C132: 53 | D132: 50
B133: 2017-10-27 | C133: 79 | D133: 73
B134: 2017-10-28 | C134: 48 | D134: 46
B135: 2017-10-29 | C135: 116 | D135: 99
B136: 2017-10-30 | C136: 122 | D136: 113
B137: 2017-10-31 | C137: 115 | D137: 109
B138: 2017-11-01 | C138: 46 | D138: 45
B139: 2017-11-02 | C139: 79 | D139: 76
B140: 2017-11-03 | C140: 99 | D140: 96
B141: 2017-11-04 | C141: 27 | D141: 25
B142: 2017-11-05 | C142: 30 | D142: 28
B143: 2017-11-06 | C143: 65 | D143: 63
B144: =B143+1 -> 2017-11-07 | C144: 81 | D144: 72
B145: 2017-11-08 | C145: 49 | D145: 46
B146: 2017-11-09 | C146: 79 | D146: 74
B147: 2017-11-10 | C147: 70 | D147: 60
B148: 2017-11-11 | C148: 39 | D148: 36
B149: 2017-11-12 | C149: 37 | D149: 34
B150: 2017-11-13 | C150: 79 | D150: 64
B151: 2017-11-14 | C151: 82 | D151: 74
B152: 2017-11-15 | C152: 97 | D152: 80
B153: 2017-11-16 | C153: 142 | D153: 110
B154: 2017-11-17 | C154: 93 | D154: 78
B155: 2017-11-18 | C155: 81 | D155: 63
B156: 2017-11-19 | C156: 35 | D156: 35
B157: 2017-11-20 | C157: 124 | D157: 93
B158: 2017-11-21 | C158: 69 | D158: 66
B159: 2017-11-22 | C159: 88 | D159: 79
B160: 2017-11-23 | C160: 81 | D160: 81
B161: 2017-11-24 | C161: 207 | D161: 162
B162: 2017-11-25 | C162: 240 | D162: 143
B163: 2017-11-26 | C163: 135 | D163: 114
B164: 2017-11-27 | C164: 252 | D164: 182
B165: 2017-11-28 | C165: 117 | D165: 106
B166: 2017-11-29 | C166: 89 | D166: 85
B167: 2017-11-30 | C167: 144 | D167: 136
B168: 2017-12-01 | C168: 183 | D168: 151
B169: 2017-12-02 | C169: 120 | D169: 95
B170: 2017-12-03 | C170: 0 | D170: 0
B171: 2017-12-04 | C171: 150 | D171: 125
B172: 2017-12-05 | C172: 113 | D172: 95
B173: 2017-12-06 | C173: 92 | D173: 88
B174: 2017-12-07 | C174: 102 | D174: 92
B175: 2017-12-08 | C175: 88 | D175: 81
B176: 2017-12-09 | C176: 85 | D176: 79
B177: 2017-12-10 | C177: 65 | D177: 59
B178: 2017-12-11 | C178: 220 | D178: 172
B179: 2017-12-12 | C179: 98 | D179: 87
B180: 2017-12-13 | C180: 106 | D180: 98
B181: 2017-12-14 | C181: 166 | D181: 134
B182: 2017-12-15 | C182: 110 | D182: 101
B183: 2017-12-16 | C183: 42 | D183: 38
B184: 2017-12-17 | C184: 58 | D184: 43
B185: 2017-12-18 | C185: 170 | D185: 136
B186: 2017-12-19 | C186: 186 | D186: 157
B187: 2017-12-20 | C187: 189 | D187: 177
B188: 2017-12-21 | C188: 120 | D188: 110
B189: 2017-12-22 | C189: 117 | D189: 111
B190: 2017-12-23 | C190: 64 | D190: 55
B191: 2017-12-24 | C191: 89 | D191: 70
B192: 2017-12-25 | C192: 100 | D192: 89
B193: 2017-12-26 | C193: 60 | D193: 55
B194: 2017-12-27 | C194: 64 | D194: 57
B195: 2017-12-28 | C195: 91 | D195: 81
B196: 2017-12-29 | C196: 124 | D196: 91
B197: 2017-12-30 | C197: 87 | D197: 75
B198: 2017-12-31 | C198: 62 | D198: 55
B199: 2018-01-01 | C199: 98 | D199: 93
B200: 2018-01-02 | C200: 88 | D200: 81
B201: 2018-01-03 | C201: 125 | D201: 112
B202: 2018-01-04 | C202: 101 | D202: 94
B203: 2018-01-05 | C203: 96 | D203: 89
B204: 2018-01-06 | C204: 54 | D204: 49
... 176 more rows

Sheet 6.8 STPIS Exclusions
B1: =IF(dms_DataQuality="backcast",INDEX(dms_Worksheet_List,MATCH(dms_Model,dms_Model_List))&" BACKCAST",INDEX(dms_Worksheet_List,MATCH(dms_Model,dms_Model_List))) -> ANNUAL REPORTING STATEMENT
B2: =INDEX(dms_TradingNameFull_List,MATCH(dms_TradingName,dms_TradingName_List)) -> TasNetworks (D)
B3: =CONCATENATE("Annual Reporting RIN Response ",IF(SUM(dms_SingleYear_Model)>0,CONCATENATE(CRY),CONCATENATE(FRCP_y1," to ",dms_MultiYear_FinalYear_Result))) -> Annual Reporting RIN Response 2017-18
B4: 6.8 STPIS EXCLUSIONS
B7: This information is collected to inform the application of the STPIS to Australian Distribution Co. in future regulatory periods. The information is also collected to monitor network performance, and may be used in performance reports.
B9: 6.8.1 - STPIS EXCLUSIONS
B10: Date of event | C10: Outage ID | D10: Feeder ID / name | E10: Feeder classification (drop down) | F10: Cause of event (drop down) | G10: Unplanned | J10: Event category | K10: Effect on unplanned MAIFI | L10: Please provide separate explanation to confirm the outage was not due to inadequate transmission connection planning
B11: DD/MM/YYYY | G11: Number of interruptions | H11: Duration of interruption (mins) | I11: Total unplanned minutes off supply | J11: Use exclusion categories listed in section 3.3(a) of the STPIS (drop down) | K11: by feeder classification
B12: 2017-07-01 | C12: J1706300018 | D12: 80008 | E12: Urban | F12: Third Party | G12: 5 | H12: 25 | I12: 0.0001304978755 | J12: 7
B13: 2017-07-01 | C13: J1707010005 | D13: 41517 | E13: Urban | F13: Third Party | G13: 1 | H13: 5 | I13: 2.60995751e-05 | J13: 7
B14: 2017-07-01 | C14: J1707010011 | D14: 91001 | E14: High Density Rural | F14: Third Party | G14: 1 | H14: 1 | I14: 2.284356725e-05 | J14: 7
B15: 2017-07-02 | C15: J1707020002 | D15: 91006 | E15: Urban | F15: Third Party | G15: 1 | H15: 85 | I15: 0.0004436927767 | J15: 7
B16: 2017-07-03 | C16: J1707030000 | D16: 28231 | E16: Urban | F16: Third Party | G16: 1 | H16: 34 | I16: 0.0001774771107 | J16: 7
B17: 2017-07-03 | C17: J1707030026 | D17: 56004 | E17: Low Density Rural | F17: Third Party | G17: 1 | H17: 10 | I17: 0.0002254893118 | J17: 7
B18: 2017-07-03 | C18: J1707030032 | D18: 33274 | E18: Urban | F18: Third Party | G18: 19 | H18: 190 | I18: 0.0009917838538 | J18: 7
B19: 2017-07-03 | C19: J1707030062 | D19: 33274 | E19: Urban | F19: Third Party | G19: 1 | H19: 10 | I19: 5.21991502e-05 | J19: 7
B20: 2017-07-03 | C20: J1707030063 | D20: 33274 | E20: Urban | F20: Third Party | G20: 1 | H20: 10 | I20: 5.21991502e-05 | J20: 7
B21: 2017-07-03 | C21: J1707030064 | D21: 33274 | E21: Urban | F21: Third Party | G21: 1 | H21: 10 | I21: 5.21991502e-05 | J21: 7
B22: 2017-07-03 | C22: J1707030065 | D22: 33274 | E22: Urban | F22: Third Party | G22: 1 | H22: 10 | I22: 5.21991502e-05 | J22: 7
B23: 2017-07-03 | C23: J1707030066 | D23: 33274 | E23: Urban | F23: Third Party | G23: 1 | H23: 9 | I23: 4.697923518e-05 | J23: 7
B24: 2017-07-03 | C24: J1707030067 | D24: 33274 | E24: Urban | F24: Third Party | G24: 1 | H24: 8 | I24: 4.175932016e-05 | J24: 7
B25: 2017-07-03 | C25: J1707030068 | D25: 33274 | E25: Urban | F25: Third Party | G25: 1 | H25: 7 | I25: 3.653940514e-05 | J25: 7
B26: 2017-07-03 | C26: J1707030069 | D26: 33274 | E26: Urban | F26: Third Party | G26: 1 | H26: 6 | I26: 3.131949012e-05 | J26: 7
B27: 2017-07-03 | C27: J1707030070 | D27: 33274 | E27: Urban | F27: Third Party | G27: 1 | H27: 5 | I27: 2.60995751e-05 | J27: 7
B28: 2017-07-03 | C28: J1707030071 | D28: 33274 | E28: Urban | F28: Third Party | G28: 1 | H28: 3 | I28: 1.565974506e-05 | J28: 7
B29: 2017-07-03 | C29: J1707030072 | D29: 33274 | E29: Urban | F29: Third Party | G29: 1 | H29: 2 | I29: 1.043983004e-05 | J29: 7
B30: 2017-07-03 | C30: J1707030073 | D30: 33274 | E30: Urban | F30: Third Party | G30: 1 | H30: 1 | I30: 5.219915019e-06 | J30: 7
B31: 2017-07-03 | C31: J1707030074 | D31: 33274 | E31: Urban | F31: Third Party | G31: 1 | H31: 9 | I31: 4.697923518e-05 | J31: 7
B32: 2017-07-03 | C32: J1707030076 | D32: 33274 | E32: Urban | F32: Third Party | G32: 1 | H32: 8 | I32: 4.175932016e-05 | J32: 7
B33: 2017-07-03 | C33: J1707030077 | D33: 33274 | E33: Urban | F33: Third Party | G33: 1 | H33: 5 | I33: 2.60995751e-05 | J33: 7
B34: 2017-07-03 | C34: J1707030078 | D34: 33274 | E34: Urban | F34: Third Party | G34: 1 | H34: 4 | I34: 2.087966008e-05 | J34: 7
B35: 2017-07-03 | C35: J1707030079 | D35: 33274 | E35: Urban | F35: Third Party | G35: 1 | H35: 3 | I35: 1.565974506e-05 | J35: 7
B36: 2017-07-03 | C36: J1707030080 | D36: 33274 | E36: Urban | F36: Third Party | G36: 1 | H36: 10 | I36: 5.21991502e-05 | J36: 7
B37: 2017-07-03 | C37: J1707030082 | D37: 91012 | E37: Low Density Rural | F37: Third Party | G37: 1 | H37: 12 | I37: 0.0002705871742 | J37: 7
B38: 2017-07-03 | C38: J1707030083 | D38: 53003 | E38: Urban | F38: Third Party | G38: 1 | H38: 242 | I38: 0.001263219435 | J38: 7
B39: 2017-07-03 | C39: J1707030084 | D39: 33274 | E39: Urban | F39: Third Party | G39: 1 | H39: 10 | I39: 5.21991502e-05 | J39: 7
B40: 2017-07-03 | C40: J1707030100 | D40: 82003 | E40: Urban | F40: Third Party | G40: 1 | H40: 64 | I40: 0.0003340745613 | J40: 7
B41: 2017-07-06 | C41: J1707060012 | D41: 31010 | E41: Low Density Rural | F41: Third Party | G41: 1 | H41: 411 | I41: 0.009267610715 | J41: 7
B42: 2017-07-06 | C42: J1707060026 | D42: 33271 | E42: Low Density Rural | F42: Third Party | G42: 1 | H42: 10 | I42: 0.0002254893118 | J42: 7
B43: 2017-07-07 | C43: J1707070007 | D43: 20552 | E43: Urban | F43: Third Party | G43: 1 | H43: 25 | I43: 0.0001304978755 | J43: 7
B44: 2017-07-08 | C44: J1707080002 | D44: 66102 | E44: Urban | F44: Third Party | G44: 1 | H44: 87 | I44: 0.0004541326067 | J44: 7
B45: 2017-07-08 | C45: J1707080006 | D45: 28231 | E45: Urban | F45: Third Party | G45: 1 | H45: 58 | I45: 0.0003027550711 | J45: 7
B46: 2017-07-08 | C46: J1707080027 | D46: 33276 | E46: Low Density Rural | F46: Third Party | G46: 1 | H46: 10 | I46: 0.0002254893118 | J46: 7
B47: 2017-07-10 | C47: J1707100005 | D47: 57006 | E47: Low Density Rural | F47: Third Party | G47: 1 | H47: 240 | I47: 0.005411743483 | J47: 7
B48: 2017-07-10 | C48: J1707100012 | D48: 17104 | E48: Urban | F48: Third Party | G48: 1 | H48: 10 | I48: 5.21991502e-05 | J48: 7
B49: 2017-07-10 | C49: J1707100045 | D49: 48184 | E49: Urban | F49: Third Party | G49: 1 | H49: 76 | I49: 0.0003967135415 | J49: 7
B50: 2017-07-11 | C50: J1707110019 | D50: 48185 | E50: Low Density Rural | F50: Third Party | G50: 1 | H50: 10 | I50: 0.0002254893118 | J50: 7
B51: 2017-07-12 | C51: J1707120041 | D51: 66102 | E51: Urban | F51: Third Party | G51: 1 | H51: 103 | I51: 0.000537651247 | J51: 7
B52: 2017-07-12 | C52: J1707120049 | D52: 80008 | E52: Urban | F52: Third Party | G52: 1 | H52: 10 | I52: 5.21991502e-05 | J52: 7
B53: 2017-07-12 | C53: J1707120076 | D53: 62006 | E53: Urban | F53: Third Party | G53: 1 | H53: 10 | I53: 5.21991502e-05 | J53: 7
B54: 2017-07-13 | C54: J1707130001 | D54: 99981 | E54: High Density Rural | F54: Third Party | G54: 1 | H54: 5 | I54: 0.0001142178363 | J54: 7
B55: 2017-07-13 | C55: J1707130013 | D55: 20553 | E55: Urban | F55: Third Party | G55: 1 | H55: 10 | I55: 5.21991502e-05 | J55: 7
B56: 2017-07-13 | C56: J1707130025 | D56: 48184 | E56: Urban | F56: Third Party | G56: 1 | H56: 30 | I56: 0.0001565974506 | J56: 7
B57: 2017-07-13 | C57: J1707130043 | D57: 39565 | E57: Urban | F57: Third Party | G57: 1 | H57: 70 | I57: 0.0003653940514 | J57: 7
B58: 2017-07-13 | C58: J1707130071 | D58: 80003 | E58: High Density Rural | F58: Third Party | G58: 1 | H58: 46 | I58: 0.001050804094 | J58: 7
B59: 2017-07-14 | C59: J1707140022 | D59: 41518 | E59: Urban | F59: Third Party | G59: 1 | H59: 10 | I59: 5.21991502e-05 | J59: 7
B60: 2017-07-14 | C60: J1707140037 | D60: 61037 | E60: Urban | F60: Third Party | G60: 1 | H60: 208 | I60: 0.001085742324 | J60: 7
B61: 2017-07-14 | C61: J1707140038 | D61: 31007 | E61: Low Density Rural | F61: Third Party | G61: 1 | H61: 10 | I61: 0.0002254893118 | J61: 7
B62: 2017-07-14 | C62: J1707140047 | D62: 13049 | E62: Urban | F62: Third Party | G62: 1 | H62: 93 | I62: 0.0004854520968 | J62: 7
B63: 2017-07-15 | C63: J1707150011 | D63: 82005 | E63: Urban | F63: Third Party | G63: 1 | H63: 174 | I63: 0.0009082652134 | J63: 7
B64: 2017-07-15 | C64: J1707150025 | D64: 18146 | E64: Urban | F64: Third Party | G64: 1 | H64: 10 | I64: 5.21991502e-05 | J64: 7
B65: 2017-07-16 | C65: J1707160012 | D65: 91007 | E65: Urban | F65: Third Party | G65: 1 | H65: 99 | I65: 0.000516771587 | J65: 7
B66: 2017-07-16 | C66: J1707160018 | D66: 39565 | E66: High Density Rural | F66: Third Party | G66: 1 | H66: 17 | I66: 0.0003883406433 | J66: 7
B67: 2017-07-16 | C67: J1707160029 | D67: 91008 | E67: Urban | F67: Third Party | G67: 1 | H67: 173 | I67: 0.0009030452984 | J67: 7
B68: 2017-07-16 | C68: J1707160033 | D68: 93005 | E68: High Density Rural | F68: Third Party | G68: 1 | H68: 16 | I68: 0.000365497076 | J68: 7
B69: 2017-07-17 | C69: J1707170010 | D69: 27176 | E69: High Density Commercial | F69: Third Party | G69: 1 | H69: 88 | I69: 0.01951003215 | J69: 7
B70: 2017-07-17 | C70: J1707170032 | D70: 54005 | E70: Low Density Rural | F70: Third Party | G70: 1 | H70: 124 | I70: 0.002796067466 | J70: 7
B71: 2017-07-17 | C71: J1707170055 | D71: 53003 | E71: Low Density Rural | F71: Third Party | G71: 1 | H71: 178 | I71: 0.00401370975 | J71: 7
B72: 2017-07-17 | C72: J1707170059 | D72: 20553 | E72: Urban | F72: Third Party | G72: 1 | H72: 983 | I72: 0.005131176464 | J72: 7
B73: 2017-07-18 | C73: J1707180018 | D73: 31010 | E73: High Density Rural | F73: Third Party | G73: 1 | H73: 10 | I73: 0.0002284356725 | J73: 7
B74: 2017-07-18 | C74: J1707180023 | D74: 57006 | E74: Low Density Rural | F74: Third Party | G74: 1 | H74: 197 | I74: 0.004442139443 | J74: 7
B75: 2017-07-18 | C75: J1707180043 | D75: 22325 | E75: Urban | F75: Third Party | G75: 1 | H75: 10 | I75: 5.21991502e-05 | J75: 7
B76: 2017-07-19 | C76: J1707190022 | D76: 48182 | E76: High Density Rural | F76: Third Party | G76: 1 | H76: 10 | I76: 0.0002284356725 | J76: 7
B77: 2017-07-19 | C77: J1707190028 | D77: 23341 | E77: Urban | F77: Third Party | G77: 1 | H77: 70 | I77: 0.0003653940514 | J77: 7
B78: 2017-07-19 | C78: J1707190029 | D78: 91012 | E78: High Density Rural | F78: Third Party | G78: 1 | H78: 10 | I78: 0.0002284356725 | J78: 7
B79: 2017-07-20 | C79: J1707200002 | D79: 97002 | E79: Urban | F79: Third Party | G79: 1 | H79: 132 | I79: 0.0006890287826 | J79: 7
B80: 2017-07-20 | C80: J1707200014 | D80: 53010 | E80: Low Density Rural | F80: Third Party | G80: 1 | H80: 10 | I80: 0.0002254893118 | J80: 7
B81: 2017-07-21 | C81: J1707210031 | D81: 30603 | E81: High Density Rural | F81: Third Party | G81: 1 | H81: 175 | I81: 0.003997624269 | J81: 7
B82: 2017-07-22 | C82: J1707220008 | D82: 35011 | E82: Low Density Rural | F82: Third Party | G82: 1 | H82: 146 | I82: 0.003292143952 | J82: 7
B83: 2017-07-22 | C83: J1707220016 | D83: 85006 | E83: Low Density Rural | F83: Third Party | G83: 1 | H83: 186 | I83: 0.0041941012 | J83: 7
B84: 2017-07-23 | C84: J1707230028 | D84: 54005 | E84: Low Density Rural | F84: Third Party | G84: 1 | H84: 91 | I84: 0.002051952737 | J84: 7
B85: 2017-07-23 | C85: J1707230029 | D85: 91002 | E85: Low Density Rural | F85: Third Party | G85: 1 | H85: 62 | I85: 0.001398033733 | J85: 7
B86: 2017-07-24 | C86: J1707240025 | D86: 82008 | E86: High Density Rural | F86: Third Party | G86: 1 | H86: 5 | I86: 0.0001142178363 | J86: 7
B87: 2017-07-24 | C87: J1707240030 | D87: 21087 | E87: Urban | F87: Third Party | G87: 1 | H87: 10 | I87: 5.21991502e-05 | J87: 7
B88: 2017-07-25 | C88: J1707250001 | D88: 18146 | E88: Urban | F88: Third Party | G88: 1 | H88: 15 | I88: 7.82987253e-05 | J88: 7
B89: 2017-07-25 | C89: J1707250016 | D89: 23343 | E89: High Density Commercial | F89: Third Party | G89: 1 | H89: 5 | I89: 0.001108524554 | J89: 7
B90: 2017-07-25 | C90: J1707250019 | D90: 17104 | E90: Urban | F90: Third Party | G90: 1 | H90: 5 | I90: 2.60995751e-05 | J90: 7
B91: 2017-07-25 | C91: J1707250034 | D91: 93002 | E91: Low Density Rural | F91: Third Party | G91: 1 | H91: 43 | I91: 0.0009696040408 | J91: 7
B92: 2017-07-26 | C92: J1707260037 | D92: 67082 | E92: Urban | F92: Third Party | G92: 1 | H92: 10 | I92: 5.21991502e-05 | J92: 7
B93: 2017-07-26 | C93: WASP0353034 | D93: 33271 | E93: High Density Rural | F93: Third Party | G93: 21 | H93: 63 | I93: 0.001439144737 | J93: 5
B94: 2017-07-26 | C94: WASP0353034 | D94: 33271 | E94: Low Density Rural | F94: Third Party | G94: 970 | H94: 2910 | I94: 0.06561738974 | J94: 5
B95: 2017-07-26 | C95: WASP0353034 | D95: 33271 | E95: Urban | F95: Third Party | G95: 481 | H95: 1443 | I95: 0.007532337374 | J95: 5
B96: 2017-07-26 | C96: WASP0353034 | D96: 33272 | E96: High Density Rural | F96: Third Party | G96: 829 | H96: 2487 | I96: 0.05681195175 | J96: 5
B97: 2017-07-26 | C97: WASP0353034 | D97: 33272 | E97: Low Density Rural | F97: Third Party | G97: 189 | H97: 567 | I97: 0.01278524398 | J97: 5
B98: 2017-07-26 | C98: WASP0353034 | D98: 33272 | E98: Urban | F98: Third Party | G98: 419 | H98: 1257 | I98: 0.00656143318 | J98: 5
B99: 2017-07-26 | C99: WASP0353034 | D99: 33273 | E99: Urban | F99: Third Party | G99: 1 | H99: 3 | I99: 1.565974506e-05 | J99: 5
B100: 2017-07-26 | C100: WASP0353034 | D100: 33274 | E100: High Density Rural | F100: Third Party | G100: 8 | H100: 24 | I100: 0.000548245614 | J100: 5
B101: 2017-07-26 | C101: WASP0353034 | D101: 33274 | E101: Urban | F101: Third Party | G101: 846 | H101: 2538 | I101: 0.01324814432 | J101: 5
B102: 2017-07-27 | C102: J1707270016 | D102: 62004 | E102: Urban | F102: Third Party | G102: 1 | H102: 26 | I102: 0.0001357177905 | J102: 7
B103: 2017-07-28 | C103: J1707280012 | D103: 40002 | E103: Low Density Rural | F103: Third Party | G103: 1 | H103: 46 | I103: 0.001037250834 | J103: 7
B104: 2017-07-28 | C104: J1707280014 | D104: 80003 | E104: High Density Rural | F104: Third Party | G104: 1 | H104: 76 | I104: 0.001736111111 | J104: 7
B105: 2017-07-28 | C105: J1707280022 | D105: 13045 | E105: Urban | F105: Third Party | G105: 1 | H105: 202 | I105: 0.001054422834 | J105: 7
B106: 2017-07-29 | C106: J1707290009 | D106: 31007 | E106: Low Density Rural | F106: Third Party | G106: 1 | H106: 163 | I106: 0.003675475782 | J106: 7
B107: 2017-07-30 | C107: J1707300013 | D107: 32379 | E107: Urban | F107: Third Party | G107: 1 | H107: 20 | I107: 0.0001043983004 | J107: 7
B108: 2017-07-30 | C108: J1707300021 | D108: 82002 | E108: Urban | F108: Third Party | G108: 1 | H108: 81 | I108: 0.0004228131166 | J108: 7
B109: 2017-07-31 | C109: J1707310023 | D109: 39571 | E109: Low Density Rural | F109: Third Party | G109: 1 | H109: 5 | I109: 0.0001127446559 | J109: 7
B110: 2017-07-31 | C110: J1707310035 | D110: 41517 | E110: Urban | F110: Third Party | G110: 1 | H110: 10 | I110: 5.21991502e-05 | J110: 7
B111: 2017-07-31 | C111: J1707310036 | D111: 30603 | E111: High Density Rural | F111: Third Party | G111: 1 | H111: 5 | I111: 0.0001142178363 | J111: 7
B112: 2017-08-01 | C112: J1708010021 | D112: 48192 | E112: Urban | F112: Third Party | G112: 1 | H112: 5 | I112: 2.60995751e-05 | J112: 7
B113: 2017-08-01 | C113: J1708010055 | D113: 20545 | E113: Urban | F113: Third Party | G113: 1 | H113: 87 | I113: 0.0004541326067 | J113: 7
B114: 2017-08-01 | C114: J1708010066 | D114: 41518 | E114: Urban | F114: Third Party | G114: 1 | H114: 72 | I114: 0.0003758338814 | J114: 7
B115: 2017-08-02 | C115: J1708020020 | D115: 41517 | E115: Urban | F115: Third Party | G115: 1 | H115: 143 | I115: 0.0007464478478 | J115: 7
B116: 2017-08-02 | C116: J1708020042 | D116: 61043 | E116: Urban | F116: Third Party | G116: 2 | H116: 200 | I116: 0.001043983004 | J116: 7
B117: 2017-08-03 | C117: J1708030010 | D117: 20554 | E117: Urban | F117: Third Party | G117: 1 | H117: 120 | I117: 0.0006263898024 | J117: 7
B118: 2017-08-03 | C118: J1708030012 | D118: 54005 | E118: Low Density Rural | F118: Third Party | G118: 1 | H118: 229 | I118: 0.00516370524 | J118: 7
B119: 2017-08-03 | C119: J1708030041 | D119: 22329 | E119: Urban | F119: Third Party | G119: 1 | H119: 5 | I119: 2.60995751e-05 | J119: 7
B120: 2017-08-04 | C120: J1708040011 | D120: 18131 | E120: Urban | F120: Third Party | G120: 1 | H120: 80 | I120: 0.0004175932016 | J120: 7
B121: 2017-08-04 | C121: J1708040025 | D121: 80005 | E121: Urban | F121: Third Party | G121: 1 | H121: 10 | I121: 5.21991502e-05 | J121: 7
B122: 2017-08-04 | C122: J1708040026 | D122: 85008 | E122: Urban | F122: Third Party | G122: 1 | H122: 373 | I122: 0.001947028302 | J122: 7
B123: 2017-08-04 | C123: J1708040030 | D123: 41514 | E123: High Density Rural | F123: Third Party | G123: 1 | H123: 5 | I123: 0.0001142178363 | J123: 7
B124: 2017-08-04 | C124: J1708040034 | D124: 40002 | E124: Low Density Rural | F124: Third Party | G124: 1 | H124: 16 | I124: 0.0003607828989 | J124: 7
B125: 2017-08-05 | C125: J1708050007 | D125: 29490 | E125: Urban | F125: Third Party | G125: 1 | H125: 10 | I125: 5.21991502e-05 | J125: 7
B126: 2017-08-05 | C126: J1708050012 | D126: 85006 | E126: High Density Rural | F126: Third Party | G126: 158 | H126: 3634 | I126: 0.08301352339 | J126: 7
B127: 2017-08-05 | C127: J1708050012 | D127: 85006 | E127: Low Density Rural | F127: Third Party | G127: 701 | H127: 31151 | I127: 0.7024217552 | J127: 7
B128: 2017-08-07 | C128: J1708070001 | D128: 56004 | E128: Low Density Rural | F128: Third Party | G128: 1 | H128: 10 | I128: 0.0002254893118 | J128: 7
B129: 2017-08-07 | C129: J1708070035 | D129: 53003 | E129: Urban | F129: Third Party | G129: 1 | H129: 176 | I129: 0.0009187050435 | J129: 7
B130: 2017-08-07 | C130: J1708070037 | D130: 20535 | E130: Urban | F130: Third Party | G130: 1 | H130: 30 | I130: 0.0001565974506 | J130: 7
B131: 2017-08-08 | C131: J1708080014 | D131: 17103 | E131: Urban | F131: Third Party | G131: 1 | H131: 126 | I131: 0.0006577092925 | J131: 7
B132: 2017-08-08 | C132: J1708080025 | D132: 55002 | E132: Low Density Rural | F132: Third Party | G132: 1 | H132: 7 | I132: 0.0001578425183 | J132: 7
B133: 2017-08-08 | C133: J1708080033 | D133: 35010 | E133: Urban | F133: Third Party | G133: 1 | H133: 58 | I133: 0.0003027550711 | J133: 7
B134: 2017-08-09 | C134: J1708090003 | D134: 30603 | E134: Urban | F134: Third Party | G134: 1 | H134: 10 | I134: 5.21991502e-05 | J134: 7
B135: 2017-08-09 | C135: J1708090017 | D135: 20553 | E135: Low Density Rural | F135: Third Party | G135: 1 | H135: 5 | I135: 0.0001127446559 | J135: 7
B136: 2017-08-09 | C136: J1708090026 | D136: 85002 | E136: Low Density Rural | F136: Third Party | G136: 4 | H136: 764 | I136: 0.01722738342 | J136: 7
B137: 2017-08-09 | C137: J1708090031 | D137: 45003 | E137: Low Density Rural | F137: Third Party | G137: 1 | H137: 193 | I137: 0.004351943718 | J137: 7
B138: 2017-08-10 | C138: J1708100012 | D138: 21088 | E138: Urban | F138: Third Party | G138: 1 | H138: 15 | I138: 7.82987253e-05 | J138: 7
B139: 2017-08-10 | C139: J1708100013 | D139: 20534 | E139: Urban | F139: Third Party | G139: 1 | H139: 131 | I139: 0.0006838088676 | J139: 7
B140: 2017-08-10 | C140: J1708100018 | D140: 91008 | E140: Urban | F140: Third Party | G140: 1 | H140: 101 | I140: 0.000527211417 | J140: 7
B141: 2017-08-10 | C141: J1708100031 | D141: 85006 | E141: Urban | F141: Third Party | G141: 1 | H141: 5 | I141: 2.60995751e-05 | J141: 7
B142: 2017-08-10 | C142: J1708100032 | D142: 23347 | E142: Urban | F142: Third Party | G142: 1 | H142: 109 | I142: 0.0005689707372 | J142: 7
B143: 2017-08-11 | C143: J1708110003 | D143: 55003 | E143: Low Density Rural | F143: Third Party | G143: 1 | H143: 7429.9833 | I143: 0.1675381821 | J143: 7
B144: 2017-08-11 | C144: J1708110010 | D144: 56004 | E144: Low Density Rural | F144: Third Party | G144: 1 | H144: 222 | I144: 0.005005862722 | J144: 7
B145: 2017-08-11 | C145: J1708110027 | D145: 39571 | E145: Low Density Rural | F145: Third Party | G145: 1 | H145: 154 | I145: 0.003472535402 | J145: 7
B146: 2017-08-11 | C146: J1708110043 | D146: 34251 | E146: High Density Rural | F146: Third Party | G146: 1 | H146: 5 | I146: 0.0001142178363 | J146: 7
B147: 2017-08-11 | C147: J1708110061 | D147: 66105 | E147: Urban | F147: Third Party | G147: 1 | H147: 100 | I147: 0.000521991502 | J147: 7
B148: 2017-08-11 | C148: J1708120276 | D148: 91006 | E148: Urban | F148: Third Party | G148: 1 | H148: 1227 | I148: 0.006404835729 | J148: 7
B149: 2017-08-12 | C149: J1708120069 | D149: 85004 | E149: High Density Rural | F149: Third Party | G149: 1 | H149: 10 | I149: 0.0002284356725 | J149: 7
B150: 2017-08-12 | C150: J1708120136 | D150: 91008 | E150: Urban | F150: Third Party | G150: 1 | H150: 10 | I150: 5.21991502e-05 | J150: 7
B151: 2017-08-12 | C151: J1708120158 | D151: 80005 | E151: Urban | F151: Third Party | G151: 1 | H151: 1534 | I151: 0.00800734964 | J151: 7
B152: 2017-08-12 | C152: J1708120172 | D152: 66101 | E152: Urban | F152: Third Party | G152: 1 | H152: 5 | I152: 2.60995751e-05 | J152: 7
B153: 2017-08-12 | C153: J1708120182 | D153: 57006 | E153: Low Density Rural | F153: Third Party | G153: 1 | H153: 655 | I153: 0.01476954992 | J153: 7
B154: 2017-08-12 | C154: J1708120214 | D154: 91006 | E154: Urban | F154: Third Party | G154: 1 | H154: 112 | I154: 0.0005846304822 | J154: 7
B155: 2017-08-12 | C155: J1708120228 | D155: 28223 | E155: Urban | F155: Third Party | G155: 1 | H155: 121 | I155: 0.0006316097174 | J155: 7
B156: 2017-08-12 | C156: J1708120235 | D156: 21088 | E156: Urban | F156: Third Party | G156: 1 | H156: 10 | I156: 5.21991502e-05 | J156: 7
B157: 2017-08-12 | C157: J1708120246 | D157: 91006 | E157: Urban | F157: Third Party | G157: 1 | H157: 16 | I157: 8.351864032e-05 | J157: 7
B158: 2017-08-12 | C158: J1708120263 | D158: 80008 | E158: Urban | F158: Third Party | G158: 1 | H158: 587 | I158: 0.003064090117 | J158: 7
B159: 2017-08-12 | C159: J1708120272 | D159: 91006 | E159: Urban | F159: Third Party | G159: 1 | H159: 95 | I159: 0.0004958919269 | J159: 7
B160: 2017-08-13 | C160: J1708120251 | D160: 91011 | E160: Urban | F160: Third Party | G160: 1 | H160: 10 | I160: 5.21991502e-05 | J160: 7
B161: 2017-08-13 | C161: J1708130014 | D161: 91012 | E161: High Density Rural | F161: Third Party | G161: 1 | H161: 197 | I161: 0.004500182749 | J161: 7
B162: 2017-08-13 | C162: J1708130015 | D162: 93002 | E162: Low Density Rural | F162: Third Party | G162: 1 | H162: 10 | I162: 0.0002254893118 | J162: 7
B163: 2017-08-13 | C163: J1708130056 | D163: 80006 | E163: High Density Rural | F163: Third Party | G163: 1 | H163: 10 | I163: 0.0002284356725 | J163: 7
B164: 2017-08-14 | C164: J1708140007 | D164: 85002 | E164: Low Density Rural | F164: Third Party | G164: 1 | H164: 5 | I164: 0.0001127446559 | J164: 7
B165: 2017-08-14 | C165: J1708140023 | D165: 80006 | E165: Urban | F165: Third Party | G165: 1 | H165: 87 | I165: 0.0004541326067 | J165: 7
B166: 2017-08-14 | C166: J1708140059 | D166: 62009 | E166: Urban | F166: Third Party | G166: 1 | H166: 10 | I166: 5.21991502e-05 | J166: 7
B167: 2017-08-14 | C167: J1708140062 | D167: 34262 | E167: Urban | F167: Third Party | G167: 9 | H167: 621 | I167: 0.003241567227 | J167: 7
B168: 2017-08-14 | C168: J1708140072 | D168: 85004 | E168: High Density Rural | F168: Third Party | G168: 1 | H168: 50 | I168: 0.001142178363 | J168: 7
B169: 2017-08-15 | C169: J1708150008 | D169: 55001 | E169: High Density Rural | F169: Third Party | G169: 1 | H169: 226 | I169: 0.005162646199 | J169: 7
B170: 2017-08-15 | C170: J1708150020 | D170: 31008 | E170: Low Density Rural | F170: Third Party | G170: 1 | H170: 187 | I170: 0.004216650131 | J170: 7
B171: 2017-08-15 | C171: J1708150024 | D171: 23342 | E171: Urban | F171: Third Party | G171: 1 | H171: 10 | I171: 5.21991502e-05 | J171: 7
B172: 2017-08-15 | C172: J1708150025 | D172: 41515 | E172: High Density Rural | F172: Third Party | G172: 1 | H172: 121 | I172: 0.002764071637 | J172: 7
B173: 2017-08-15 | C173: J1708150039 | D173: 61023 | E173: Low Density Rural | F173: Third Party | G173: 1 | H173: 8 | I173: 0.0001803914494 | J173: 7
B174: 2017-08-16 | C174: J1708160004 | D174: 65067 | E174: Low Density Rural | F174: Third Party | G174: 1 | H174: 505 | I174: 0.01138721025 | J174: 7
B175: 2017-08-16 | C175: J1708160012 | D175: 91002 | E175: High Density Rural | F175: Third Party | G175: 1 | H175: 90 | I175: 0.002055921053 | J175: 7
B176: 2017-08-16 | C176: J1708160016 | D176: 31007 | E176: High Density Rural | F176: Third Party | G176: 1 | H176: 139 | I176: 0.003175255848 | J176: 7
B177: 2017-08-16 | C177: J1708160043 | D177: 65067 | E177: Low Density Rural | F177: Third Party | G177: 1 | H177: 128 | I177: 0.002886263191 | J177: 7
B178: 2017-08-16 | C178: J1708160056 | D178: 94002 | E178: High Density Rural | F178: Third Party | G178: 1 | H178: 10 | I178: 0.0002284356725 | J178: 7
B179: 2017-08-17 | C179: J1708170006 | D179: 61041 | E179: Urban | F179: Third Party | G179: 1 | H179: 91 | I179: 0.0004750122668 | J179: 7
B180: 2017-08-17 | C180: J1708170056 | D180: 34256 | E180: Urban | F180: Third Party | G180: 1 | H180: 29 | I180: 0.0001513775356 | J180: 7
B181: 2017-08-17 | C181: J1708170058 | D181: 67084 | E181: High Density Rural | F181: Third Party | G181: 1 | H181: 136 | I181: 0.003106725146 | J181: 7
B182: 2017-08-18 | C182: J1708180022 | D182: 91004 | E182: High Density Rural | F182: Third Party | G182: 1 | H182: 5 | I182: 0.0001142178363 | J182: 7
B183: 2017-08-18 | C183: J1708180029 | D183: 28221 | E183: Urban | F183: Third Party | G183: 1 | H183: 125 | I183: 0.0006524893775 | J183: 7
B184: 2017-08-19 | C184: J1708190013 | D184: 99981 | E184: High Density Rural | F184: Third Party | G184: 1 | H184: 70 | I184: 0.001599049708 | J184: 7
B185: 2017-08-21 | C185: J1708210035 | D185: 57004 | E185: Low Density Rural | F185: Third Party | G185: 30 | H185: 4440 | I185: 0.1001172544 | J185: 7
B186: 2017-08-22 | C186: J1708220005 | D186: 34264 | E186: High Density Rural | F186: Third Party | G186: 1 | H186: 10 | I186: 0.0002284356725 | J186: 7
B187: 2017-08-22 | C187: J1708220033 | D187: 56003 | E187: Low Density Rural | F187: Third Party | G187: 1 | H187: 10 | I187: 0.0002254893118 | J187: 7
B188: 2017-08-23 | C188: J1708230022 | D188: 91002 | E188: High Density Rural | F188: Third Party | G188: 1 | H188: 10 | I188: 0.0002284356725 | J188: 7
B189: 2017-08-23 | C189: J1708230032 | D189: 53009 | E189: Urban | F189: Third Party | G189: 1 | H189: 10 | I189: 5.21991502e-05 | J189: 7
B190: 2017-08-24 | C190: J1708240021 | D190: 54005 | E190: High Density Rural | F190: Third Party | G190: 11 | H190: 660 | I190: 0.01507675439 | J190: 7
B191: 2017-08-25 | C191: J1708250000 | D191: 34263 | E191: Urban | F191: Third Party | G191: 1 | H191: 60 | I191: 0.0003131949012 | J191: 7
B192: 2017-08-25 | C192: J1708250005 | D192: 62010 | E192: Urban | F192: Third Party | G192: 1 | H192: 10 | I192: 5.21991502e-05 | J192: 7
B193: 2017-08-25 | C193: J1708250020 | D193: 91001 | E193: High Density Rural | F193: Third Party | G193: 1 | H193: 109 | I193: 0.00248994883 | J193: 7
B194: 2017-08-25 | C194: J1708250027 | D194: 20547 | E194: Urban | F194: Third Party | G194: 1 | H194: 43 | I194: 0.0002244563458 | J194: 7
B195: 2017-08-25 | C195: J1708250046 | D195: 82006 | E195: Urban | F195: Third Party | G195: 1 | H195: 5 | I195: 2.60995751e-05 | J195: 7
B196: 2017-08-26 | C196: J1708260004 | D196: 43507 | E196: Low Density Rural | F196: Third Party | G196: 1 | H196: 214 | I196: 0.004825471273 | J196: 7
B197: 2017-08-26 | C197: J1708260007 | D197: 30605 | E197: High Density Rural | F197: Third Party | G197: 1 | H197: 5 | I197: 0.0001142178363 | J197: 7
B198: 2017-08-26 | C198: J1708260008 | D198: 91010 | E198: Urban | F198: Third Party | G198: 1 | H198: 10 | I198: 5.21991502e-05 | J198: 7
B199: 2017-08-26 | C199: J1708260009 | D199: 61023 | E199: Low Density Rural | F199: Third Party | G199: 15 | H199: 1125 | I199: 0.02536754758 | J199: 7
B200: 2017-08-26 | C200: J1708260010 | D200: 33272 | E200: High Density Rural | F200: Third Party | G200: 1 | H200: 199 | I200: 0.004545869883 | J200: 7
B201: 2017-08-26 | C201: J1708260022 | D201: 82008 | E201: Urban | F201: Third Party | G201: 1 | H201: 108 | I201: 0.0005637508221 | J201: 7
B202: 2017-08-27 | C202: J1708270022 | D202: 91011 | E202: Low Density Rural | F202: Third Party | G202: 1 | H202: 135 | I202: 0.003044105709 | J202: 7
B203: 2017-08-27 | C203: J1708270024 | D203: 29483 | E203: Urban | F203: Third Party | G203: 1 | H203: 5 | I203: 2.60995751e-05 | J203: 7
... 795 more rows

Sheet 6.9 STPIS - GSL
B1: =IF(dms_DataQuality="backcast",INDEX(dms_Worksheet_List,MATCH(dms_Model,dms_Model_List))&" BACKCAST",INDEX(dms_Worksheet_List,MATCH(dms_Model,dms_Model_List))) -> ANNUAL REPORTING STATEMENT
B2: =INDEX(dms_TradingNameFull_List,MATCH(dms_TradingName,dms_TradingName_List)) -> TasNetworks (D)
B3: =CONCATENATE("Annual Reporting RIN Response ",IF(SUM(dms_SingleYear_Model)>0,CONCATENATE(CRY),CONCATENATE(FRCP_y1," to ",dms_MultiYear_FinalYear_Result))) -> Annual Reporting RIN Response 2017-18
B4: 6.9 STPIS - GUARANTEED SERVICE LEVEL
B6: Did the AER's GSL Scheme apply at any time during the regulatory year? | D6: No | E6: **IMPORTANT Please ensure this flag is set. Conditional formatting on this worksheet is dependant on this response.
B8: Instructions: Table 6.9.1 collects information relating to jurisdiction GSL scheme parameters. These parameters can be found in the jurisdictonal scheme relevant to NSP. Please identify each parameter in the relevant sub-tables and provide the volume and value of GSL payments. For GSL parameters that do not fit within the provided sub-tables provided, please enter a heading and identify the relevant parameter(s).
B10: 6.9.1 - GUARANTEED SERVICE LEVELS - JURISDICTIONAL GSL SCHEME
D11: =CRY -> 2017-18 | E11: =CRY -> 2017-18
D12: Volume | E12: Value of GSL payments
D13: 0's | E13: $0's
B14: Appointments
B15: There is no GSL scheme in the TasNetworks Customer Charter for Appointments | D15: 0 | E15: 0
B19: To enter further GSL parameters relating to appointments - please copy a row from above and "insert copied cells" above this row.
B21: Connections
B22: Charter payments for not meeting connection expectations - residential customers | D22: 134 | E22: 14400
B27: To enter further GSL parameters relating to connections - please copy a row from above and "insert copied cells" above this row.
B29: Reliability of supply
B30: GSL payments for not meeting reliability of supply expectations | D30: 30845 | E30: 3210800
B41: To enter further GSL parameters relating to reliability of supply - please copy a row from above and "insert copied cells" above this row.
B43: Street lights
B44: Charter payments for not meeting public lighting expectations | D44: 11 | E44: 330
B51: To enter further GSL parameters relating to street lights - please copy a row from above and "insert copied cells" above this row.
B53: Planned interruptions
B54: Charter payments for not meeting planned interruption expectations | D54: 116 | E54: 4040
B57: To enter further GSL parameters relating to planned interruptions - please copy a row from above and "insert copied cells" above this row.
B59: <NSP defined parameter category>
B63: To enter further GSL parameters - please identify the parameter and if insufficient rows please copy a row from above and "insert copied cells" above this row.
B65: <NSP defined parameter category>
B69: To enter further GSL parameters - please identify the parameter and if insufficient rows please copy a row from above and "insert copied cells" above this row.
B71: <NSP defined parameter category>
B75: To enter further GSL parameters - please identify the parameter and if insufficient rows please copy a row from above and "insert copied cells" above this row.
B77: <NSP defined parameter category>
B81: To enter further GSL parameters - please identify the parameter and if insufficient rows please copy a row from above and "insert copied cells" above this row.
B84: 6.9.2 - GUARANTEED SERVICE LEVELS - AER GSL SCHEME
B86: Complete Table 6.9.2 if the AER's GSL scheme applied at any time during the regulatory year. Do not complete Table 6.9.2 if the AER's GSL scheme did not apply during the regulatory year.
D88: =CRY -> 2017-18 | E88: =CRY -> 2017-18
D89: Volume | E89: Value of GSL payments
D90: 0's | E90: $0's
B91: New connections
B92: Number of connections made
B93: Number of connections not made on or before the day agreed
B94: Connections - GSL payments – 1-6 day delay
B95: Connections - GSL payments – 7+ day delay
B96: Reliability of supply
B97: Frequency of interruptions – CBD feeders – 9 interruptions
B98: Frequency of interruptions – Urban feeders – 9 interruptions
B99: Frequency of interruptions – Rural (short and long) feeders – 15 interruptions
B100: Interruptions – CBD feeders – 12 hours duration
B101: Interruptions – Urban feeders – 12 hours duration
B102: Interruptions – Rural (short and long) feeders – 18 hours duration
B103: Total duration of interruptions Level 1 – 20 hours
B104: Total duration of interruptions Level 2 – 30 hours
B105: Total duration of interruptions Level 3 – 60 hours
B106: Street lights
B107: Streetlight repair 5 days – GSL payments
B108: Planned interruptions
B109: Notice of planned interruptions – 4 business days notice not given
B110: Total | E110: =SUM(E109,E107,E97:E105,E94:E95) -> 0

Sheet 7.8 Avoided TUOS Payments
B1: =IF(dms_DataQuality="backcast",INDEX(dms_Worksheet_List,MATCH(dms_Model,dms_Model_List))&" BACKCAST",INDEX(dms_Worksheet_List,MATCH(dms_Model,dms_Model_List))) -> ANNUAL REPORTING STATEMENT
B2: =INDEX(dms_TradingNameFull_List,MATCH(dms_TradingName,dms_TradingName_List)) -> TasNetworks (D)
B3: =CONCATENATE("Annual Reporting RIN Response ",IF(SUM(dms_SingleYear_Model)>0,CONCATENATE(CRY),CONCATENATE(FRCP_y1," to ",dms_MultiYear_FinalYear_Result))) -> Annual Reporting RIN Response 2017-18
B4: 7.8 - AVOIDED TUOS PAYMENTS
B6: 7.8.1 - AVOIDED TUOS PAYMENTS
C7: Avoided TUOS Payment
C8: $0's, nominal
B9: Embedded generators | C9: 114325
B10: Market network service providers | C10: 0
B11: Other | C11: 0

Sheet 7.10 Juris Scheme
B1: =IF(dms_DataQuality="backcast",INDEX(dms_Worksheet_List,MATCH(dms_Model,dms_Model_List))&" BACKCAST",INDEX(dms_Worksheet_List,MATCH(dms_Model,dms_Model_List))) -> ANNUAL REPORTING STATEMENT
B2: =INDEX(dms_TradingNameFull_List,MATCH(dms_TradingName,dms_TradingName_List)) -> TasNetworks (D)
B3: =CONCATENATE("Annual Reporting RIN Response ",IF(SUM(dms_SingleYear_Model)>0,CONCATENATE(CRY),CONCATENATE(FRCP_y1," to ",dms_MultiYear_FinalYear_Result))) -> Annual Reporting RIN Response 2017-18
B4: 7.10 - JURISDICTIONAL SCHEMES
B6: Instructions Business must list each relevant jurisdictional scheme individually and report information for each scheme separately from other schemes.
B8: 7.10.1 - JURISDICTIONAL SCHEME PAYMENTS
B9: Jurisdictional Scheme Name | C9: Description | D9: Date DNSP Became Subject to Scheme | E9: Description of Cost Recovery Method | F9: Total Scheme Payments
F10: $0's, nominal
E17: Total | F17: =SUM(F11:F16) -> 0

Sheet 7.11 DMIS-DMIA
B1: =IF(dms_DataQuality="backcast",INDEX(dms_Worksheet_List,MATCH(dms_Model,dms_Model_List))&" BACKCAST",INDEX(dms_Worksheet_List,MATCH(dms_Model,dms_Model_List))) -> ANNUAL REPORTING STATEMENT
B2: =INDEX(dms_TradingNameFull_List,MATCH(dms_TradingName,dms_TradingName_List)) -> TasNetworks (D)
B3: =CONCATENATE("Annual Reporting RIN Response ",IF(SUM(dms_SingleYear_Model)>0,CONCATENATE(CRY),CONCATENATE(FRCP_y1," to ",dms_MultiYear_FinalYear_Result))) -> Annual Reporting RIN Response 2017-18
B4: 7.11 - DEMAND MANAGEMENT INCENTIVE SCHEME
B6: 7.11.1 - DMIA - PROJECTS SUBMITTED FOR APPROVAL
C7: =CONCATENATE("Total amount of the DMIA spent in ", CRY) -> Total amount of the DMIA spent in 2017-18
C8: Operating expenditure | D8: Capital expenditure | E8: Total
B9: Name of project | C9: $0's, nominal
B10: EmPOWERing you trial | C10: 468457.15 | E10: =SUM(C10:D10) -> 468457.15
B11: CONSORT Bruny Island Battery Trial | C11: 558725.65 | E11: 558725.65
B12: Demand management processes | C12: 32231.46 | E12: 32231.46
E13: 0
E14: 0
E15: 0
E16: 0
E17: 0
E18: 0
E19: 0
E20: 0
E21: 0
E22: 0
E23: 0
E24: 0
E25: 0
E26: 0
E27: 0
E28: 0
E29: 0
E30: 0
E31: 0
E32: 0
E33: 0
E34: 0
E35: 0
E36: 0
E37: 0
E38: 0
E39: 0
E40: 0
E41: 0
E42: 0
E43: 0
E44: 0
B45: To enter additional projects - please copy an existing row and insert above this row.
B46: Total | C46: =SUM(C10:C45) -> 1059414.26 | D46: =SUM(D10:D45) -> 0 | E46: =SUM(E10:E45) -> 1059414.26

Sheet 7.12 Safety and Bushfire
B1: =IF(dms_DataQuality="backcast",INDEX(dms_Worksheet_List,MATCH(dms_Model,dms_Model_List))&" BACKCAST",INDEX(dms_Worksheet_List,MATCH(dms_Model,dms_Model_List))) -> ANNUAL REPORTING STATEMENT
B2: =INDEX(dms_TradingNameFull_List,MATCH(dms_TradingName,dms_TradingName_List)) -> TasNetworks (D)
B3: =CONCATENATE("Annual Reporting RIN Response ",IF(SUM(dms_SingleYear_Model)>0,CONCATENATE(CRY),CONCATENATE(FRCP_y1," to ",dms_MultiYear_FinalYear_Result))) -> Annual Reporting RIN Response 2017-18
B4: 7.12 SAFETY AND BUSHFIRE RELATED EXPENDITURE
B6: These templates collect information from Victorian businesses only. Bushfire and safety related expenditure information is used by the AER to monitor the expenditures throughout the regulatory control period.
B8: CPI applied to convert expected expenditure in real $ to nominal based on lagged September CPI index
B10: Instructions
B11: For "Exclusive of Margins & Overheads" reported expenditure is to EXCLUDE any overheads, profit margins or management fees paid directly or indirectly to related party contractors (not including actual incurred expense of the related party contractor) for the reporting period.
B12: For "Value of Margins & Overheads" reported expenditure is to COMPRISE ONLY the sum of overheads, profit margins or management fees paid directly or indirectly to related party contractors (not including actual incurred expenses of the related party contractor) for the reporting period.
B14: Australian Distribution Co. is to specify each activity in this table in accordance with the definition in Appendix F of the RIN.
B15: All activities must be reported but the Reason for Difference is only required if there is a 10 per cent difference between the expected value and the actual value. Use median unit costs. Where unit costs are not recorded at the asset category level - provide the best estimates of the unit cost using the cost allocation method identified in this table. (As a transitional measure, the unit cost may be based on a statistically significant annual sample of actual work orders at a 5% or better confidence interval.) Provide basis of allocation where applicable.
B17: 7.12.1 - SAFETY AND BUSHFIRE RELATED ASSET GROUP DEFINITIONS AND ALLOCATION BASIS
B18: Activity | C18: Definitions | G18: Basis for allocation of cost to activity
B19: Planned non-preferred services replacements
B20: Planned replacement of non-preferred services due to height
B21: Removal of public lighting switchwire
B22: Replacement of existing SWER lines with 22kV overhead bare conductor
B23: Installation of GFN and associated equipment at zone substations
B24: Replacement of crossarms/insulator sets – pole top fire mitigation
B25: Replacement of crossarms – based on age and condition
B26: Replacement of poles – based on age and condition
B27: Stake poles – based on age and condition
B28: Replacement of undersized poles
B29: Stake undersized poles
B30: Replacement of overhead conductor – mainly steel
B31: Service line clearance – overhead services requiring relocation
B32: Service line clearance – overhead services requiring undergrounding
B33: Replacement of 22kV distribution feeders with ABC/underground cabling
B34: Replacement of SWER with covered carbon core conductor or equivalent
B35: Replacement of SWER with ABC
B36: Replacement of SWER with underground
B37: Replacement of surge diverters (neptune configuration)
B38: Replacement of surge diverters (single phase or three phase)
B46: To enter further activities - please copy row from above and "insert copied cells" into a row above this row.
B49: 7.12.2 - BUSHFIRE RELATED
B51: 7.12.2.1 - NUMBER OF ACTIVITIES
B52: Activity | C52: Units | D52: Number of Activities
B53: Planned non-preferred services replacements | C53: number of services
B54: Planned replacement of non-preferred services due to height | C54: number of services
B55: Removal of public lighting switchwire | C55: number of spans removed
B56: Replacement of existing SWER lines with 22kV overhead bare conductor | C56: kms of SWER
B57: Installation of GFN and associated equipment at zone substations | C57: number of zone substations
B58: Replacement of crossarms/insulator sets – pole top fire mitigation | C58: number of crossarms/sets
B59: Replacement of crossarms – based on age and condition | C59: number of crossarms
B60: Replacement of poles – based on age and condition | C60: number of poles
B61: Stake poles – based on age and condition | C61: number of poles
B62: Replacement of undersized poles | C62: number of poles
B63: Stake undersized poles | C63: number of poles
B64: Replacement of overhead conductor – mainly steel | C64: kms
B65: Service line clearance – overhead services requiring relocation | C65: number of services
B66: Service line clearance – overhead services requiring undergrounding | C66: number of services
B67: Replacement of 22kV distribution feeders with ABC/underground cabling | C67: number of feeders
B68: Replacement of SWER with covered carbon core conductor or equivalent | C68: kms
B69: Replacement of SWER with ABC | C69: kms
B70: Replacement of SWER with underground | C70: kms
B71: Replacement of surge diverters (neptune configuration) | C71: number of units
B72: Replacement of surge diverters (single phase or three phase) | C72: number of units
B73: =IF(ISBLANK(B39),"",B39) -> 
B80: To enter further activities - please copy row from above and "insert copied cells" into a row above this row.
B83: 7.12.2.2 - EXPENDITURE
B84: Activity | C84: Units | D84: Exclusive of Margins & Overheads | E84: Value of Margins & Overheads
D85: Actual Expenditure
D86: $0's, Nominal
B87: Planned non-preferred services replacements | C87: number of services
B88: Planned replacement of non-preferred services due to height | C88: number of services
B89: Removal of public lighting switchwire | C89: number of spans removed
B90: Replacement of existing SWER lines with 22kV overhead bare conductor | C90: kms of SWER
B91: Installation of GFN and associated equipment at zone substations | C91: number of zone substations
B92: Replacement of crossarms/insulator sets – pole top fire mitigation | C92: number of crossarms/sets
B93: Replacement of crossarms – based on age and condition | C93: number of crossarms
B94: Replacement of poles – based on age and condition | C94: number of poles
B95: Stake poles – based on age and condition | C95: number of poles
B96: Replacement of undersized poles | C96: number of poles
B97: Stake undersized poles | C97: number of poles
B98: Replacement of overhead conductor – mainly steel | C98: kms
B99: Service line clearance – overhead services requiring relocation | C99: number of services
B100: Service line clearance – overhead services requiring undergrounding | C100: number of services
B101: Replacement of 22kV distribution feeders with ABC/underground cabling | C101: number of feeders
B102: Replacement of SWER with covered carbon core conductor or equivalent | C102: kms
B103: Replacement of SWER with ABC | C103: kms
B104: Replacement of SWER with underground | C104: kms
B105: Replacement of surge diverters (neptune configuration) | C105: number of units
B106: Replacement of surge diverters (single phase or three phase) | C106: number of units
B107: =IF(ISBLANK(B39),"",B39) ->  | C107: =IF(ISBLANK(C73),"",C73) -> 
B114: To enter further activities - please copy row from above and "insert copied cells" into a row above this row.
B117: 7.12.2.3 - UNIT COSTS
B118: Activity | D118: Actual
D119: $0's, Per Unit
B120: Planned non-preferred services replacements
B121: Planned replacement of non-preferred services due to height
B122: Removal of public lighting switchwire
B123: Replacement of existing SWER lines with 22kV overhead bare conductor
B124: Installation of GFN and associated equipment at zone substations
B125: Replacement of crossarms/insulator sets – pole top fire mitigation
B126: Replacement of crossarms – based on age and condition
B127: Replacement of poles – based on age and condition
B128: Stake poles – based on age and condition
B129: Replacement of undersized poles
B130: Stake undersized poles
B131: Replacement of overhead conductor – mainly steel
B132: Service line clearance – overhead services requiring relocation
B133: Service line clearance – overhead services requiring undergrounding
B134: Replacement of 22kV distribution feeders with ABC/underground cabling
B135: Replacement of SWER with covered carbon core conductor or equivalent
B136: Replacement of SWER with ABC
B137: Replacement of SWER with underground
B138: Replacement of surge diverters (neptune configuration)
B139: Replacement of surge diverters (single phase or three phase)
B140: =IF(ISBLANK(B39),"",B39) -> 
B147: To enter further activities - please copy row from above and "insert copied cells" into a row above this row.
B150: 7.12.2.4 - CONTINGENT PROJECT APPLICATIONS - VOLUMES APPROVED
B151: Activity | C151: Units | D151: Volume approved under contingent project applications | E151: Actual volumes | F151: Difference
F152: =E152-D152 -> 0
F153: 0
F154: 0
F155: 0
F156: 0
F157: 0
F158: 0
F159: 0
B160: To enter further activities - please copy row from above and "insert copied cells" into a row above this row.
B162: 7.12.2.5 - CONTINGENT PROJECT APPLICATIONS - EXPENDITURE APPROVED
B163: Activity | C163: Exclusive of Margins & Overheads | D163: Value of Margins & Overheads
C164: Actual Expenditure
C165: $0's, Nominal
B166: =IF(ISBLANK(B152),"",B152) -> 
B167: =IF(ISBLANK(B153),"",B153) -> 
B174: To enter further activities - please copy row from above and "insert copied cells" into a row above this row.
B178: 7.12.3 - SAFETY RELATED
B180: 7.12.3.1 - NUMBER OF ACTIVITIES
B181: Activity | C181: Units | D181: Number of Activities
B182: Planned non-preferred services replacements | C182: number of services
B183: Planned replacement of non-preferred services due to height | C183: number of services
B184: Removal of public lighting switchwire | C184: number of spans removed
B185: Replacement of existing SWER lines with 22kV overhead bare conductor | C185: kms of SWER
B186: Installation of GFN and associated equipment at zone substations | C186: number of zone substations
B187: Replacement of crossarms/insulator sets – pole top fire mitigation | C187: number of crossarms/sets
B188: Replacement of crossarms – based on age and condition | C188: number of crossarms
B189: Replacement of poles – based on age and condition | C189: number of poles
B190: Stake poles – based on age and condition | C190: number of poles
B191: Replacement of undersized poles | C191: number of poles
B192: Stake undersized poles | C192: number of poles
B193: Replacement of overhead conductor – mainly steel | C193: kms
B194: Service line clearance – overhead services requiring relocation | C194: number of services
B195: Service line clearance – overhead services requiring undergrounding | C195: number of services
B196: Replacement of 22kV distribution feeders with ABC/underground cabling | C196: number of feeders
B197: Replacement of SWER with covered carbon core conductor or equivalent | C197: kms
B198: Replacement of SWER with ABC | C198: kms
B199: Replacement of SWER with underground | C199: kms
B200: Replacement of surge diverters (neptune configuration) | C200: number of units
B201: Replacement of surge diverters (single phase or three phase) | C201: number of units
B202: =IF(ISBLANK(B39),"",B39) ->  | C202: =IF(ISBLANK(C73),"",C73) -> 
B209: To enter further activities - please copy row from above and "insert copied cells" into a row above this row.
B212: 7.12.3.2 - EXPENDITURE
B213: Activity | C213: Units | D213: Exclusive of Margins & Overheads | E213: Value of Margins & Overheads
D214: Actual Expenditure
D215: $0's, Nominal
B216: Planned non-preferred services replacements | C216: number of services
B217: Planned replacement of non-preferred services due to height | C217: number of services
B218: Removal of public lighting switchwire | C218: number of spans removed
B219: Replacement of existing SWER lines with 22kV overhead bare conductor | C219: kms of SWER
B220: Installation of GFN and associated equipment at zone substations | C220: number of zone substations
B221: Replacement of crossarms/insulator sets – pole top fire mitigation | C221: number of crossarms/sets
B222: Replacement of crossarms – based on age and condition | C222: number of crossarms
B223: Replacement of poles – based on age and condition | C223: number of poles
B224: Stake poles – based on age and condition | C224: number of poles
B225: Replacement of undersized poles | C225: number of poles
B226: Stake undersized poles | C226: number of poles
B227: Replacement of overhead conductor – mainly steel | C227: kms
B228: Service line clearance – overhead services requiring relocation | C228: number of services
B229: Service line clearance – overhead services requiring undergrounding | C229: number of services
B230: Replacement of 22kV distribution feeders with ABC/underground cabling | C230: number of feeders
B231: Replacement of SWER with covered carbon core conductor or equivalent | C231: kms
B232: Replacement of SWER with ABC | C232: kms
B233: Replacement of SWER with underground | C233: kms
B234: Replacement of surge diverters (neptune configuration) | C234: number of units
B235: Replacement of surge diverters (single phase or three phase) | C235: number of units
B236: =IF(ISBLANK(B39),"",B39) ->  | C236: =IF(ISBLANK(C73),"",C73) -> 
B243: To enter further activities - please copy row from above and "insert copied cells" into a row above this row.
B246: 7.12.3.3 - UNIT COSTS
B247: Activity | C247: Units | D247: Actual
D248: $0's, Per Unit
B249: Planned non-preferred services replacements | C249: number of services
B250: Planned replacement of non-preferred services due to height | C250: number of services
B251: Removal of public lighting switchwire | C251: number of spans removed
B252: Replacement of existing SWER lines with 22kV overhead bare conductor | C252: kms of SWER
B253: Installation of GFN and associated equipment at zone substations | C253: number of zone substations
B254: Replacement of crossarms/insulator sets – pole top fire mitigation | C254: number of crossarms/sets
B255: Replacement of crossarms – based on age and condition | C255: number of crossarms
B256: Replacement of poles – based on age and condition | C256: number of poles
B257: Stake poles – based on age and condition | C257: number of poles
B258: Replacement of undersized poles | C258: number of poles
B259: Stake undersized poles | C259: number of poles
B260: Replacement of overhead conductor – mainly steel | C260: kms
B261: Service line clearance – overhead services requiring relocation | C261: number of services
B262: Service line clearance – overhead services requiring undergrounding | C262: number of services
B263: Replacement of 22kV distribution feeders with ABC/underground cabling | C263: number of feeders
B264: Replacement of SWER with covered carbon core conductor or equivalent | C264: kms
B265: Replacement of SWER with ABC | C265: kms
B266: Replacement of SWER with underground | C266: kms
... 64 more rows

Sheet 7.13 TARC
B1: =(LOOKUP(dms_Model,dms_Model_List,dms_Worksheet_List)) -> ANNUAL REPORTING STATEMENT
B2: =dms_TradingName -> TasNetworks (D)
B3: =CONCATENATE("Annual Reporting RIN Response ",CRY) -> Annual Reporting RIN Response 2017-18
B4: 7.13 - TARC
B7: 7.13.1 - TOTAL ANNUAL RETAILER CHARGES
C8: $0's
B9: TARC | C9: 361067036.3

Sheet 8.1 Income
B1: =IF(dms_DataQuality="backcast",INDEX(dms_Worksheet_List,MATCH(dms_Model,dms_Model_List))&" BACKCAST",INDEX(dms_Worksheet_List,MATCH(dms_Model,dms_Model_List))) -> ANNUAL REPORTING STATEMENT
B2: =INDEX(dms_TradingNameFull_List,MATCH(dms_TradingName,dms_TradingName_List)) -> TasNetworks (D)
B3: =CONCATENATE("Annual Reporting RIN Response ",IF(SUM(dms_SingleYear_Model)>0,CONCATENATE(CRY),CONCATENATE(FRCP_y1," to ",dms_MultiYear_FinalYear_Result))) -> Annual Reporting RIN Response 2017-18
B4: 8.1 - INCOME
B6: 8.1.1 - INCOME STATEMENT
C7: Audited Statutory Accounts | D7: Adjustments | E7: Distribution business | F7: Standard Control Services | G7: Alternative Control Services | L7: Negotiated Services
G8: Public Lighting | I8: Other
G9: =IF(dms_Jurisdiction="Vic","Energy efficient","") ->  | H9: =IF(dms_Jurisdiction="Vic","Non-energy efficient","") ->  | I9: Connection services | J9: Metering services | K9: Ancillary network services
C10: $0's, nominal
B11: 8.1.1.1 - REVENUE
B12: Distribution revenue | C12: 260516546 | D12: 6400151.92 | E12: 266916697.5 | F12: 242840398.2 | H12: 5644322.03 | J12: 12446655.94 | K12: 5985321.28
B13: Cross boundary revenue | C13: 0 | E13: 0
B14: Contributions | C14: 14371635.75 | D14: -1846732.7 | E14: 12524903.05 | F14: 9496255.57 | K14: 3028647.48
B15: Interest income | C15: 42736.82 | D15: -42736.82 | E15: 0
B16: Jurisdictional scheme amounts | C16: 0 | E16: 0
B17: Profit from sale of fixed assets | C17: 2968845.14 | D17: -756209.16 | E17: 2212635.98 | H17: 2212635.98
B18: TUOS revenue | C18: 95748692.98 | D18: 0 | E18: 95748692.98 | F18: 95748692.98
B19: Pass through revenue (F-factor) | E19: 0
B20: Other Revenue | C20: 215151795.9 | D20: -215151795.9 | E20: 0
B21: Total revenue | C21: =SUM(C12:C20) -> 588800252.6 | D21: -211397322.7 | E21: 377402929.5 | F21: 348085346.8 | G21: 0 | H21: 7856958.01 | I21: 0 | J21: 12446655.94 | K21: 9013968.76 | L21: 0
B23: 8.1.1.2 - EXPENDITURE
B24: TUOS expenditure | C24: 95108850.71 | D24: 0 | E24: 95108850.71 | F24: 95108850.71
B25: Avoided TUOS expenditure | C25: 71388.93 | D25: 42936.79 | E25: 114325.72 | F25: 114325.72
B26: Cross boundary expenditure | C26: 0 | E26: 0
B27: Depreciation | C27: 155562000 | D27: -70560738.6 | E27: 85001261.4 | F27: 77495377.55 | H27: 1396278.828 | J27: 6109605.019
B28: Finance charges | C28: 83550065.33 | D28: -83550065.33 | E28: 0
B29: Impairment losses | C29: 2122479.23 | D29: 0 | E29: 2122479.23 | H29: 2122479.23
B30: Jurisdictional scheme amounts | C30: 0 | E30: 0
B31: Loss from sale of fixed assets | E31: 0
B32: Maintenance expenditure | C32: 79188048.13 | E32: 79188048.13 | F32: 61880440.76 | H32: 1967517.572 | J32: 6566042.844 | K32: 8773130.481 | L32: 916.4660053
B33: Operating expenditure excluding maintenance expenditure | C33: 28654131.49 | E33: 28654131.49 | F33: 24535906.17 | H33: 701369.8337 | J33: 1936900.715 | K33: 1479236.129 | L33: 718.6372316
B34: Other | C34: 59929792.63 | D34: -59929792.63 | E34: 0
B35: Total expenditure | C35: =SUM(dms_080101_02_audited_Values) -> 504186756.4 | D35: =SUM(D24:D34) -> -213997659.8 | E35: =SUM(dms_080101_02_dnsp_Values) -> 290189096.7 | F35: =SUM(dms_080101_02_SCS_Values) -> 259134900.9 | G35: =SUM(G24:G34) -> 0 | H35: =SUM(H24:H34) -> 6187645.464 | I35: =SUM(dms_080101_02_connection_Values) -> 0 | J35: =SUM(dms_080101_02_metering_Values) -> 14612548.58 | K35: =SUM(dms_080101_02_ancillary_Values) -> 10252366.61 | L35: =SUM(dms_080101_02_negotiated_Values) -> 1635.103237
B37: 8.1.1.3 - PROFIT
B38: Profit before tax (PBT) | C38: =C21-SUM(C24:C34) -> 84613496.14 | D38: 2600337.079 | E38: 87213832.8 | F38: 88950445.85 | G38: 0 | H38: 1669312.546 | I38: 0 | J38: -2165892.639 | K38: -1238397.851 | L38: -1635.103237
B39: Income tax expenses (/ benefit) | C39: 25383999.54 | D39: -25383999.54 | E39: 0
B40: Profit after tax | C40: =C38-C39 -> 59229496.6 | D40: 27984336.62 | E40: 87213832.8 | F40: 88950445.85 | G40: 0 | H40: 1669312.546 | I40: 0 | J40: -2165892.639 | K40: -1238397.851 | L40: =L38-L39 -> -1635.103237

Sheet 8.2 Capex
B1: =IF(dms_DataQuality="backcast",INDEX(dms_Worksheet_List,MATCH(dms_Model,dms_Model_List))&" BACKCAST",INDEX(dms_Worksheet_List,MATCH(dms_Model,dms_Model_List))) -> ANNUAL REPORTING STATEMENT
B2: =INDEX(dms_TradingNameFull_List,MATCH(dms_TradingName,dms_TradingName_List)) -> TasNetworks (D)
B3: =CONCATENATE("Annual Reporting RIN Response ",IF(SUM(dms_SingleYear_Model)>0,CONCATENATE(CRY),CONCATENATE(FRCP_y1," to ",dms_MultiYear_FinalYear_Result))) -> Annual Reporting RIN Response 2017-18
B4: 8.2 - CAPEX
B6: Instructions
B7: Reported expenditure must EXCLUDE capital contributions (except tables 8.2.1 and 8.2.5 which should include all capital contributions).
B8: Forecast expenditure is to be taken from Australian Distribution Co.'s distribution determination.
B9: If allocating based on assumptions then provide method in Basis of Preparation. All adjustments must be explained in Basis of Preparation with supporting documentation attached.
B11: For tables 8.2.1 and 8.2.3: Reported expenditure must INCLUDE any profit margins or management fees paid directly or indirectly to related party contractors (not including actual incurred expenses of the related party contractor) for the regulatory reporting period. 'Related Party Margin Expenditure' must COMPRISE ONLY profit margins or management fees paid directly or indirectly to related party contractors (not including actual incurred expenses of the related party contractor) for the regulatory reporting period.
B13: 8.2.1 - CAPEX BY PURPOSE - STANDARD CONTROL SERVICES
B15: Each line item in this table must INCLUDE the capital contributions. Total capital contributions should also be identified in the last item in the table.
C17: EXPENDITURE
C18: CPI adjusted Forecast | D18: Actual | E18: Difference | F18: Related Party Margin | G18: Voltage level
G19: Subtransmission | H19: HV | I19: LV | J19: Other
B20: Description | C20: $0's, nominal | E20: (%) | F20: $0's, nominal
B21: Customer Initiated | C21: 26026750.55 | D21: =SUM(G21:J21) -> 32410954.9 | E21: =IF(C21=0,1,(D21-C21)/C21*1) -> 0.2452939462 | G21: 0 | H21: 19494953.55 | I21: 12022483.53 | J21: 893517.8148
B22: Reinforcement | C22: 6700545.734 | D22: =SUM(G22:J22) -> 6926858.284 | E22: =IF(C22=0,1,(D22-C22)/C22*1) -> 0.03377524144 | G22: 463936.9154 | H22: 6163991.782 | I22: 298929.5866 | J22: 0
B23: Reliability & Quality Maintained | C23: 55423531.37 | D23: 83891981.21 | E23: 0.5136527596 | G23: 25391938.55 | H23: 35475526.37 | I23: 19749806 | J23: 3274710.284
B24: Regulatory obligations or requirements | C24: 3430336.463 | D24: 4552432.03 | E24: 0.3271094772 | G24: 0 | H24: 4372229.752 | I24: 81298.15536 | J24: 98904.12268
D25: 0 | E25: 1
D26: =SUM(G26:J26) -> 0 | E26: 1
B27: SCADA & Network Control | C27: 3411635.828 | D27: 996150.8891 | E27: -0.7080137097 | G27: 0 | H27: 94124.76808 | I27: 0 | J27: 902026.1211
B28: IT & Communications | C28: 15690683.05 | D28: 15401278.23 | E28: -0.01844437373 | J28: 15401278.23
B29: Motor Vehicle | C29: 2516351.3 | D29: 3246541.89 | E29: 0.2901783188 | J29: 3246541.89
B30: Property | C30: 1342473.419 | D30: =SUM(G30:J30) -> 2240070.603 | E30: 0.6686144932 | J30: 2240070.603
B31: Plant & Equipment | C31: 0 | D31: 0 | E31: 1
B32: Other Capex | C32: 0 | D32: 0 | E32: 1
B33: Business Services Management | C33: 11615577.16 | D33: 12659100.14 | E33: 0.08983823693 | J33: 12659100.14
B34: Capitalised Overheads | C34: 0 | D34: 0 | E34: 1
D35: 0 | E35: 1
B36: Capital contributions included in the above | C36: 11440447.44 | D36: 9496255.57 | E36: -0.169940195 | G36: 1690.95 | H36: 3634468.56 | I36: 5860096.06 | J36: 0
B37: Total | C37: =SUM(C21:C35) -> 126157884.9 | D37: 162325368.2 | E37: =IF(C37=0,1,(D37-C37)/C37*1) -> 0.2866842871 | G37: =SUM(G21:G35) -> 25855875.46 | H37: =SUM(H21:H35) -> 65600826.22 | I37: 32152517.28 | J37: 38716149.2
B40: 8.2.2 - CAPEX BY PURPOSE - MATERIAL DIFFERENCE EXPLANATION
B42: Where the difference between forecast and actual expenditure shown in table 8.2.1 is a Material Difference please explain the main factors driving the difference.
B44: Description | C44: Reason for material difference
B45: Customer Initiated | C45: The customer initiated works expenditure is higher during the year, due to higher volumes of general customer supply works.
B46: Reliability & Quality Maintained | C46: The reliability and quality maintained category is higher than forecast predominately due to the significantly higher than budget volumes associated with the cross arm and condemned pole replacements, fire mitigation (vibration damper and HV fuse replacement programs), HV copper conductor and HV feeder replacement programs.
B47: Regulatory obligations or requirements | C47: There was higher expenditure than forecast relating to replacement of HV feeders (safety),safety and environmental issues relating to ground mounted substations and Wildlife Endangered Species Protection.
B48: SCADA & Network Control | C48: Lower than forecast expenditure on SCADA and Network control programs due to timing.
B49: Motor Vehicle | C49: The motor vehicle expenditure is higher due to the timing of the fleet replacement program
B62: 8.2.3 - CAPEX OTHER
C63: EXPENDITURE
C64: CPI adjusted Forecast | D64: Actual | E64: Difference | F64: Related Party Margin | G64: Voltage level
G65: Subtransmission | H65: HV | I65: LV | J65: Other
C66: $0's, nominal | E66: (%) | F66: $0's, nominal
B67: Public lighting
B68: =IF(dms_Jurisdiction="Vic","Energy Efficient", "Total") -> Total | D68: =SUM(G68:J68) -> 3030689.154 | E68: =IF(C68=0,1,((D68-C68)/C68)*1) -> 1 | J68: 3030689.154
B69: =IF(dms_Jurisdiction="Vic","Non-energy efficient", "") ->  | D69: =SUM(G69:J69) -> 0 | E69: =IF(C69=0,1,((D69-C69)/C69)*1) -> 1
B70: Alternative Control Services
B71: Connection services | D71: =SUM(G71:J71) -> 3388607.579 | E71: =IF(C71=0,1,((D71-C71)/C71)*1) -> 1 | J71: 3388607.579
B72: Metering services | D72: 2897424.387 | E72: =IF(C72=0,1,((D72-C72)/C72)*1) -> 1 | J72: 2897424.387
B73: Ancillary network services | D73: 0 | E73: =IF(C73=0,1,((D73-C73)/C73)*1) -> 1
B74: Negotiated Services
B75: Negotiated services | D75: =SUM(G75:J75) -> 0 | E75: =IF(C75=0,1,((D75-C75)/C75)*1) -> 1
B76: Total | C76: =SUM(C68:C69,C71:C73,C75) -> 0 | D76: =SUM(D68:D69,D71:D73,D75) -> 9316721.12 | E76: =IF(C76=0,1,((D76-C76)/C76)*1) -> 1 | G76: =SUM(G68:G69,G71:G73,G75) -> 0 | H76: =SUM(H68:H69,H71:H73,H75) -> 0 | I76: =SUM(I68:I69,I71:I73,I75) -> 0 | J76: =SUM(J68:J69,J71:J73,J75) -> 9316721.12
B80: 8.2.4 - CAPEX BY ASSET CLASS
B82: Australian Distribution Co. to enter in Table 8.2.4 each Asset Class specified in its current determination as listed in the AER's final decision in its Roll Forward Model and Post-tax Revenue Model and enter information against that Asset Class.
C84: CPI adjusted Forecast | D84: Actual | E84: Difference | F84: Movements in provisions allocated to as-incurred capex
B85: Asset class | C85: $0's, nominal | E85: (%) | F85: $0's, nominal
B86: Overhead Subtransmission Lines (Urban) | C86: 176429.5155 | D86: 100755.9963 | E86: =IF(C86=0,1,((D86-C86)/C86)*1) -> -0.428916437 | F86: 617.1344072
B87: Underground Subtransmission Lines (Urban) | C87: 0 | D87: 0 | E87: =IF(C87=0,1,((D87-C87)/C87)*1) -> 1 | F87: 0
B88: Urban Zone Substations | C88: 830067.1712 | D88: 1906716.965 | E88: 1.297063456 | F88: 11678.71578
B89: Rural Zone Substations | C89: 1149666.377 | D89: 625481.3629 | E89: -0.4559453288 | F89: 3831.097743
B90: SCADA | C90: 3404368.916 | D90: 1020442.601 | E90: -0.7002549881 | F90: 6250.250731
B91: Distribution Switching Stations (Ground) | C91: 267435.0445 | D91: 298113.7896 | E91: 0.1147147529 | F91: 1825.958588
B92: Overhead High Voltage Lines Urban | C92: 6144448.007 | D92: 12488117.08 | E92: 1.03242294 | F92: 76490.20419
B93: Overhead High Voltage Lines Rural | C93: 19692307.01 | D93: 33264364.49 | E93: 0.689206068 | F93: 203745.5299
B94: Voltage Regulators on Distribution Feeders | C94: 1607539.895 | D94: 531371.6593 | E94: -0.6694504063 | F94: 3254.672138
B95: Underground High Voltage Lines | C95: 6451513.671 | D95: 7174977.796 | E95: 0.1121386643 | F95: 43947.01885
B96: Underground High Voltage Lines SWER | C96: 0 | D96: 1063101.715 | E96: 1 | F96: 6511.539469
B97: Distribution Substations HV (Pole) | C97: 161901.8391 | D97: 83790.22017 | E97: -0.4824628265 | F97: 513.2183665
B98: Distribution Substations HV (Ground) | C98: 3560849.072 | D98: 4127914.48 | E98: 0.1592500543 | F98: 25283.63719
B99: Distribution Substations LV (Pole) | C99: 6753525.357 | D99: 7039661.803 | E99: 0.04236845652 | F99: 43118.20311
B100: Distribution Substations LV (Ground) | C100: 6028373.485 | D100: 5888754.069 | E100: -0.02316037929 | F100: 36068.84835
B101: Overhead Low Voltage Lines Underbuilt Urban | C101: 3561599.758 | D101: 6843471.053 | E101: 0.9214598827 | F101: 41916.52711
B102: Overhead Low Voltage Lines Underbuilt Rural | C102: 3050174.596 | D102: 5730177.135 | E102: 0.8786390595 | F102: 35097.55844
B103: Overhead Low Voltage Lines Urban | C103: 4011036.347 | D103: 7814838.11 | E103: 0.9483339054 | F103: 47866.18822
B104: Overhead Low Voltage Lines Rural | C104: 6314620.196 | D104: 12168268.37 | E104: 0.9269992481 | F104: 74531.11835
B105: Underground Low Voltage Lines | C105: 4493889.506 | D105: 6359791.704 | E105: 0.4152087396 | F105: 38953.97223
B106: Underground Low Voltage Common Trench | C106: 898447.8834 | D106: 1232150.379 | E106: 0.3714210933 | F106: 7546.969125
B107: HVST Service Connections | C107: 0 | D107: 0 | E107: 1 | F107: 0
B108: HV Service Connections | C108: 80909.88441 | D108: 76152.33136 | E108: -0.05880064088 | F108: 466.4359997
B109: HV Metering CA Service Connections | C109: 24479.28648 | D109: -3559.984542 | E109: -1.145428444 | F109: -21.80504417
B110: HV/LV Service Connections | C110: 146344.1481 | D110: 137739.0184 | E110: -0.05880064088 | F110: 843.6568598
B111: Business LV Service Connections | C111: 393502.0161 | D111: 363318.9695 | E111: -0.0767036645 | F111: 2225.342859
B112: Business LV Metering CA Service Connections | C112: 711314.4562 | D112: -203369.2253 | E112: -1.285906217 | F112: -1245.644437
B113: Domestic LV Service Connections | C113: 3104844.091 | D113: 2901142.641 | E113: -0.06560762605 | F113: 17769.61183
B114: Domestic LV Metering CA Service Connections | C114: 532764.9834 | D114: -507454.6264 | E114: -1.952492454 | F114: -3108.179379
B115: Wholesale Metering | C115: 0 | D115: 0 | E115: 1 | F115: 0
B116: HV Metering | C116: 0 | D116: 0 | E116: =IF(C116=0,1,((D116-C116)/C116)*1) -> 1 | F116: 0
B117: Business LV Metering | C117: 0 | D117: 0 | E117: 1 | F117: 0
B118: HV/LV Metering | C118: 0 | D118: 0 | E118: 1 | F118: 0
B119: Business LV Metering | C119: 0 | D119: 0 | E119: 1 | F119: 0
B120: Domestic LV Metering | C120: 0 | D120: 0 | E120: 1 | F120: 0
B121: Emergency Network Spares | C121: 0 | D121: 0 | E121: 1 | F121: 0
B122: Motor Vehicles | C122: 2516351.3 | D122: 3246541.89 | E122: 0.2901783188 | F122: 19885.1957
B123: Minor Assets | C123: 15690683.05 | D123: 15401278.23 | E123: -0.01844437373 | F123: 94333.42983
B124: Non-System Property | C124: 1342473.419 | D124: 2240070.603 | E124: 0.6686144932 | F124: 13720.51981
B125: Spare Parts | C125: 0 | D125: 0 | E125: 1 | F125: 0
B126: NEM Assets | C126: 0 | D126: 0 | E126: 1 | F126: 0
B127: Business Services Managements | C127: 11615577.16 | D127: 12659100.14 | E127: 0.08983823693 | F127: 77537.48207
B128: Non-System Land | C128: 0 | D128: 0 | E128: 1 | F128: 0
B129: Easements | C129: 0 | D129: 755891.8448 | E129: 1 | F129: 4629.867031
E130: 1
E131: 1
E132: 1
E133: 1
E134: 1
E135: 1
B136: Total | C136: =SUM(C86:C135) -> 114717437.4 | D136: =SUM(D86:D135) -> 152829112.6 | E136: 0.3322221626 | F136: =SUM(F86:F135) -> 936084.2754
B139: 8.2.5 - CAPITAL CONTRIBUTIONS BY ASSET CLASS
C140: CPI Adjusted Forecast | D140: Actual | E140: Difference
B141: Asset class | C141: $0's, nominal | E141: (%)
B142: Overhead Subtransmission Lines (Urban) | C142: 31679.78476 | D142: 226771.8195 | E142: =IF(C142=0,1,((D142-C142)/C142)*1) -> 6.158250008
B143: Underground Subtransmission Lines (Urban) | C143: 0 | D143: 0 | E143: =IF(C143=0,1,((D143-C143)/C143)*1) -> 1
B144: Urban Zone Substations | C144: 3633.456063 | D144: 0 | E144: -1
B145: Rural Zone Substations | C145: 0 | D145: 0 | E145: 1
B146: SCADA | C146: 7266.912126 | D146: 0 | E146: -1
B147: Distribution Switching Stations (Ground) | C147: 25434.19244 | D147: 0 | E147: -1
B148: Overhead High Voltage Lines Urban | C148: 413108.728 | D148: 138189.0508 | E148: -0.6654898786
B149: Overhead High Voltage Lines Rural | C149: 1909395.116 | D149: 936741.1115 | E149: -0.5094042591
B150: Voltage Regulators on Distribution Feeders | C150: 0 | D150: 0 | E150: 1
B151: Underground High Voltage Lines | C151: 2743593.976 | D151: 2565589 | E151: -0.0648802184
B152: Underground High Voltage Lines SWER | C152: 0 | D152: 0 | E152: 1
B153: Distribution Substations HV (Pole) | C153: 60280.56687 | D153: 20.909 | E153: -0.9996531386
B154: Distribution Substations HV (Ground) | C154: 264489.6799 | D154: 122715.7605 | E154: -0.5360281712
B155: Distribution Substations LV (Pole) | C155: 557231.5751 | D155: 338357.7975 | E155: -0.3927878236
B156: Distribution Substations LV (Ground) | C156: 1397450.272 | D156: 1597634.532 | E156: 0.1432496489
B157: Overhead Low Voltage Lines Underbuilt Urban | C157: 13105.60213 | D157: 6261.04475 | E157: -0.5222619542
B158: Overhead Low Voltage Lines Underbuilt Rural | C158: 252898.0355 | D158: 127747.751 | E158: -0.4948645973
B159: Overhead Low Voltage Lines Urban | C159: 300871.1646 | D159: 123052.9008 | E159: -0.591011319
B160: Overhead Low Voltage Lines Rural | C160: 711030.2069 | D160: 321868.5423 | E160: -0.5473208604
B161: Underground Low Voltage Lines | C161: 1374489.085 | D161: 1426839.69 | E161: 0.03808731926
B162: Underground Low Voltage Common Trench | C162: 1374489.085 | D162: 1426839.69 | E162: 0.03808731926
B163: HVST Service Connections | C163: 0 | D163: 0 | E163: 1
B164: HV Service Connections | C164: 0 | D164: 0 | E164: 1
B165: HV Metering CA Service Connections | C165: 0 | D165: 0 | E165: 1
B166: HV/LV Service Connections | C166: 0 | D166: 0 | E166: 1
B167: Business LV Service Connections | C167: 0 | D167: 0 | E167: 1
B168: Business LV Metering CA Service Connections | C168: 0 | D168: 0 | E168: 1
B169: Domestic LV Service Connections | C169: 0 | D169: 0 | E169: 1
B170: Domestic LV Metering CA Service Connections | C170: 0 | D170: 0 | E170: 1
B171: Wholesale Metering | C171: 0 | D171: 0 | E171: =IF(C171=0,1,((D171-C171)/C171)*1) -> 1
B172: HV Metering | C172: 0 | D172: 0 | E172: 1
B173: Business LV Metering | C173: 0 | D173: 0 | E173: 1
B174: HV/LV Metering | C174: 0 | D174: 0 | E174: 1
B175: Business LV Metering | C175: 0 | D175: 0 | E175: 1
B176: Domestic LV Metering | C176: 0 | D176: 0 | E176: 1
B177: Emergency Network Spares | C177: 0 | D177: 0 | E177: 1
B178: Motor Vehicles | C178: 0 | D178: 0 | E178: 1
B179: Minor Assets | C179: 0 | D179: 0 | E179: 1
B180: Non-System Property | C180: 0 | D180: 0 | E180: 1
B181: Spare Parts | C181: 0 | D181: 0 | E181: =IF(C181=0,1,((D181-C181)/C181)*1) -> 1
B182: NEM Assets | C182: 0 | D182: 0 | E182: 1
B183: Business Services Managements | E183: 1
B184: Non-System Land | D184: 0 | E184: 1
B185: Easements | D185: 137625.97 | E185: 1
B186: =IF(ISBLANK(B130),"",B130) ->  | E186: 1
E187: 1
E188: 1
E189: 1
E190: 1
E191: 1
B192: Total | C192: =SUM(C142:C191) -> 11440447.44 | D192: =SUM(D142:D191) -> 9496255.57 | E192: -0.169940195
B195: 8.2.6 - DISPOSALS BY ASSET CLASS
C196: CPI Adjusted Forecast | D196: Actual | E196: Difference
B197: Asset class | C197: $0's, nominal | E197: (%)
B198: =IF(ISBLANK(B86),"",B86) -> Overhead Subtransmission Lines (Urban) | E198: =IF(C198=0,1,((D198-C198)/C198)*1) -> 1
B199: Underground Subtransmission Lines (Urban) | E199: =IF(C199=0,1,((D199-C199)/C199)*1) -> 1
B200: Urban Zone Substations | E200: 1
B201: Rural Zone Substations | E201: 1
B202: SCADA | E202: 1
B203: Distribution Switching Stations (Ground) | E203: 1
B204: Overhead High Voltage Lines Urban | E204: 1
B205: Overhead High Voltage Lines Rural | E205: 1
B206: Voltage Regulators on Distribution Feeders | E206: 1
B207: Underground High Voltage Lines | E207: 1
B208: Underground High Voltage Lines SWER | E208: 1
B209: Distribution Substations HV (Pole) | E209: 1
B210: Distribution Substations HV (Ground) | E210: 1
B211: Distribution Substations LV (Pole) | E211: 1
B212: Distribution Substations LV (Ground) | E212: 1
B213: Overhead Low Voltage Lines Underbuilt Urban | E213: 1
B214: Overhead Low Voltage Lines Underbuilt Rural | E214: 1
B215: Overhead Low Voltage Lines Urban | E215: 1
B216: Overhead Low Voltage Lines Rural | E216: 1
B217: Underground Low Voltage Lines | E217: 1
B218: Underground Low Voltage Common Trench | E218: 1
B219: HVST Service Connections | E219: 1
B220: HV Service Connections | E220: 1
B221: HV Metering CA Service Connections | E221: 1
B222: HV/LV Service Connections | E222: 1
B223: Business LV Service Connections | E223: 1
B224: Business LV Metering CA Service Connections | E224: 1
B225: Domestic LV Service Connections | E225: 1
B226: Domestic LV Metering CA Service Connections | E226: 1
B227: Wholesale Metering | E227: 1
B228: HV Metering | E228: =IF(C228=0,1,((D228-C228)/C228)*1) -> 1
B229: Business LV Metering | E229: 1
B230: =IF(ISBLANK(B118),"",B118) -> HV/LV Metering | E230: 1
... 18 more rows

Sheet 8.4 Opex
B1: =IF(dms_DataQuality="backcast",INDEX(dms_Worksheet_List,MATCH(dms_Model,dms_Model_List))&" BACKCAST",INDEX(dms_Worksheet_List,MATCH(dms_Model,dms_Model_List))) -> ANNUAL REPORTING STATEMENT
B2: =INDEX(dms_TradingNameFull_List,MATCH(dms_TradingName,dms_TradingName_List)) -> TasNetworks (D)
B3: =CONCATENATE("Annual Reporting RIN Response ",IF(SUM(dms_SingleYear_Model)>0,CONCATENATE(CRY),CONCATENATE(FRCP_y1," to ",dms_MultiYear_FinalYear_Result))) -> Annual Reporting RIN Response 2017-18
B4: 8.4 OPEX
B6: Instructions
B7: Forecast expenditure is to be taken from Australian Distribution Co.'s distribution determination.
B8: If allocating based on assumptions then provide method in Basis of Preparation. All adjustments must be explained in Basis of Preparation with supporting documentation attached.
B10: 8.4.1 - OPERATING & MAINTENANCE EXPENDITURE - BY PURPOSE
B12: Australian Distribution Co. is to list the operating expenditure categories identified in Australian Distribution Co.'s regulatory proposal at table 3.2.1.1 current opex categories and cost allocations.
B13: Australian Distribution Co. must specify any expenditure category where the expense is more than 5 per cent of the total standard control services operating expenditure.
B14: Reported operating expenditure must INCLUDE any profit margins or management fees paid directly or indirectly to related party contractors (not including actual incurred expenditure of the related party contractor) for the regulatory reporting period.
C16: Audited Statutory Accounts | D16: Adjustments | E16: Distribution business | F16: Standard Control Services | I16: Alternative Control Services | N16: Negotiated Services
F17: CPI Adjusted Forecast | G17: Actual | H17: Difference | I17: Public Lighting | K17: Other
I18: =IF(dms_Jurisdiction="Vic","Energy efficient","") ->  | J18: =IF(dms_Jurisdiction="Vic","Non-energy efficient","") ->  | K18: Connection services | L18: Metering services | M18: Ancillary network services
B19: Opex category | C19: $0's, nominal | H19: % | I19: $0's, nominal
B20: Routine Overhead network and structures | C20: 7196025.979 | E20: 7196025.979 | F20: 5842616.627 | G20: 7196025.979 | H20: =IF(F20=0,1,((G20-F20)/F20)*1) -> 0.2316443877
B21: Routine Underground network | C21: 58316.32542 | E21: 58316.32542 | F21: 194892.9281 | G21: 58316.32542 | H21: -0.700777622
B22: Routine Ground mounted substations | C22: 1085904.485 | E22: 1085904.485 | F22: 826936.5764 | G22: 1085904.485 | H22: 0.3131653821
B23: Routine Zone substations | C23: 1206403.824 | E23: 1206403.824 | F23: 1474195.134 | G23: 1206403.824 | H23: -0.181652553
B24: Other network asset maintenance - routine costs | C24: 17276216.78 | E24: 17276216.78 | F24: 1821172.54 | G24: 1744033.848 | H24: -0.3453321382 | J24: 2668887.406 | L24: 8502943.56 | M24: 4360351.968
B25: Routine Vegetation management | C25: 29150170.25 | E25: 29150170.25 | F25: 18122534.19 | G25: 29150170.25 | H25: 0.6085040833
B26: Routine Connection asset repair | C26: 742875.2638 | E26: 742875.2638 | F26: 918622.8949 | G26: 742875.2638 | H26: -0.1913164064
B27: Other non network asset maintenance - routine costs | C27: 1164581.187 | E27: 1164581.187 | F27: 842825.4198 | G27: 1164581.187 | H27: 1
B28: Non-routine Overhead network & structures | C28: 6414815.559 | E28: 6414815.559 | F28: 6254775.185 | G28: 6414815.559 | H28: 0.02558691075
B29: Non-routine Underground network | C29: 470467.6291 | E29: 470467.6291 | F29: 507370.3604 | G29: 470467.6291 | H29: -0.07273332097
B30: Non-routine Ground mounted substations | C30: 583256.3935 | E30: 583256.3935 | F30: 727423.968 | G30: 583256.3935 | H30: -0.1981892003
B31: Non-routine Zone substations | C31: 33187.87567 | E31: 33187.87567 | F31: 55783.21122 | G31: 33187.87567 | H31: -0.4050561998
B32: Non-routine Decommissioned assets | C32: 1442103.291 | E32: 1442103.291 | F32: 1364307.707 | G32: 1442103.291 | H32: 0.05702202134
B33: Non-routine Connection assets | C33: 0 | E33: 0 | F33: 0 | H33: 1
B34: Non-routine Other network asset maintenance - non-routine costs | C34: 1753913.194 | E34: 1753913.194 | F34: 1303737.869 | G34: 1753913.194 | H34: 0.3452958881
B35: Emergency and unscheduled power system response & repair | C35: 25622808.63 | E35: 25622808.63 | F35: 22825235.85 | G35: 25622808.63 | H35: =IF(F35=0,1,((G35-F35)/F35)*1) -> 0.1225649013
C36: 0 | F36: 0 | H36: 1
B37: Connection asset repair | C37: 81933.2192 | E37: 81933.2192 | F37: 90640.53494 | G37: 81933.2192 | H37: -0.09606425809
B38: Alternative Control - Quoted Services | C38: 5892014.643 | D38: 5892014.643 | H38: 1
B39: Unclassified Distribution | C39: 8408957.03 | D39: 8408957.03 | H39: 1
B40: Transmission | C40: 39624794.57 | D40: 39624794.57 | H40: 1
B41: Other Non Regulated Services | C41: 933304.2156 | D41: 933304.2156 | H41: =IF(F41=0,1,((G41-F41)/F41)*1) -> 1
B42: GSLs | C42: 3167184.96 | E42: 3167184.96 | F42: 2434974.007 | G42: 3167184.96 | H42: 0.3007058599
B43: Nem Fees | C43: 644000 | E43: 644000 | F43: 451424.1441 | G43: 644000 | H43: 0.4265962696
B44: Electrical Inspector Fee | C44: 3854365.02 | E44: 3854365.02 | F44: 2212258.555 | G44: 3854365.02 | H44: 0.7422760152
B45: Other Non Network Costs | C45: 0 | E45: 0 | F45: 0 | H45: 1
B46: Feed In Tarriff | C46: 10261327.48 | D46: 10261327.48 | E46: 0 | F46: 0 | H46: 1
B47: Demand Management Incentive Scheme | C47: 1114528.945 | D47: 1114528.945 | E47: 0 | H47: 1
H48: 1
H49: 1
H50: 1
H51: 1
H52: 1
H53: 1
H54: 1
H55: 1
H56: 1
H57: 1
H58: 1
H59: 1
H60: 1
H61: 1
H62: 1
H63: 1
H64: 1
H65: 1
H66: 1
H67: 1
H68: 1
H69: 1
B70: Total | C70: =SUM(C20:C69) -> 168183456.7 | D70: 66234926.88 | E70: 101948529.9 | F70: 68271727.71 | G70: 86416346.93 | H70: 0.2657706174 | I70: =SUM(I20:I69) -> 0 | J70: 2668887.406 | K70: 0 | L70: 8502943.56 | M70: 4360351.968 | N70: 0
B73: 8.4.2 - OPERATING & MAINTENANCE EXPENDITURE - BY PURPOSE - MARGINS ONLY
B75: "Related party margin expenditure' must COMPRISE ONLY profit margins or management fees paid directly or indirectly to related party contractors (for expenditure that is not an actual incurred expenditure of the related party contractor) for the regulatory reporting period.
C77: Audited Statutory Accounts | D77: Adjustments | E77: Distribution business | F77: Standard Control Services | I77: Alternative Control Services | N77: Negotiated Services
F78: CPI Adjusted Forecast | G78: Actual | H78: Difference | I78: Public Lighting | K78: Other
I79: =IF(dms_Jurisdiction="Vic","Energy efficient","") ->  | J79: =IF(dms_Jurisdiction="Vic","Non-energy efficient","") ->  | K79: Connection services | L79: Metering services | M79: Ancillary network services
B80: Opex category | C80: $0's, nominal | G80: $0's, nominal | H80: per cent | I80: $0's, nominal
B81: =IF(ISBLANK(B20),"",B20) -> Routine Overhead network and structures | H81: =IF(F81=0,1,((G81-F81)/F81)*1) -> 1
B82: Routine Underground network | H82: 1
B83: Routine Ground mounted substations | H83: 1
B84: Routine Zone substations | H84: 1
B85: Other network asset maintenance - routine costs | H85: 1
B86: Routine Vegetation management | H86: 1
B87: Routine Connection asset repair | H87: 1
B88: Other non network asset maintenance - routine costs | H88: =IF(F88=0,1,((G88-F88)/F88)*1) -> 1
B89: Non-routine Overhead network & structures | H89: 1
B90: Non-routine Underground network | H90: 1
B91: Non-routine Ground mounted substations | H91: 1
B92: Non-routine Zone substations | H92: 1
B93: Non-routine Decommissioned assets | H93: 1
B94: Non-routine Connection assets | H94: 1
B95: Non-routine Other network asset maintenance - non-routine costs | H95: 1
B96: Emergency and unscheduled power system response & repair | H96: 1
H97: =IF(F97=0,1,((G97-F97)/F97)*1) -> 1
B98: Connection asset repair | H98: 1
B99: Alternative Control - Quoted Services | H99: 1
B100: Unclassified Distribution | H100: 1
B101: Transmission | H101: 1
B102: Other Non Regulated Services | H102: 1
B103: GSLs | H103: =IF(F103=0,1,((G103-F103)/F103)*1) -> 1
B104: Nem Fees | H104: 1
B105: Electrical Inspector Fee | H105: 1
B106: Other Non Network Costs | H106: 1
B107: Feed In Tarriff | H107: 1
B108: Demand Management Incentive Scheme | H108: 1
H109: 1
H110: 1
H111: 1
H112: 1
H113: 1
H114: 1
H115: 1
H116: 1
H117: 1
H118: 1
H119: 1
H120: 1
H121: 1
H122: 1
H123: 1
H124: 1
H125: 1
H126: 1
H127: 1
H128: 1
H129: 1
H130: 1
B131: Total | C131: =SUM(C81:C130) -> 0 | D131: =SUM(D81:D130) -> 0 | E131: =SUM(E81:E130) -> 0 | F131: =SUM(F81:F130) -> 0 | G131: =SUM(G81:G130) -> 0 | H131: 1 | I131: =SUM(I81:I130) -> 0 | J131: 0 | K131: 0 | L131: 0 | M131: 0 | N131: 0
B134: 8.4.3 - OPERATING & MAINTENANCE EXPENDITURE - EXPLANATION OF MATERIAL DIFFERENCE
B136: Where the difference between forecast and actual expenditure shown in table 8.4.1, column I is a Material Difference please explain the main factors driving the difference.
B138: Category | C138: Explanation
B139: Routine Overhead network and structures | C139: Higher overhead network expenditure due to higher fault levels
B140: Routine Vegetation management | C140: Bushfire risks posed due to vegetation were higher than previously understood, especially in light of experiences interstate. The operating expenditure had to increase to prudently address these risks.
B141: Emergency and unscheduled power system response & repair | C141: Higher emergency response and repair costs resulting from major weather events
B142: Electrical Inspector Fee | C142: The forecast had electrical inspection costs allocated to other forms of control. It has now been correctly allocated to Standard control services

Sheet 9.5 TUoS
B1: =IF(dms_DataQuality="backcast",INDEX(dms_Worksheet_List,MATCH(dms_Model,dms_Model_List))&" BACKCAST",INDEX(dms_Worksheet_List,MATCH(dms_Model,dms_Model_List))) -> ANNUAL REPORTING STATEMENT
B2: =INDEX(dms_TradingNameFull_List,MATCH(dms_TradingName,dms_TradingName_List)) -> TasNetworks (D)
B3: =CONCATENATE("Annual Reporting RIN Response ",IF(SUM(dms_SingleYear_Model)>0,CONCATENATE(CRY),CONCATENATE(FRCP_y1," to ",dms_MultiYear_FinalYear_Result))) -> Annual Reporting RIN Response 2017-18
B4: 9.5 - TUoS AUDIT (t-2)
B6: This template collects information for annual pricing proposals from Victorian businesses only.
B8: 9.5.1 - TUOS CHARGES (AEMO)
F9: =CRY -> 2017-18
E16: Total | F16: =SUM(F10:F15) -> 0
B19: 9.5.2 - TRANSMISSION CONNECTION FEES
F20: =CRY -> 2017-18
E27: Total | F27: =SUM(F21:F26) -> 0
B30: 9.5.3 - CROSS BOUNDARY NETWORK CHARGES
C31: Amount (payable)/receivable
C32: $0's, nominal
C33: HV crossings | D33: Subtransmission crossings | E33: TUoS Adjustment | F33: Total
B34: Distribution Business | F34: =CRY -> 2017-18
F35: =IF((SUM(C35:E35)=0),"",(SUM(C35:E35))) -> 
F36: =IF((SUM(C36:E36)=0),"",(SUM(C36:E36))) -> 
B43: Total
B46: 9.5.4 - PAYMENTS TO EMBEDDED GENERATORS
B47: 9.5.4.1 - AVOIDED TRANSMISSION COSTS | F47: 2016-17
B56: Total | F56: =SUM(F48:F55) -> 0
B57: 9.5.4.2 - AVOIDED TUoS USAGE CHARGES | F57: 2016-17
B66: Total | F66: =SUM(F58:F65) -> 0
B67: Total payments to embedded generators | F67: =F66+F56 -> 0
